Workbook

Sheet Information and instructions
A1: General information
A2: Before working with these files, please check your macro security settings first. Your security settings must be set to ‘medium’ in order to use the necessary buttons. To change your settings, follow these steps :
A3: - Open the program: excel - Now select : Extra ==> macros ==> security - Select the "security level" tab - Select the option “medium" - Open the file - Select the option : “Enable macros”
A4: For excel 2007 :
A5: 1. enabling the buttons : - Click on the button : options - select "Enable content" and then click OK
A6: 2. to save the completed version : Users of excel 2007 must save the completed file in excel 2003 format. - choose to save as by clicking on the icon shown here once - select previous version/2003.
A7: Before you start filling in the file, make sure to save a copy of the file with the appropriate file name. By doing so, you will always have a blank template to work with. For the organiser : PRIMA_25_0RG_event name_date For the disaster officer : PRIMA_25_DO_event name_date
A8: Always start by filling in SECTION 1 and continue by using the “Next” button at the bottom of each sheet.
A10: For disaster officers
A11: Dear disaster officer, we have sent you 2 versions of PRIMA: PRIMA_25_DO_EN and PRIMA_25_ORG_EN We have opted to create 2 different versions, one for organisers and one for disaster officers, because this makes it easier to check who filled in which document. We assume that documents completed by an disaster officer will be more accurate, which will also speed up the follow-up check.
A13: A. When sending this file to the organiser, use the file PRIMA_25_ORG_EN : make sure to only do so once
A14: 1. | B14: removing database protection | C14: Extra ==> security ==> remove workbook protection
A15: 2. | B15: Removing protection from the “Section for the organiser” tab | C15: Extra ==> security ==> remove sheet protection
A16: 3. | B16: Fill in your details and do not forget to include your email address, so the organiser knows where to send the completed version
A17: 4. | B17: Protecting the “Section for the organiser” tab with a password | C17: Extra ==> security ==> protect sheet
A18: 5. | B18: Hiding the rows intended for the disaster officer on the “Information and instructions” tab | C18: select the rows ==>format ==> row ==> hide
A19: 6. | B19: Protecting the “Information and instructions” tab with a password | C19: Extra ==> security ==> protect sheet
A20: 5. | B20: protecting the database with a password (this is very important, as it prevents users from changing the formulas, intentionally or not. | C20: Extra ==> security ==> protect workbook
A21: 6. | B21: Save file as : PRIMA_25_ORG_EN. Please make sure that the information and instructions sheet is in the foreground. This way, it will be the first thing the organiser sees. | C21: File ==> save as ==> give the file a name and determine where it should be saved
A22: 7. | B22: Send this file to the organiser.
A24: B. After receiving the file from an organiser :
A25: 1. | B25: Save the received file as follows : PRIMA_25_ORG_name of event_date e.g. PRIMA_25_ORG_Braderij Turnhout_13 10 10
A26: 2. | B26: removing database protection | C26: Extra ==> security ==> remove workbook protection
A27: 3. | B27: unhide the following tabs : | C27: format ==> sheet ==> unhide
B28: SECTION Disasters
B29: SECTION6
B30: SECTION7
B31: SECTION8
B32: part 1 letter no advice
B33: part 2 letter no advice
B34: Removing protection from the “Section for the organiser” tab | C34: Extra ==> security ==> remove sheet protection On this sheet, you must answer all questions marked as “to be completed by the disaster officer”. These answers will automatically be filled in in Section 3. You must repeat this process every time you are sent an assessment form by an organiser.
A35: 4. | B35: Check that all information has been filled in correctly. You can do so by returning to “SECTION 1 - APPLICATION” and clicking on the “next” button at the bottom of the sheet until you have checked all sections. In SECTION 3, you can choose whether to continue as an organiser or an disaster officer.
A36: 5. | B36: Disaster officers can print the necessary letters, provided that no advice is required from the FPS. These letters must then be sent to the organiser, so that they can see which arrangements are to be made. The letters must also be presented to the mayor. If the presence of a nurse, ambulance or MUG team is required, you will not be able to print letters.
A37: 6. | B37: If no FPS advice is required, you must: - complete the “Care provided” tab after the event - save the file and send it to the e-mail address below (with the subject line : no medical facilities/resources or limited aid station )
A38: 7. | B38: If FPS advice is required : - save the file and send it to the e-mail address below (with the subject line : FPS advice ) - after the event, complete the “Care provided” tab - save the file and send it to the e-mail address below (with the subject line : care provided)
A40: C. When completing the risk assessment form yourself, use the file named PRIMA_25_DO_EN
A41: 1. | B41: To be done once in the original file : - Remove database protection - Remove sheet protection from “Section for the organiser” tab - Fill in your details (these will automatically appear in section 1) - Save the file with its original name : PRIMA_25_DO_EN - Always keep this file for reference. This way, you will always be able to start from scratch with a blank template
A42: 2. | B42: Save the file as follows : PRIMA_25_DO_event name_date e.g. PRIMA_25_DO_Turnhout Fair_13 10 10
A43: 3. | B43: When processing a new entry, you must always answer the questions marked “to be completed by the disaster officer” on the organiser tab.
A44: 4. | B44: Start with SECTION 1 and continue until you reach SECTION 4.
A45: 5. | B45: After this point, follow the guidelines starting from point B5
B48: Use the following e-mail address:
B49: =FIGURES!C36 -> icm.antwerpen@health.fgov.be

Sheet SECTION 1 - APPLICATION
A1: SECTION 1 - ADMINISTRATIVE DETAILS ACCOMPANYING AN APPLICATION FOR AN INREASED-RISK EVENT (TO BE COMPLETED IN FULL)
A3: Municipality where the event will take place | M3: VERSION 25 - 2011 02 18 | P3: number of days | Q3: number of hours | R3: number of hours per day | S3: number of hours as a number | T3: total
A4: Event start date | G4: 00/00/0000
A5: Event name | G5: VERSION 25 | P5: =C9-C8 ->  | Q5: =G9-G8 -> 00:00:00 | R5: =P5*24 ->  | S5: =Q5*24 -> 0 | T5: =SUM(R5:S5) -> 
A6: Type of event | G6: ALL OTHER EVENTS | M6: CELL COLOUR CODE
A7: Event address | I7: Postcode : | M7: LIGHT YELLOW | N7: FILL IN CELL OR SELECT FROM A LIST
A8: Start date : | C8: =$G$4 -> 00/00/0000 | E8: Start time : | G8: 00:00:00 | I8: Duration (hours) : | K8: =IF(K9<>0,K9,IF(C8<>"00/00/0000",T5)) -> FALSE | M8: BRIGHT YELLOW : | N8: SUGGESTED ANSWER (MAY BE MODIFIED)
A9: End date : | C9: 00/00/0000 | E9: End time : | G9: 00:00:00 | M9: LIGHT BLUE : | N9: AUTO-CALCULATED CELL
A10: Enter approval number if applicable : | M10: LIGHT GREEN : | N10: FURTHER EXPLANATION OF OPTIONS
M11: WHITE : | N11: CELL NAME/SUBJECT
A12: Several medical risk analyses have been drawn up for this event (split event) | I12: ja | M12: ORANGE : | N12: NAME AND/OR INSTRUCTIONS
M13: BRIGHT GREEN | N13: COMPLETED CELL = OK
A14: Population at risk | C14: a | D14: Expected number of visitors | I14: 0 | M14: SPECIFIC INSTRUCTIONS CAN BE FOUND IN THE FIELD COMMENTS
C15: b | D15: Expected number of participants | I15: 0 | K15: Enter if applicable
C16: c | D16: Number of people deployed by the organisers | I16: 0 | K16: Enter if applicable
C17: d | D17: Number of residents within the isolation perimeter | I17: 0
C18: e | D18: Possible population shift | I18: 0 | K18: Enter if applicable
C20: f | D20: % of total population present at the same time | I20: 100 | J20: %
C21: g | D21: Total number of people at risk | K21: =IF('SECTION3 + SCORE'!I72=1,(SUM(I14:I17)-I18)*(I20/100)*FIGURES!D21,(SUM(I14:I17)-I18)*(I20/100)) -> 0
A22: Will there be a campsite | G22: Please select
A23: Organiser’s administrative details
B24: Organisation
B25: Surname and first name
B26: Address
B27: Organiser’s nationality
B28: email
B29: Organiser’s website
B30: Reachable outside the event
B31: Reachable during the event
A33: Contact information of the person in charge of medical assistance (if applicable)
B34: Surname and first name
B35: Address
B36: Role during the event
B37: email
B38: Permission level | G38: Please select
B39: Belongs to organisation/hospital/etc...
B40: Reachable outside the event
B41: Reachable during the event
B42: Reachable through the organisers at number
A44: Any other RESPONSIBLE PERSONS whose contact details are to be passed on
B45: Surname and first name | E45: Role during event | H45: Mobile number
A52: Insurance information (if applicable)
B53: Which
B54: Type of contract
B55: Policy number
A57: Event build-up and tear-down
B58: Starting date of event build-up | G58: 00/00/0000 | H58: starting time | J58: 00:00:00
B59: End date of event tear-down | G59: 00/00/0000 | H59: duration | J59: 00:00:00
A61: Details of the responsible municipal officer (to be completed by the municipality)
B62: Surname and first name | G62: ='SECTION for the Organiser'!C12 -> 0
B63: Phone number | G63: ='SECTION for the Organiser'!C13 -> 0
B64: e-mail : | G64: ='SECTION for the Organiser'!C10 -> 0
P66: starting time
P67: duration
P68: cellP32-cellP31
G69: Completion check - section 1 | I69: =IF(OR(K21=0,K8=0,G3="",G22="Maak uw keuze",I14=0,G5="VERSIE 25",G6="Maak uw keuze"),1,0) -> 1

Sheet SECTION 2 - RISK ASSESSMENT
A1: SECTION 2 : MINIMUM ESSENTIAL QUESTIONS ASSESSMENT OF THE NECESSARY MEDICAL FACILITIES | G1: ='SECTION 1 - APPLICATION'!M3 -> VERSION 25 - 2011 02 18
A3: QUESTION | D3: SCORE (1)
A4: 1. | B4: DISTANCE FROM THE EVENT TO THE NEAREST AMBULANCE IN MINUTES | E4: =IF(D4>8,1,0) -> 0 | G4: Ambulance addresses
A5: 2. | B5: DISTANCE FROM THE EVENT TO THE NEAREST MUG SERVICE IN MINUTES | E5: =IF(D5>10,1,0) -> 0 | G5: MUG addresses
A6: 3. | B6: THE POPULATION DIFFERS FROM THE STANDARD POPULATION, RESULTING IN AN INCREASED RISK OF CARE/ILLNESS DURING THE EVENT | D6: Please select | E6: =IF(D6="ja",1,0) -> 0 | G6: CELL COLOUR CODE
A7: 4. | B7: THE FIRE DEPARTMENT HAS ESTABLISHED RISKS | D7: Please select | E7: =IF(D7="ja",1,0) -> 0 | G7: LIGHT YELLOW | H7: FILL IN CELL OR SELECT FROM A LIST
A8: 5. | B8: THE POLICE HAS ESTABLISHED RISKS | D8: Please select | E8: =IF(D8="ja",1,0) -> 0 | G8: BRIGHT YELLOW : | H8: SUGGESTED ANSWER (MAY BE MODIFIED)
B9: TOTAL SCORE | E9: =SUM(E4:E8) -> 0 | G9: LIGHT BLUE : | H9: AUTO-CALCULATED CELL
B10: SCORE TRANSLATION : IS A TEMPORARY MEDICAL CENTRE NEEDED | E10: =IF(E9>0,"JA", IF('SECTION 1 - APPLICATION'!K21>1500,"YES","NO")) -> NO | G10: LIGHT GREEN : | H10: FURTHER EXPLANATION OF OPTIONS
G11: WHITE : | H11: CELL NAME/SUBJECT
G12: ORANGE : | H12: NAME AND/OR INSTRUCTIONS
G13: BRIGHT GREEN | H13: COMPLETED CELL = OK
G14: SPECIFIC INSTRUCTIONS CAN BE FOUND IN THE FIELD COMMENTS
B31: Completion check - section 1 | C31: =IF(waardeluik1.1<>0,1,0) -> 1
B32: Completion check - section 2 | C32: =IF(AND($D$4<>"",$D$5<>"",$D$6<>"Maak uw keuze",$D$7<>"Maak uw keuze",$D$8<>"Maak uw keuze"),0,1) -> 1
B35: Control cells - section 2 | C35: D4 to D8

Sheet SECTION3 + SCORE
A1: SECTION 3 : ACTUAL RISK ANALYSIS ACCORDING TO SELECTED QUESTIONS QUESTION WITH SCORE | I1: COMPLETED SCORE | J1: COPY OUTCOME
A3: R1 : RISK AS 1 : ISOLATION RISK | I3: ISOLATION | L3: ='SECTION 1 - APPLICATION'!M3 -> VERSION 25 - 2011 02 18 | R3: ='SECTION 1 - APPLICATION'!M3 -> VERSION 25 - 2011 02 18
B5: CLASS | C5: NO | D5: QUESTION | E5: ANSWER OPTIONS | I5: SCORE | J5: Actual response time (in min) | R5: CELL COLOUR CODE
B6: ISOLATION FOR EMERGENCY SERVICES ARRIVING ON THE SCENE | C6: 1 | D6: Distance to ambulance | E6: ='SECTION 2 - RISK ASSESSMENT'!D4 -> 0 | I6: =E6 -> 0 | J6: =I6 -> 0 | R6: LIGHT YELLOW | S6: FILL IN CELL OR SELECT FROM A LIST
C7: 2 | D7: Distance to MUG | E7: ='SECTION 2 - RISK ASSESSMENT'!D5 -> 0 | I7: =E7 -> 0 | J7: =I7 -> 0 | R7: BRIGHT YELLOW : | S7: SUGGESTED ANSWER (MAY BE MODIFIED)
B8: EVENT ACCESSIBILITY | C8: 3 | D8: accessibility | E8: Please select | J8: =IF(E8="Aparte aanrijroute voor hulpdiensten",10,IF(E8="geen aparte aanrijroute voor hulpdiensten en meerdere grote aanrijroutes",8,IF(E8="Geen aparte aanrijroute voor hulpdiensten en beperkte toegang voor hulpdiensten en bezoekers",5,0))) -> 0 | R8: LIGHT BLUE : | S8: AUTO-CALCULATED CELL
B9: EVENT perimeter | C9: 5 | D9: Perimeter | I9: =E9 -> 0 | J9: =I9 -> 0 | R9: LIGHT GREEN : | S9: FURTHER EXPLANATION OF OPTIONS
B10: FIELD VARIABLES | C10: 6 | D10: Area (in km2) | I10: =E10 -> 0 | J10: =I10 -> 0 | R10: WHITE : | S10: CELL NAME/SUBJECT
C11: 7 | D11: Event length in km if no surface area is given. | E11: =IF(E10=0,"",IF(E10<>"","niet van toepassing","")) ->  | I11: =IF(E11="niet van toepassing",0,E11) ->  | R11: ORANGE : | S11: NAME AND/OR INSTRUCTIONS
C12: 8 | D12: Number of stages or tents that will host groups of more than 500 people | I12: =E12 -> 0
C13: 9 | D13: Subsurface | E13: Please select | I13: =IF(E13="zacht en vlak",1,IF(E13="zacht en golvend",2,0)) -> 0 | R13: SPECIFIC INSTRUCTIONS CAN BE FOUND IN THE FIELD COMMENTS
C14: 10 | D14: Structure | E14: Please select | I14: =IF(E14="Tijdelijke structuur",1,IF(E14="Oneigenlijk gebruik van structuur",2,0)) -> 0
C15: 11 | D15: Stairs present | E15: Please select | I15: =IF(E15="ja",2,0) -> 0
C16: 12 | D16: Seating | E16: Please select | I16: =IF(E16="ja",2,0) -> 0 | J16: BLS score (no 8-12)
C17: 13 | D17: Location | E17: Please select | I17: =IF(E17="binnen",1,0) -> 0 | J17: =SUM(I13:I17) -> 0
B18: ISOLATION FOR DEPARTING VEHICLES | C18: 14 | D18: Distance to the nearest emergency department | F18: Emergency department addresses | I18: =E18 -> 0
B19: ISOLATION FOR LOCAL RESIDENTS | C19: 15 | D19: Residents inside isolation perimeter | E19: =IF('SECTION 1 - APPLICATION'!I17=0,"NEEN","JA") -> NEEN | F19: If the answer to question 15 is NO, please skip questions 16 through 20. | I19: =IF(E19="ja",1,0) -> 0
C20: 16 | D20: Retirement home/hospital inside perimeter | E20: =IF($E$19="neen","Niet van toepassing","Maak uw keuze") -> Niet van toepassing | I20: 0
C21: 17 | D21: On-call GP needed inside perimeter | E21: =IF($E$19="neen","Niet van toepassing","Maak uw keuze") -> Niet van toepassing | I21: 0
C22: 18 | D22: On-call nurse needed inside perimeter | E22: =IF($E$19="neen","Niet van toepassing","Maak uw keuze") -> Niet van toepassing | I22: 0
C23: 19 | D23: meal delivery needed inside perimeter | E23: =IF($E$19="neen","Niet van toepassing","Maak uw keuze") -> Niet van toepassing | I23: 0
C24: 20 | D24: on-call pharmacist needed inside perimeter | E24: =IF($E$19="neen","Niet van toepassing","Maak uw keuze") -> Niet van toepassing | I24: 0 | J24: LRES score (no 14-20)
C25: 21 | D25: Number of municipalities concerned | E25: Please select | I25: =IF(E25="> dan 1 gemeente",1,0) -> 0 | J25: =SUM(I19:I25) -> 0
A27: R2 : RISK AS 2 : POPULATION RISK | I27: POPULATION
B29: CLASS | C29: NO | D29: QUESTION | F29: AMOUNT ENTERED | G29: TOTAL | I29: SCORE
B30: APPLICABLE POPULATION | C30: 22 | D30: a | E30: expected number of visitors | F30: ='SECTION 1 - APPLICATION'!I14 -> 0
D31: b | E31: expected number of participants | F31: ='SECTION 1 - APPLICATION'!I15 -> 0
D32: c | E32: expected size of the organiser’s team present at event | F32: ='SECTION 1 - APPLICATION'!I16 -> 0
D34: d | E34: number of local resident inside isolation perimeter | F34: ='SECTION 1 - APPLICATION'!I17 -> 0
D35: e | E35: Reduction due to population shift | F35: ='SECTION 1 - APPLICATION'!I18 -> 0 | J35: Population (No 21)
D36: f | E36: % of total population present at the same time | F36: ='SECTION 1 - APPLICATION'!I20 -> 100
B37: TOTAL POPULATION AT EVENT | G37: ='SECTION 1 - APPLICATION'!K21 -> 0 | J37: =G37 -> 0
A39: R3 : RISK AS 3 : HEALTH RISKS | I39: HEALTH
B41: CLASS | C41: NO | D41: QUESTION | E41: ANSWER OPTIONS | I41: SCORE
B42: AGE | C42: 23 | D42: Predominant age group | E42: Please select | I42: =IF(E42="tss 10-20 jaar en/of tss 35-65 jaar",1,IF(E42="tss 20-35 jaar",2,IF(E42="> 65 jaar",4,IF(E42="< 10 jaar met begeleiding van de ouders",4,IF(E42="< 10 jaar zonder begeleiding van de ouders",10,0))))) -> 0
B43: ALCOHOL CONSUMPTION | C43: 24 | D43: Is alcohol consumption expected | E43: Please select | I43: =IF(E43="Aanwezig met risicoverwachting",3,IF(E43="Overvloedig gebruik",6,0)) -> 0
B44: DRUG USE | C44: 25 | D44: Is drug use expected | E44: Please select | I44: =IF(E44="Aanwezig met risicoverwachting",10,IF(E44="Overvloedig gebruik",17,0)) -> 0
B45: HEALTH | C45: 26 | D45: Audience type | E45: Please select | I45: =IF(E45="Eén type van publiek",2,0) -> 0
C46: 27 | D46: Known illness among at least 10% of the audience | E46: Please select | I46: =IF(E46="Gehandicapten of milde pathologie met chronische behandeling",1,IF(E46="Ernstige pathologie met chronische behandeling",2,0)) -> 0 | J46: Exact duration of the event (No 31)
C47: 28 | D47: Catering | E47: Please select | I47: =IF(E47="Koude voeding",1,IF(E47="Warme voeding",2,0)) -> 0 | J47: =E52*I53/100 -> 0
B48: ACCOMMODATION | C48: 29 | D48: Accommodation for visitors | E48: Please select | I48: =IF(E48="ja",1,0) -> 0
C49: 30 | D49: Accommodation for organisers | E49: Please select | I49: =IF(E49="ja",1,0) -> 0
B50: EVENT TYPE | C50: 31 | D50: Event type | E50: ='SECTION 1 - APPLICATION'!$G$6 -> ALL OTHER EVENTS | I50: =IF(E50="alle andere betogingen",24,IF(E50="ALLE ANDERE EVENEMENTEN",10,IF(E50="Autosport",24,IF(E50="Bazar",5,IF(E50="Beurs",5,IF(E50="braderie",5,IF(E50="Competitiesport",17,IF(E50="Concert van klassieke muziek",5,J50)))))))) -> 0 | J50: =IF(E50="Danssportevenement",10,IF(E50="Evenement met techno/house en/of aanverwante muziekvorm",32,IF(E50="Folkloristisch feest",10,IF(E50="Karnaval",17,IF(E50="Kerstmarkt",10,IF(E50="Kleine (aangekondigde) betoging",17,K50)))))) -> 0 | K50: =IF(E50="Marathon",17,IF(E50="Markt",5,IF(E50="Meerdaagse wandelmarsen",17,IF(E50="Motorsport",24,IF(E50="Muziekevenement (andere dan klassieke muziek of rock/house/techno)",17,IF(E50="Optochten",10,IF(E50="Pensenkermis",5,L50))))))) -> 0 | L50: =IF(E50="Rockconcert",32,IF(E50="Show",5,IF(E50="Sportevenement (behalve marathon, wielrennen, meerdaagse wandelmarsen of competitie)",10,IF(E50="Straatfestival (behalve karnaval)",10,IF(E50="Tentoonstelling",5,IF(E50="Theater",5,IF(E50="Vliegshow",24,M50))))))) -> 0 | M50: =IF(E50="Vliegshow static ",5,IF(E50="Huwelijk BV",10,IF(E50="Wielrennen achter derny",17,IF(E50="Eroticabeurs",5,IF(E50="Vlooienmarkt",5,IF(E50="Volksbal",5,IF(E50="Vuurwerk",17,N50))))))) -> 0 | N50: =IF(E50="Wielrennen",17,IF(E50="Fuif",17,IF(E50="Ballonvaart",17,IF(E50="Politieke manifestatie",32,0)))) -> 0
C51: 32 | D51: Event duration | E51: ='SECTION 1 - APPLICATION'!$K$8 -> FALSE | I51: =IF(E51<5,0,IF(AND(E51>5,E51<13),2,IF(AND(E51>12,E51<25),4,IF(E51>24,6,0)))) -> 6
C52: 33 | D52: Exact event duration in hours | E52: ='SECTION 1 - APPLICATION'!$K$8 -> FALSE | F52: DURATION
C53: 34 | D53: Amount of time that the event will be attended by people (in%) | F53: % | I53: =E53 -> 0 | J53: HEA score
C54: 35 | D54: Time of event | E54: Please select | I54: =IF(E54="(Ook) buiten de werkuren",4,0) -> 0 | J54: (22-33) minus question 31
B55: TEMPERATURE AND HUMIDITY | C55: 36 | D55: expected temperature | E55: Please select | I55: =IF(E55="Aanwezigheid van airco",7,IF(E55="0°C-3°C",15,IF(E55="< 0°C",33,IF(E55="4°C-7°C",7,IF(E55="17°C-22°C",7,IF(E55="22°C-27°C",15,IF(E55="> 27°C",33,0))))))) -> 0 | J55: =SUM(I42:I51)+SUM(I54:I55) -> 6 | L55: =IF(E55="< 0°C",1,0) -> 0 | M55: =IF(E55="0°C-3°C",1,0) -> 0 | N55: =IF(E55="4°C-7°C",1,0) -> 0 | O55: =IF(E55="22°C-27°C",1,0) -> 0 | P55: =IF(E55="> 27°C",1,0) -> 0
A57: R4 : RISK AS 4 : OBJECTIVATION | I57: OBJECTIVATION
B59: CLASS | C59: NO | D59: QUESTION | E59: ANSWER OPTIONS | I59: SCORE | J59: REG score (34+35)
B60: TRACK RECORD | C60: 37 | D60: Organiser’s reputation with safety services | E60: ='SECTION for the Organiser'!E17 -> To be completed by the disaster officer | I60: =IF(E60="niet OK en/of onbekend",1,0) -> 0
C61: 38 | D61: Event age | E61: ='SECTION for the Organiser'!E18 -> To be completed by the disaster officer | I61: =IF(E61="4 tot 9 maal",1,IF(E61="3 maal of minder",2,IF(E61="onbekend",2,0))) -> 0 | J61: =SUM(I60:I62) -> 0
C62: 39 | D62: Record available | E62: Please select | I62: =IF(E62="neen",1,IF(E62="onbekend",1,0)) -> 0
B64: MEDICAL LITERATURE | C64: 40 | D64: Problems to be expected according to medical literature (+specify which literature) | E64: ='SECTION for the Organiser'!E19 -> To be completed by the disaster officer | I64: =IF(E64="ja (enkel wanneer dit meegedeeld werd)",1,0) -> 0 | J64: LIT score (36)
J65: =I64 -> 0
B66: MULTIDISCIPLINARY COORDINATION | C66: 41 | D66: Presence of utilities | E66: Please select | I66: =IF(E66="Beperkte standaardvoorzieningen",1,IF(E66="Specifiek geplaatst voor dit evenement",2,0)) -> 0
C67: 42 | D67: Means of communication | E67: Please select | I67: =IF(E67="Aparte communicatiestructuur voor dit evenement of geen communicatie",1,0) -> 0
C68: 43 | D68: Presence of dangerous animals | E68: Please select | I68: =IF(E68="ja",1,0) -> 0
C69: 44 | D69: International reputation and language problems (> 9 % foreigners expected) | E69: Please select | I69: 0
C70: 45 | D70: Presence of fireworks | E70: Please select | I70: 0
C71: 46 | D71: Presence of weapons | E71: Please select | I71: 0
C72: 47 | D72: Sold out | E72: Please select | I72: 0
C73: 48 | D73: Simultaneous increased-risk events nearby | E73: Please select | I73: 0
C74: 49 | D74: Specific risks in the area | E74: Please select | I74: 0
C75: 50 | D75: Problem according to police | E75: ='SECTION 2 - RISK ASSESSMENT'!D8 -> Please select | I75: 0
C76: 51 | D76: Problem according to the fire department | E76: ='SECTION 2 - RISK ASSESSMENT'!D7 -> Please select | I76: 0
C77: 52 | D77: Previous negative experience with this type of event | E77: ='SECTION for the Organiser'!E21 -> To be completed by the disaster officer | I77: 0
C78: 53 | D78: Event has own security in addition to police | E78: Please select | I78: =IF(E78="Eigen security",1,IF(E78="Geen security",3,0)) -> 0 | J78: MUL score (37-46)
C79: 54 | D79: Specific legislation concerning this type of event | E79: ='SECTION for the Organiser'!E22 -> To be completed by the disaster officer | I79: =IF(E79="ja",1,0) -> 0 | J79: =SUM(I66:I79)+I104 -> 1
B81: SPECIFIC MULTIDISCIPLINARY POINTS OF ATTENTION | C81: 55 | D81: Are tents open to the public | E81: Please select | I81: =IF(E81="JA",1,0) -> 0
C82: 56 | D82: Number of tents with a surface area greater than 50 m2 | E82: Please select | I82: =IF(E82="meer dan 1",1,IF(E82=1,1,0)) -> 0 | J82: =E82 -> Please select
C83: 57 | D83: Main utilities used | E83: Please select | I83: =IF(OR(E83="gasflessen",E83="aansluiting op een electrogeengroep",E83="aansluiting op het elektriciteitsnet",E83="andere",E83="onbekend"),1,0) -> 0
C84: 58 | D84: Are VIPs expected | E84: Please select | I84: 0
C85: 59 | D85: Are there NADAR or HERAS fences | E85: Please select | I85: 0
C86: 60 | D86: Is the event easily accessible by public transport | E86: Please select | I86: =IF(E86="niet van toepassing",0,1) -> 1
C87: 61 | D87: Are there enough car parks nearby | E87: Please select | I87: 0
C88: 62 | D88: Are the car parks supervised in any way (alerting emergency services in the event of an emergency) | E88: Please select | I88: 0
C89: 63 | D89: Does the event have its own shuttle service | E89: Please select | I89: 0
A91: R5 : RISK AS 5 : PREPAREDNESS | I91: PREPAREDNESS
B93: CLASS | C93: NO | D93: QUESTION | E93: ANSWER OPTIONS | I93: SCORE
B94: PREPAREDNESS | C94: 64 | D94: Are there adequate maps of the site | E94: Please select | I94: =IF(E94="neen",1,IF(E94="onbekend",1,0)) -> 0
C95: 65 | D95: Are there adequate maps of the entire isolation area | E95: Please select | I95: =IF(E95="neen",1,IF(E95="onbekend",1,0)) -> 0
C96: 66 | D96: Is there shelter from extreme weather conditions on the site if necessary | E96: Please select | I96: =IF(E96="neen",1,0) -> 0
C97: 67 | D97: Does the communication model comply with DGH requirements | E97: ='SECTION for the Organiser'!E24 -> To be completed by the disaster officer | I97: =IF(E97="neen",1,IF(E97="onbekend",1,0)) -> 0
C98: 68 | D98: Has the 100 switchboard been notified? | E98: ='SECTION for the Organiser'!E25 -> To be completed by the disaster officer | I98: =IF(E98="neen",1,IF(E98="onbekend",1,0)) -> 0
C99: 69 | D99: Is the Medical Intervention Plan compliant with the Royal Decree of 16/02/06 | E99: ='SECTION for the Organiser'!E26 -> To be completed by the disaster officer | I99: =IF(E99="neen",1,0) -> 0 | J99: MIP score (47-53)
J100: =SUM(I94:I99) -> 0
B101: HC100 | C101: 70 | D101: Has the application form with relevant information been submitted to the HC100 (DOC 100) | E101: ='SECTION for the Organiser'!E29 -> neen | I101: =IF(E101="neen",1,IF(E101="niet van toepassing","nihil",0)) -> 1
C102: 71 | D102: Have the site maps been submitted to the HC100 | E102: ='SECTION for the Organiser'!E30 -> To be completed by FPS | I102: =IF(E102="neen",1,IF(E102="niet van toepassing","nihil",IF(E102="onbekend",1,0))) -> 0
B104: OPERATION ORDER | C104: 72 | D104: Should an operation order be drawn up for the emergency medical service | E104: ='SECTION for the Organiser'!E32 -> ja | I104: =IF(E104="ja",1,IF(E104="onbekend",1,0)) -> 1
E121: Completion check - section 1 | F121: =waardeluik1.1 -> 1
E122: Completion check - section 2 | F122: =waardeluik2.2 -> 1
E123: Completion check - section 4 | F123: =Waardeluik4.4 -> 
E124: Completion check - section 3 | F124: =IF(AND($E$42<>"Maak uw keuze",$E$43<>"Maak uw keuze",$E$44<>"Maak uw keuze",$E$45<>"Maak uw keuze",$E$46<>"Maak uw keuze",$E$47<>"Maak uw keuze",$E$48<>"Maak uw keuze",$E$53<>"Maak uw keuze",$E$54<>"Maak uw keuze",$E$55<>"Maak uw keuze",E9<>"",E12<>""),0,1) -> 1
E125: control value for expected resources/facilities 0 ==> print or e-mail | F125: =IF(waardeluik1.1=1,"?",IF(waardeluik3.3=1,"?",IF(SECTION5!F13>0.5,1,0))) -> ?
E126: print no Nurse... = OK | F126: =SUM(F121:F125) -> 

Sheet SECTION 4 - PUBLIC HEALTH RISKS
A1: NOTE : WHY THESE QUESTIONS
A2: These questions are points of attention. The intention is not to check which arrangements the organiser has and has not made; the aim is to bring these potential problems to the organiser’s attention. Questions answered affirmatively will not be revisited in the advisory report; questions answered negatively will automatically be revisited in the advisory report
A4: SECTION 4 A : OTHER SHORT-TERM HEALTH EFFECTS OTHER THAN THE EFFECTS OF (URGENT) MEDICAL ASSISTANCE PROVIDED
A6: CLASS | B6: NO | C6: QUESTION | D6: ANSWER | J6: RESULT | L6: ='SECTION 1 - APPLICATION'!M3 -> VERSION 25 - 2011 02 18
A7: IMPORTANT POINTS OF ATTENTION AT THE EVENT | B7: 58 | C7: Sunburn can lead to avoidable problems for people attending the event. Have the organisers asked visitors to bring sunglasses, hats and sun cream through the media and/or other channels (e.g. tickets/information packages) in the run-up to the event | D7: Please select | J7: =IF(D7="neen",1,0) -> 0
B8: 59 | C8: Various people attending the event sometimes exhibit clearly negative behaviour. Are there procedures in place for the organiser and/or emergency services to counteract any negative behaviour | D8: Please select | J8: =IF(D8="neen",1,0) -> 0 | L8: CELL COLOUR CODE
B9: 60 | C9: Will the organiser provide a free water distribution system when the outside temperature exceeds 27°C | D9: Please select | J9: 0 | L9: LIGHT YELLOW | M9: FILL IN CELL OR SELECT FROM A LIST
B10: 61 | C10: Will there be sufficient toilets at the event (fixed and, if necessary, portable toilets). | D10: Please select | J10: 0 | L10: BRIGHT YELLOW : | M10: SUGGESTED ANSWER (MAY BE MODIFIED)
B11: 62 | C11: Has an individual been appointed as the person responsible for monitoring the hygiene and cleanliness of the, who can mobilise people to clean the toilets (and the surrounding area) if necessary | D11: Please select | J11: 0 | L11: LIGHT BLUE : | M11: AUTO-CALCULATED CELL
B12: 63 | C12: Will dustbins be easily recognisable for the people attending the event (if possible highlighted with icons) | D12: Please select | J12: 0 | L12: LIGHT GREEN : | M12: FURTHER EXPLANATION OF OPTIONS
B13: 64 | C13: Has the organiser set up a separate waste collection system for the event | D13: Please select | J13: 0 | L13: WHITE : | M13: CELL NAME/SUBJECT
B14: 65 | C14: If waste cannot be collected at or near the event, have arrangements been made for a municipal department responsible to collect the waste produced by the event | D14: Please select | J14: 0 | L14: ORANGE : | M14: NAME AND/OR INSTRUCTIONS
B15: 66 | C15: Is there a cold chain in place for food stalls (refrigerators/freezers and the required power supply) | D15: Please select | J15: 0 | L15: BRIGHT GREEN | M15: COMPLETED CELL = OK
B16: 67 | C16: Has attention been paid to fire prevention and fire safety measures at stalls that prepare and serve hot drinks and/or food (e.g. fire extinguishers, fire blankets, certificates, etc.) | D16: Please select | J16: 0 | L16: SPECIFIC INSTRUCTIONS CAN BE FOUND IN THE FIELD COMMENTS
B17: 68 | C17: Were people with chronic illnesses who bought tickets to the event advised to bring and carry with them/ hand in to the aid station a medical card, so that the appropriate assistance can be provided in the event of medical problems | D17: Please select | J17: 0
B18: 69 | C18: During ticket sales, is a flyer distributed with information about prevention, drawn up with the help of the medical section | D18: Please select | J18: 0
A19: ADDITIONAL POINTS OF ATTENTION REGARDING THE CAMPSITE | B19: 70 | C19: Does the drinking water system on the campsite(s) have a sufficient flow rate to cope with the massive demand for water for the entire duration of the event | D19: =IF('SECTION 1 - APPLICATION'!G$22="neen","Niet van toepassing","Maak uw keuze") -> Maak uw keuze | J19: 0
B20: 71 | C20: Will there be sufficient toilets on the campsite (fixed and, if necessary, portable toilets). | D20: =IF('SECTION 1 - APPLICATION'!G$22="neen","Niet van toepassing","Maak uw keuze") -> Maak uw keuze | J20: 0
B21: 72 | C21: Will there be sufficient showers on the campsite | D21: =IF('SECTION 1 - APPLICATION'!G$22="neen","Niet van toepassing","Maak uw keuze") -> Maak uw keuze | J21: 0
B22: 73 | C22: Will it be possible to store and label chronic medication brought to the aid station by persons with a chronic condition | D22: =IF('SECTION 1 - APPLICATION'!G$22="neen","Niet van toepassing","Maak uw keuze") -> Maak uw keuze | J22: 0
D24: Overall score | J24: =SUM(J7:J22) -> 0
D25: “Event” score | J25: =SUM(J7:J18) -> 0
D26: “Campsite” score | J26: =SUM(J19:J22) -> 0
C28: PRACTICAL CONSEQUENECS
B29: 1 | C29: Are additional measures at or near the event required | D29: =IF(J25=0,"NEEN","JA") -> NEEN
B30: 2 | C30: Are additional measures at or near the campsite required | D30: =IF(J26=0,"NEEN","JA") -> NEEN
B32: 3 | C32: IS A TEMPORARY MEDICAL CENTRE NEEDED | D32: =SECTION5!E16 -> 
C48: Completion check - section 1 | D48: =waardeluik1.1 -> 1
C49: Completion check - section 2 | D49: =waardeluik2.2 -> 1
C50: Completion check - section 4 | D50: =IF(AND($D$7<>"Maak uw keuze",$D$8<>"Maak uw keuze",$D$9<>"Maak uw keuze",$D$10<>"Maak uw keuze",$D$11<>"Maak uw keuze",$D$12<>"Maak uw keuze",$D$13<>"Maak uw keuze",$D$14<>"Maak uw keuze",$D$15<>"Maak uw keuze",$D$16<>"Maak uw keuze",$D$17<>"Maak uw keuze",$D$18<>"Maak uw keuze",$D$19<>"Maak uw keuze",$D$20<>"Maak uw keuze",$D$21<>"Maak uw keuze",$D$22<>"Maak uw keuze"),0,1) -> 1
C51: control value Temporary Medical Centre: YES(1) / NO(0) | D51: =IF(D32="NEEN",0,1) ->  | H51: cell D32 = control via section 5 : BLS and other aid worker controls
C52: print temporary medical centre NO = OK | D52: =SUM(D48:D51) -> 

Sheet Addresses Ambulance
A1: Terug naar invulluik
A2: Ziekenwagendiensten
A3: POST-NUMMER | B3: GEMEENTE | C3: DIENST | D3: ADRES | E3: PROVINCIE
A4: 2018 | B4: ANTWERPEN | C4: SINT VINCENTIUS | D4: SINT VINCENTIUSSTRAAT 20 | E4: ANTWERPEN
A5: 2020 | B5: ANTWERPEN | C5: ZNA campus MIDDELHEIM | D5: LINDENDREEF 1 | E5: ANTWERPEN
A6: 2030 | B6: ANTWERPEN | C6: Brandweer ANTWERPEN | D6: NOORDERLAAN 69 | E6: ANTWERPEN
A7: 2030 | B7: ANTWERPEN 3 | C7: SIWHA/ Rode Kruis HAVEN | D7: MULHOUSENLAAN NOORD 1/3 | E7: ANTWERPEN
A8: 2060 | B8: ANTWERPEN | C8: ZNA campus STUIVENBERG | D8: LANGE BEELDEKENSSTRAAT 267 | E8: ANTWERPEN
A9: 2100 | B9: DEURNE | C9: MONICA Deurne | D9: FLORENT PAUWELSTRAAT 1 | E9: ANTWERPEN
A10: 2110 | B10: WIJNEGEM | C10: AMBUMED | D10: BIJKHOEVELAAN 8 | E10: ANTWERPEN
A11: 2170 | B11: MERKSEM | C11: ZNA campus JAN PALFIJN | D11: LANGE BREMSTRAAT 70 | E11: ANTWERPEN
A12: 2200 | B12: HERENTALS | C12: SINT ELISABETH HERENTALS | D12: NEDERRIJ 133 | E12: ANTWERPEN
A13: 2220 | B13: HEIST OP DEN BERG | C13: Brandweer HEIST-OP-DEN-BERG | D13: BROEKSTRAAT 46A | E13: ANTWERPEN
A14: 2235 | B14: HOUTVENNE | C14: HULSHOUTSE AMBULANCEDIENST | D14: VENNEKENSSTRAAT 103 A | E14: ANTWERPEN
A15: 2260 | B15: WESTERLO | C15: Brandweer WESTERLO | D15: VISMARKT 24 | E15: ANTWERPEN
A16: 2300 | B16: TURNHOUT | C16: Brandweer TURNHOUT | D16: PARKLAAN 12 | E16: ANTWERPEN
A17: 2300 | B17: TURNHOUT | C17: SINT ELISABETH TURNHOUT | D17: RUBENSSTRAAT 160 | E17: ANTWERPEN
A18: 2320 | B18: HOOGSTRATEN | C18: Brandweer HOOGSTRATEN | D18: ST LENAERTSEWEG 38 | E18: ANTWERPEN
A19: 2340 | B19: BEERSE | C19: AMBULANCEDIENST BEERSE | D19: IJZERSTRAAT 3 | E19: ANTWERPEN
A20: 2370 | B20: ARENDONK | C20: Rode Kruis ARENDONK | D20: HOVESTRAAT 44 | E20: ANTWERPEN
A21: 2390 | B21: MALLE | C21: AZ ST.-JOZEF | D21: OUDE LIERSEBAAN 4 | E21: ANTWERPEN
A22: 2390 | B22: MALLE | C22: Brandweer MALLE | D22: TURNHOUTSEBAAN 8 | E22: ANTWERPEN
A23: 2400 | B23: MOL | C23: Brandweer MOL + PIT | D23: AMBACHTSTRAAT 18 | E23: ANTWERPEN
A24: 2440 | B24: GEEL | C24: Brandweer GEEL | D24: STELENSEWEG 92 | E24: ANTWERPEN
A25: 2440 | B25: GEEL | C25: SINT DIMPNA GEEL | D25: J.B. STESSENSTRAAT 2 | E25: ANTWERPEN
A26: 2490 | B26: BALEN | C26: Brandweer BALEN | D26: VREDELAAN 1 | E26: ANTWERPEN
A27: 2500 | B27: LIER | C27: KLINIEK H.-HART | D27: MECHELSESTRAAT 24 | E27: ANTWERPEN
A28: 2570 | B28: DUFFEL | C28: ST.-MAARTEN Campus Duffel | D28: ROOIENBERG 25 | E28: ANTWERPEN
A29: 2590 | B29: BERLAAR | C29: Rode Kruis BERLAAR | D29: PASTORIJSTRAAT 25 | E29: ANTWERPEN
A30: 2610 | B30: WILRIJK | C30: ST. AUGUSTINUS | D30: OOSTERVELDLAAN 24 | E30: ANTWERPEN
A31: 2650 | B31: EDEGEM | C31: UNIVERSITAIR Ziekenhuis ANTWERPEN | D31: WILRIJKSTRAAT 10 | E31: ANTWERPEN
A32: 2800 | B32: MECHELEN | C32: ST.-MAARTEN Campus Mechelen | D32: LEOPOLDSTRAAT 2 | E32: ANTWERPEN
A33: 2820 | B33: BONHEIDEN | C33: IMELDA Ziekenhuis | D33: IMELDALAAN 9 | E33: ANTWERPEN
A34: 2830 | B34: WILLEBROEK | C34: Brandweer WILLEBROEK | D34: BRANDWEERPLEIN 1 | E34: ANTWERPEN
A35: 2840 | B35: RUMST | C35: PIT HEILIGE FAMILIE RUMST | D35: S HERENBAAN 172 | E35: ANTWERPEN
A36: 2850 | B36: BOOM | C36: Brandweer BOOM | D36: DIJLEWEG 5 | E36: ANTWERPEN
A37: 2880 | B37: BORNEM | C37: Brandweer BORNEM | D37: LINDESTRAAT 136 | E37: ANTWERPEN
A38: 2910 | B38: ESSEN | C38: Gemeente ESSEN | D38: HEUVELPLEIN 23 | E38: ANTWERPEN
A39: 2920 | B39: KALMTHOUT | C39: Gemeente KALMTHOUT | D39: KERKENEIND 17 | E39: ANTWERPEN
A40: 2930 | B40: BRASSCHAAT | C40: KLINA | D40: AUGUSTIJNSLEI 100 | E40: ANTWERPEN
A41: 2990 | B41: WUUSTWEZEL | C41: Brandweer WUUSTWEZEL | D41: ALOIS BLOMMAERTSTRAAT 3 | E41: ANTWERPEN
A42: 1301 | B42: WAVRE | C42: Service d'Incendie BIERGES-WAVRE | D42: CHAUSSEE DE NAMUR 115 | E42: BRABANT WALLON
A43: 1340 | B43: LA HULPE | C43: ADM. COMM. LA HULPE | D43: RUE E. SOYER 7 | E43: BRABANT WALLON
A44: 1370 | B44: JODOIGNE | C44: SC PERSON AID | D44: RUE DE LA MALADRERIE 100 | E44: BRABANT WALLON
A45: 1400 | B45: NIVELLES | C45: Service d'Incendie NIVELLES | D45: CHAUSSEE DE CHARLEROI 46C | E45: BRABANT WALLON
A46: 1420 | B46: BRAINE L'ALLEUD | C46: Service d'Incendie BRAINE-L'ALLEUD | D46: CHAUSSEE DE MONT ST JEAN 120 | E46: BRABANT WALLON
A47: 1480 | B47: TUBIZE | C47: Service d'Incendie TUBIZE | D47: RUE FERRER 91 | E47: BRABANT WALLON
A48: 6041 | B48: GOSSELIES | C48: ASBL BHN AMBU | D48: Faubourg de BRUXELLES 154 | E48: BRABANT WALLON
A49: 1000 | B49: BRUXELLES | C49: BRUXELLES SI - Brandweer Brussel + PIT ST PIERRE | D49: AVENUE DE L' HELIPORT 11-15 | E49: BRUXELLES
A50: 1120 | B50: BRUXELLES | C50: HMRA | D50: RUE BRUYN 1 | E50: BRUXELLES
A51: 1180 | B51: BRUXELLES | C51: CROIX ROUGE DE BELGIQUE | D51: Rue de STALLE 96 | E51: BRUXELLES
A52: 6000 | B52: CHARLEROI | C52: Service d'Incendie CHARLEROI | D52: RUE DE L'ANCRE 3 | E52: HAINAUT
A53: 6031 | B53: MONCEAU-SUR-SAMBRE | C53: AMBULANCE COCCINELLE | D53: RUE DE GOUTROUX 81 | E53: HAINAUT
A54: 6040 | B54: JUMET | C54: Poste Avancé DE CHARLEROI | D54: ZONING INDUSTRIEL 1ERE RUE | E54: HAINAUT
A55: 6060 | B55: GILLY | C55: S.A.P.G | D55: RUE HORACE PIERARD 84 | E55: HAINAUT
A56: 6060 | B56: GILLY | C56: PIT Gilly | D56: Rue de la Duchère, 6 | E56: HAINAUT
A57: 6110 | B57: MONTIGNIES-LE-TILLEUL | C57: C.H.U. de Charleroi; site Hôpital A. VESALE | D57: ROUTE DE GOZEE 706 | E57: HAINAUT
A58: 6460 | B58: CHIMAY | C58: Service d'Incendie CHIMAY | D58: RUE FISCHBACH 21 | E58: HAINAUT
A59: 6500 | B59: BEAUMONT | C59: Service d'Incendie BEAUMONT | D59: CHAUSSEE DE MONS 17 | E59: HAINAUT
A60: 6530 | B60: THUIN | C60: Service d'Incendie THUIN | D60: ROUTE DE BIESME, 16 | E60: HAINAUT
A61: 7033 | B61: CUESMES | C61: Service d'Incendie MONS | D61: Rue des Sandrinettes 29 | E61: HAINAUT
A62: 7060 | B62: SOIGNIES | C62: Service d'Incendie SOIGNIES | D62: RUE DE LA SENNE 72 | E62: HAINAUT
A63: 7090 | B63: BRAINE-LE-COMTE | C63: Service d'Incendie BRAINE-LE-COMTE | D63: RUE DES ETATS-UNIS 9 | E63: HAINAUT
A64: 7100 | B64: LA LOUVIERE | C64: Service d'Incendie LA LOUVIERE | D64: BLD ROI BAUDOIN,1 | E64: HAINAUT
A65: 7133 | B65: BUVRINNES | C65: AMBULANCES LAUTE | D65: RUE DE MERBES, 220 | E65: HAINAUT
A66: 7331 | B66: BAUDOUR | C66: Croix Rouge ST-GHISLAIN | D66: RUE LOUIS CATY, 136 | E66: HAINAUT
A67: 7331 | B67: BAUDOUR | C67: Pit Baudour | D67: RUE LOUIS CATY, 136 | E67: HAINAUT
A68: 7380 | B68: QUIEVRAIN | C68: Service d'Incendie QUIEVRAIN | D68: PLACE DU BALLODROME | E68: HAINAUT
A69: 7500 | B69: TOURNAI | C69: Service d'Incendie TOURNAI | D69: Avenue du Maire, 89 | E69: HAINAUT
A70: 7600 | B70: PERUWELZ | C70: Service d'Incendie PERUWELZ | D70: RUE CASTIAU 13 | E70: HAINAUT
A71: 7700 | B71: MOUSCRON | C71: Service d'Incendie MOUSCRON | D71: AVENUE DU BARRY 9 | E71: HAINAUT
A72: 7780 | B72: COMINES | C72: Service d'Incendie COMINES | D72: RUE DE LA PROCESSION 47 | E72: HAINAUT
A73: 7800 | B73: ATH | C73: S.I. ATH | D73: BD DU CHÂTEAU 19 | E73: HAINAUT
A74: 7850 | B74: ENGHIEN | C74: Service d'Incendie ENGHIEN | D74: REMPART ST CHRISTOPHE 37 | E74: HAINAUT
A75: 7860 | B75: LESSINES | C75: Service d'Incendie LESSINES | D75: RUE DES 4 FILS AYMONT 52B | E75: HAINAUT
A76: 7900 | B76: LEUZE-EN-HAINAUT | C76: Service d'Incendie LEUZE-EN-HAINAUT | D76: TOUR ST PIERRE 13 | E76: HAINAUT
A77: 7970 | B77: BELOEIL | C77: Service d'Incendie BELOEIL | D77: RUE DE LA FORGETTE,2 | E77: HAINAUT
A78: 4000 | B78: LIEGE | C78: Croix Rouge LIEGE | D78: RUE DARCHIS 6 | E78: LIEGE
A79: 4020 | B79: LIEGE | C79: I.I.L.E. | D79: RUE RANSONNET 5 | E79: LIEGE
A80: 4030 | B80: GRIVEGNEE | C80: Ambulances J. Courtois | D80: RUE BELVAUX 51 | E80: LIEGE
A81: 4040 | B81: HERSTAL | C81: PIT Andre Renard HERSTAL | D81: RUE ANDRE RENARD 1 | E81: LIEGE
A82: 4040 | B82: HERSTAL | C82: Croix Rouge HERSTAL | D82: RUE DERRIERE LES RHIEUX 57 | E82: LIEGE
A83: 4100 | B83: SERAING | C83: NEW SPEED AMBULANCE | D83: BOULEVARD PASTEUR 2 | E83: LIEGE
A84: 4100 | B84: SERAING | C84: SPEED AMBULANCE | D84: BOULEVARD PASTEUR 2 | E84: LIEGE
A85: 4180 | B85: HAMOIR | C85: Service d'Incendie HAMOIR | D85: RUE DE TOHOGNE 10 | E85: LIEGE
A86: 4280 | B86: HANNUT | C86: Service d'Incendie HANNUT | D86: RUE JOSEPH WAUTERS 65 | E86: LIEGE
A87: 4300 | B87: WAREMME | C87: Service d'Incendie WAREMME | D87: RUE ERNEST MALVOZ 30 | E87: LIEGE
A88: 4367 | B88: CRISNEE | C88: Protection Civile KEMEXHE | D88: RUE VINCENT BONNECHERE 30 | E88: LIEGE
A89: 4500 | B89: HUY | C89: Service d'Incendie HUY | D89: RUE DE LA MAIRIE 30 | E89: LIEGE
A90: 4630 | B90: SOUMAGNE | C90: AMBULANCES MOREAU | D90: AV. DE LA RESISTANCE 405 | E90: LIEGE
A91: 4650 | B91: BATTICE-HERVE | C91: Service d'Incendie BATTICE-HERVE | D91: AVENUE DE WANDRE 47B | E91: LIEGE
A92: 4671 | B92: BLEGNY | C92: Croix Rouge BLEGNY | D92: RUE DE BARCHON 62 | E92: LIEGE
A93: 4700 | B93: EUPEN | C93: Service d'Incendie EUPEN | D93: KEHRWEG 9D | E93: LIEGE
A94: 4728 | B94: HERGENRATH | C94: Croix Rouge KELMIS | D94: ALTENBERGSTRASSE 108 | E94: LIEGE
A95: 4760 | B95: BÜLLINGEN | C95: Croix Rouge BUTGENBACH | D95: MALMYERSTRASSE 5 | E95: LIEGE
A96: 4780 | B96: SAINT-VITH | C96: Service d'Incendie ST-VITH | D96: ALTE AACHENERSTRASSE 23 | E96: LIEGE
A97: 4800 | B97: VERVIERS | C97: Service d'Incendie VERVIERS | D97: RUE SIMON LOBET 36 | E97: LIEGE
A98: 4840 | B98: WELKENRAEDT | C98: Service d'Incendie WELKENRAEDT | D98: RUE MITOYENNE 229 | E98: LIEGE
A99: 4880 | B99: SPA | C99: C.P.A.S. SPA | D99: RUE HANSTER 8 | E99: LIEGE
A100: 4920 | B100: AYWAILLE | C100: Service d'Incendie AYWAILLE | D100: PLAYE, 50 | E100: LIEGE
A101: 4960 | B101: MALMEDY | C101: Service d'Incendie MALMEDY + PIT | D101: RUE JOSEPH WERSON 1 | E101: LIEGE
A102: 4970 | B102: STAVELOT | C102: Service d'Incendie STAVELOT | D102: ROUTE DE MALMEDY 17 | E102: LIEGE
A103: 3500 | B103: HASSELT | C103: AZ VIRGA JESSE | D103: STADSOMVAART 11 | E103: LIMBURG
A104: 3500 | B104: HASSELT | C104: Brandweer HASSELT | D104: WILLEKENSMOLENSTRAAT 120 | E104: LIMBURG
A105: 3550 | B105: HEUSDEN-ZOLDER | C105: Brandweer HEUSDEN/ZOLDER | D105: KOERSELSEBAAN 59 | E105: LIMBURG
A106: 3600 | B106: GENK | C106: Brandweer GENK | D106: C-MINE 50 | E106: LIMBURG
A107: 3600 | B107: GENK | C107: Ziekenhuis OOST-LIMBURG Campus St.-Jan (PIT) | D107: SCHIEPSE BOS 6 | E107: LIMBURG
A108: 3620 | B108: LANAKEN | C108: AMBI-CARE | D108: KIEZELWEG 43 | E108: LIMBURG
A109: 3630 | B109: MAASMECHELEN | C109: LIFECARE AMBULANCE MAASLAND VZW | D109: GENIESKENSSTRAAT 58/1 | E109: LIMBURG
A110: 3680 | B110: MAASEIK | C110: Brandweer MAASEIK | D110: GREMELSLOWEG, 7A | E110: LIMBURG
A111: 3700 | B111: TONGEREN | C111: AZ VESALIUS Campus ST.-JACOBS | D111: HAZELEREIK 51 | E111: LIMBURG
A112: 3740 | B112: BILZEN | C112: AZ VESALIUS CAMPUS ST.-MARTINUS | D112: HOSPITAALSTRAAT 15 | E112: LIMBURG
A113: 3800 | B113: ST.-TRUIDEN | C113: REGIONAAL Ziekenhuis ST.-TRUDO | D113: DIESTERSTEENWEG 100 | E113: LIMBURG
A114: 3920 | B114: LOMMEL | C114: Brandweer LOMMEL | D114: NORBERT NEECKXLAAN 52 | E114: LIMBURG
A115: 3930 | B115: HAMONT-ACHEL | C115: Rode Kruis HAMONT-ACHEL | D115: STEENSTRAAT 5 | E115: LIMBURG
A116: 3960 | B116: BREE | C116: Brandweer BREE | D116: BOCHOLTERSTRAAT 15 | E116: LIMBURG
A117: 3970 | B117: LEOPOLDSBURG | C117: Brandweer LEOPOLDSBURG | D117: KONINGIN M.L. LAAN 23 | E117: LIMBURG
A118: 6600 | B118: BASTOGNE | C118: Service d'Incendie BASTOGNE | D118: ROUTE DE WILTZ 11 | E118: Luxembourg
A119: 6660 | B119: HOUFFALIZE | C119: Service d'Incendie HOUFFALIZE | D119: RUE DE LAROCHE 49 | E119: Luxembourg
A120: 6690 | B120: VIELSAM | C120: Service d'Incendie VIELSAM | D120: RUE DE LA CLINIQUE | E120: Luxembourg
A121: 6700 | B121: ARLON | C121: Service d'incendie d' ARLON | D121: DREVE DES ESPAGNOLS 101 | E121: Luxembourg
A122: 6740 | B122: ETALLE | C122: Service d'Incendie ETALLE | D122: RUE SAINT-ANTOINE 193 | E122: Luxembourg
A123: 6760 | B123: VIRTON | C123: Service d'Incendie VIRTON | D123: RUE DU MOULIN 20 | E123: Luxembourg
A124: 6762 | B124: SAINT-MARD | C124: PIT VIRTON CSL | D124: RUE D'HARNONCOURT | E124: Luxembourg
A125: 6791 | B125: ATHUS | C125: Service d'Incendie AUBANGE | D125: RUE DES METALLURGISTES 9 | E125: Luxembourg
A126: 6800 | B126: LIBRAMONT | C126: Croix Rouge LIBRAMONT | D126: RUE DU MIDI 5 | E126: Luxembourg
A127: 6820 | B127: FLORENVILLE | C127: ADM. COM. FLORENVILLE | D127: RUE DE CARIGNAN | E127: Luxembourg
A128: 6832 | B128: CURFOZ | C128: Service d'Incendie BOUILLON | D128: RUE DES 4 MOINEAUX | E128: Luxembourg
A129: 6840 | B129: NEUFCHATEAU | C129: Service d'Incendie NEUFCHATEAU | D129: CHAUSSEE D'ARLON 50 | E129: Luxembourg
A130: 6850 | B130: PALISEUL | C130: Service d'Incendie PALISEUL | D130: RUE DE LA STATION 52 | E130: Luxembourg
A131: 6870 | B131: SAINT-HUBERT | C131: Service d'Incendie SAINT-HUBERT | D131: ROUTE DE POIX 23 | E131: Luxembourg
A132: 6880 | B132: BERTRIX | C132: Service d'Incendie BERTRIX | D132: RUE DE BLEZY 34 | E132: Luxembourg
A133: 6900 | B133: MARCHE | C133: Service d'Incendie MARCHE | D133: PARC INDUSTRIEL 12 | E133: Luxembourg
A134: 6980 | B134: LA ROCHE | C134: ASBL AMU LA ROCHE | D134: RUE BEAUSAINT 2 | E134: Luxembourg
A135: 6997 | B135: EREZEE | C135: Service d'Incendie EREZEE | D135: RUE DES COMBATTANTS 25 | E135: Luxembourg
A136: 5000 | B136: NAMUR | C136: Service d'Incendie NAMUR | D136: RUE DES BOURGEOIS 12 | E136: NAMUR
A137: 5000 | B137: NAMUR | C137: Service d'Incendie NAMUR | D137: RUE DES BOURGEOIS 12 | E137: NAMUR
A138: 5000 | B138: NAMUR / SAINT SERVAIS | C138: Croix Rouge NAMUR | D138: RUE DE L'INDUSTRIE 124 | E138: NAMUR
A139: 5030 | B139: SAUVENIERE | C139: Service d'Incendie GEMBLOUX | D139: RUE DU STORDOIR 50 | E139: NAMUR
A140: 5060 | B140: SAMBREVILLE | C140: Service d'Incendie TAMINES | D140: RUE DES VIGNES | E140: NAMUR
A141: 5070 | B141: FOSSES-LA-VILLE | C141: Service d'Incendie FOSSES-LA-VILLE | D141: RUE SAINTE-BRIGIDE 15 | E141: NAMUR
A142: 5300 | B142: ANDENNE | C142: Service d'Incendie ANDENNE | D142: AV REINE ELISABETH 150 | E142: NAMUR
A143: 5310 | B143: EGHEZEE | C143: Service d'Incendie. EGHEZEE | D143: CHAUSSEE DE NAMUR 28 | E143: NAMUR
A144: 5500 | B144: DINANT | C144: Service d'Incendie DINANT | D144: ROUTE DE PHILIPPEVILLE 236 | E144: NAMUR
A145: 5550 | B145: VRESSE | C145: Service d'Incendie de ALLE SUR SEMOIS ( VRESSE ) | D145: RUE DE LA RINGE, 129 | E145: NAMUR
A146: 5570 | B146: BEAURAING | C146: Service d'Incendie BEAURAING | D146: RUE DU LUXEMBOURG 26 | E146: NAMUR
A147: 5575 | B147: SART-CUSTINNE | C147: SRI Gedinne | D147: RUE DE LA MORIE 5 | E147: NAMUR
A148: 5580 | B148: ROCHEFORT | C148: Service d'Incendie ROCHEFORT | D148: RUE SOUS LE CHATEAU 1 | E148: NAMUR
A149: 5590 | B149: CINEY | C149: SRI Ciney | D149: RUE WALTER SŒUR,50 | E149: NAMUR
A150: 5600 | B150: PHILIPPEVILLE | C150: Croix Rouge PHILIPPEVILLE | D150: BOULEVARD DE L'ENSEIGNEMENT 1 | E150: NAMUR
A151: 5620 | B151: FLORENNES | C151: Service d'Incendie FLORENNES | D151: RUE DU VIVEROUX 2A | E151: NAMUR
A152: 5660 | B152: COUVIN | C152: Service d'Incendie COUVIN | D152: TIENNE DE BOUSSU 1 | E152: NAMUR
A153: 9000 | B153: GENT | C153: Brandweer GENT | D153: ROGGESTRAAT 70 | E153: OOST-VLAANDEREN
A154: 9000 | B154: GENT | C154: UZ GENT | D154: DE PINTELAAN 185 | E154: OOST-VLAANDEREN
A155: 9050 | B155: GENTBRUGGE | C155: LIFE CARE | D155: STEENVOORDELAAN 32 | E155: OOST-VLAANDEREN
A156: 9060 | B156: ZELZATE | C156: Brandweer ZELZATE | D156: CHALMETLAAN 56 | E156: OOST-VLAANDEREN
A157: 9090 | B157: MELLE | C157: Brandweer MELLE | D157: WEZENSTRAAT 44 | E157: OOST-VLAANDEREN
A158: 9100 | B158: SINT NIKLAAS | C158: AZ NIKOLAAS | D158: MOERLANDSTRAAT 1 | E158: OOST-VLAANDEREN
A159: 9120 | B159: BEVEREN | C159: Brandweer BEVEREN | D159: GRAVENDREEF 5 | E159: OOST-VLAANDEREN
A160: 9140 | B160: TEMSE | C160: BRANDWEER TEMSE | D160: KASTEELSTRAAT 16 | E160: OOST-VLAANDEREN
A161: 9140 | B161: TEMSE | C161: Brandweer TEMSE | D161: KASTEELSTRAAT 16 | E161: OOST-VLAANDEREN
A162: 9150 | B162: KRUIBEKE | C162: Brandweer KRUIBEKE | D162: O. L. VROUW PLEIN 19 | E162: OOST-VLAANDEREN
A163: 9160 | B163: LOKEREN | C163: AZ LOKEREN + PIT | D163: LEPELSTRAAT 4 | E163: OOST-VLAANDEREN
A164: 9170 | B164: ST GILLIS WAAS | C164: Brandweer ST.-GILLIS WAAS | D164: BLOKSTRAAT 103 | E164: OOST-VLAANDEREN
A165: 9200 | B165: DENDERMONDE | C165: Brandweer DENDERMONDE | D165: OUDE VEST 150 | E165: OOST-VLAANDEREN
A166: 9200 | B166: DENDERMONDE | C166: AMB DENDERMONDE | D166: VLASSENHOUT 14 | E166: OOST-VLAANDEREN
A167: 9220 | B167: HAMME | C167: Brandweer HAMME | D167: DAMSTRAAT 64 | E167: OOST-VLAANDEREN
A168: 9230 | B168: WETTEREN | C168: Brandweer WETTEREN | D168: ZUIDERDIJK 1 | E168: OOST-VLAANDEREN
A169: 9240 | B169: ZELE | C169: Brandweer ZELE | D169: POSTSTRAAT 2 | E169: OOST-VLAANDEREN
A170: 9260 | B170: WICHELEN | C170: Brandweer WICHELEN | D170: MARGOTE 110 | E170: OOST-VLAANDEREN
A171: 9300 | B171: AALST | C171: Brandweer AALST | D171: VRIJHEIDSSTRAAT 55 | E171: OOST-VLAANDEREN
A172: 9400 | B172: NINOVE | C172: Brandweer NINOVE | D172: DESIRE DE BODTKAAI 3 | E172: OOST-VLAANDEREN
A173: 9500 | B173: GERAARDSBERGEN | C173: Brandweer GERAARDSBERGEN | D173: ZAKKAAI 33 | E173: OOST-VLAANDEREN
A174: 9550 | B174: HERZELE | C174: Brandweer HERZELE | D174: MERGELLAAN 75 | E174: OOST-VLAANDEREN
A175: 9600 | B175: RONSE | C175: ZVB RONSE | D175: GLORIEUXLAAN, 55 | E175: OOST-VLAANDEREN
A176: 9620 | B176: ZOTTEGEM | C176: ST.-ELISABETH Ziekenhuis | D176: GODVEERDEGEMSTRAAT 59 | E176: OOST-VLAANDEREN
A177: 9660 | B177: BRAKEL | C177: VITA BRAKEL | D177: KERKHOFSTR.46 | E177: OOST-VLAANDEREN
A178: 9700 | B178: OUDENAARDE | C178: AZ OUDENAARDE | D178: SINT WALBURGASTRAAT 9 | E178: OOST-VLAANDEREN
A179: 9770 | B179: KRUISHOUTEM | C179: Brandweer KRUISHOUTEM | D179: WARANDESTRAAT 2 | E179: OOST-VLAANDEREN
A180: 9800 | B180: DEINZE | C180: AZ ST VINCENTIUS | D180: SCHUTTERIJSTRAAT 34 | E180: OOST-VLAANDEREN
A181: 9820 | B181: MERELBEKE | C181: Brandweer MERELBEKE | D181: KLOOSTERSTRAAT 28 | E181: OOST-VLAANDEREN
A182: 9880 | B182: AALTER | C182: Brandweer AALTER | D182: ST GEROLFLAAN 10 A | E182: OOST-VLAANDEREN
A183: 9890 | B183: SEMMERZAKE | C183: SNOECK | D183: BERGGATSTRAAT 29 | E183: OOST-VLAANDEREN
A184: 9900 | B184: EEKLO | C184: Brandweer EEKLO | D184: GENTSESTEENWEG 2 | E184: OOST-VLAANDEREN
A185: 9960 | B185: ASSENEDE | C185: Brandweer ASSENEDE | D185: MOLENSTRAAT 54A | E185: OOST-VLAANDEREN
A186: 9990 | B186: MALDEGEM | C186: Brandweer MALDEGEM | D186: BLOEMDAELLAAN 4 | E186: OOST-VLAANDEREN
A187: 1090 | B187: JETTE | C187: UZ BRUSSEL (JETTE) et PIT | D187: Laarbeeklaan 101 | E187: VLAAMS BRABANT
A188: 1120 | B188: Nederoverheembeek. | C188: HMB (NOH)MILITAIREN | D188: Bruynstraat | E188: VLAAMS BRABANT
A189: 1500 | B189: HALLE | C189: Brandweer HALLE | D189: J. POSSOZPLEIN 46 | E189: VLAAMS BRABANT
A190: 1500 | B190: HALLE | C190: Rode Kruis HALLE | D190: BRUSSELSESTEEWEG 183 | E190: VLAAMS BRABANT
A191: 1500 | B191: Ziekenhuislaan 100 Halle | C191: PIT HALLE | D191: Cfr.256 + 255 + 214 | E191: VLAAMS BRABANT
A192: 1730 | B192: ASSE | C192: Brandweer ASSE | D192: ARSENAALSTRAAT 49 | E192: VLAAMS BRABANT
A193: 1750 | B193: LENNIK | C193: Brandweer LENNIK | D193: K. KEYMOLENSTRAAT 4 | E193: VLAAMS BRABANT
A194: 1770 | B194: LIEDEKERKE | C194: Civiele Bescherming LIEDEKERKE | D194: KAPELLEBAAN 30 | E194: VLAAMS BRABANT
A195: 1800 | B195: VILVOORDE | C195: Brandweer VILVOORDE | D195: RONDEWEG 32 | E195: VLAAMS BRABANT
A196: 1840 | B196: LONDERZEEL | C196: Brandweer LONDERZEEL | D196: MECHELSESTRAAT 72 | E196: VLAAMS BRABANT
A197: 1930 | B197: ZAVENTEM | C197: Brandweer ZAVENTEM | D197: LEUVENSESTEENWEG 550 | E197: VLAAMS BRABANT
A198: 1930 | B198: Zaventem Airport | C198: BRUSSELS AIRPORT | D198: MEDA | E198: VLAAMS BRABANT
A199: 3000 | B199: HERESTRAAT 49 | C199: PIT LEUVEN | D199: Cfr. 202 + 263 + 265 + 262 + 208 | E199: VLAAMS BRABANT
A200: 3000 | B200: LEUVEN | C200: Un .Ziek. GASTHUISBERG LEUVEN | D200: HERESTRAAT 49 | E200: VLAAMS BRABANT
... 45 more rows

Sheet Addresses MUG services
A1: Terug naar invulluik
A2: MUG diensten
A3: POST-NUMMER | B3: GEMEENTE | C3: DIENST | D3: ADRES | E3: PROVINCIE
A4: 2170 | B4: MERKSEM | C4: ZNA Campus JAN PALFIJN | D4: Lange Bremstraat 70, 2170 Merksem | E4: ANTWERPEN
A5: 2060 | B5: ANTWERPEN | C5: ZNA Campus STUIVENBERG | D5: Lange Beeldekensstraat 267, 2060 Antwerpen | E5: ANTWERPEN
A6: 2020 | B6: ANTWERPEN | C6: ZNA Campus MIDDELHEIM | D6: Lindendreef 1, 2020 Antwerpen | E6: ANTWERPEN
A7: 2100 | B7: DEURNE | C7: MONICA | D7: Florent Pauwelsstraat 1, 2100 Deurne | E7: ANTWERPEN
A8: 2018 | B8: ANTWERPEN | C8: AZ ST.VINCENTIUS | D8: St.Vincentiusstraat 20, 2018 Antwerpen | E8: ANTWERPEN
A9: 2820 | B9: BONHEIDEN | C9: IMELDA ZKH | D9: Imeldalaan 9, 2820 Bonheiden | E9: ANTWERPEN
A10: 2930 | B10: BRASSCHAAT | C10: KLINA | D10: Augusteinslei 100, 2930 Brasschaat | E10: ANTWERPEN
A11: 2650 | B11: EDEGEM | C11: UNIVERSITAIR ZH A'PEN | D11: Wilrijkstraat 10, 2650 Edegem | E11: ANTWERPEN
A12: 2440 | B12: GEEL | C12: ST. DIMPNA GEEL | D12: JB Stessenstraat 2, 2440 Geel | E12: ANTWERPEN
A13: 2200 | B13: HERENTALS | C13: ST. ELISABETH | D13: Nederrij 133, 2200 Herentals | E13: ANTWERPEN
A14: 2500 | B14: LIER | C14: HEILIG HART | D14: Mechelsestraat 24, 2500 Lier | E14: ANTWERPEN
A15: 2390 | B15: MALLE | C15: ST. JOZEF | D15: Oude Liersebaan 4, 2390 Malle | E15: ANTWERPEN
A16: 2800 | B16: MECHELEN | C16: ST.-MAARTEN MECHELEN | D16: Leopoldstraat 2, 2800 Mechelen | E16: ANTWERPEN
A17: 2300 | B17: TURNHOUT | C17: ST. ELISABETH | D17: Rubensstraat 160, 2300 Turnhout | E17: ANTWERPEN
A18: 2610 | B18: WILRIJK | C18: ST. AUGUSTINUS | D18: Oosterveldlaan 24, 2610 Wilrijk | E18: ANTWERPEN
A19: 9000 | B19: GENT | C19: UNIVERSITAIR ZIEKENHUIS GENT | D19: DE PINTELAAN 185 | E19: Oost-Vlaanderen
A20: 9000 | B20: GENT | C20: ALGEMEEN ZIEKENHUIS ST. LUCAS | D20: GROENEBRIEL 1 | E20: Oost-Vlaanderen
A21: 9000 | B21: GENT | C21: ALGEMEEN ZIEKENHUIS JAN PALFIJN | D21: H. DUNANTLAAN 5 | E21: Oost-Vlaanderen
A22: 9100 | B22: SINT-NIKLAAS | C22: ALGEMEEN ZIEKENHUIS NIKOLAAS | D22: MOERLANDSTRAAT 1 | E22: Oost-Vlaanderen
A23: 9200 | B23: DENDERMONDE | C23: ALGEMEEN ZIEKENHUIS ST. BLASIUS | D23: KROONVELDLAAN 50 | E23: Oost-Vlaanderen
A24: 9300 | B24: AALST | C24: ONZE LIEVE VROUWZIEKENHUIS | D24: MOORSELBAAN 164 | E24: Oost-Vlaanderen
A25: 9300 | B25: AALST | C25: ALGEMEEN STEDELIJK ZIEKENHUIS | D25: MERESTRAAT 80 | E25: Oost-Vlaanderen
A26: 9600 | B26: RONSE | C26: A. Z. ZUSTERS VAN BARMHARTIGHEID | D26: GLORIEUXLAAN 55 | E26: Oost-Vlaanderen
A27: 9620 | B27: ZOTTEGEM | C27: ALGEMEEN ZIEKENHUIS ST.-ELISABETH | D27: GODVEERDEGEMSTRAAT 69 | E27: Oost-Vlaanderen
A28: 9700 | B28: OUDENAARDE | C28: ALGEMEEN ZIEKENHUIS OUDENAARDE | D28: MINDERBROEDERSSTRAAT 3 | E28: Oost-Vlaanderen
A29: 9900 | B29: EEKLO | C29: ALGEMEEN ZIEKENHUIS ALMA | D29: MOEIE 18 | E29: Oost-Vlaanderen
A30: 8000 | B30: BRUGGE | C30: ALGEMEEN ZIEKENHUIS ST.-JAN | D30: RUDDERSHOVE 10 | E30: West-Vlaanderen
A31: 8300 | B31: KNOKKE-HEIST | C31: GEZONDHEIDSZORG OOSTKUST | D31: GRAAF JANSDIJK 162 | E31: West-Vlaanderen
A32: 8370 | B32: BLANKENBERGE | C32: GEZONDHEIDSZORG OOSTKUST | D32: DR. VERHAEGHESTRAAT 1 | E32: West-Vlaanderen
A33: 8400 | B33: OOSTENDE | C33: HENRY SERRUYSZIEKENHUIS A.V. | D33: KAIROSTRAAT 84 | E33: West-Vlaanderen
A34: 8400 | B34: OOSTENDE | C34: ALGEMEEN ZIEKENHUIS DAMIAAN | D34: NIEUWPOORTSTEENWEG 57 | E34: West-Vlaanderen
A35: 8500 | B35: KORTRIJK | C35: ALGEMEEN ZIEKENHUIS GROENINGE | D35: LOOFSTRAAT 43 | E35: West-Vlaanderen
A36: 8630 | B36: VEURNE | C36: ALGEMEEN ZIEKENHUIS ST. AUGUSTINUS | D36: IEPERSE STEENWEG 100 | E36: West-Vlaanderen
A37: 8700 | B37: TIELT | C37: ST.-ANDRIESZIEKENHUIS | D37: KROMMEWALSTRAAT 11 | E37: West-Vlaanderen
A38: 8800 | B38: ROESELARE | C38: STEDELIJK ZIEKENHUIS | D38: BRUGSESTEENWEG 90 | E38: West-Vlaanderen
A39: 8800 | B39: ROESELARE | C39: H.- HARTZIEKENHUIS ROESELARE - MENEN | D39: WILGENSTRAAT 2 | E39: West-Vlaanderen
A40: 8820 | B40: TORHOUT | C40: ST.-REMBERTZIEKENHUIS V.Z.W. | D40: ST.-REMBERTLAAN 21 | E40: West-Vlaanderen
A41: 8900 | B41: IEPER | C41: JAN YPERMAN ZIEKENHUIS Vzw | D41: BRIEKESTRAAT 12 | E41: West-Vlaanderen
A42: 8930 | B42: MENEN | C42: H.- HARTZIEKENHUIS ROESELARE - MENEN | D42: RIJSELSTRAAT 71-73 | E42: West-Vlaanderen
A43: 3800 | B43: SINT-TRUIDEN | C43: REGIONAAL ZIEKENHUIS ST.-TRUDO | D43: DIESTERSTEENWEG 100 | E43: Limburg
A44: 3500 | B44: HASSELT | C44: A.Z. SALVATOR - ST. URSULA | D44: SALVATORSTRAAT 20 | E44: Limburg
A45: 3500 | B45: HASSELT | C45: VIRGA JESSE ZIEKENHUIS | D45: STADSOMVAART 11 | E45: Limburg
A46: 3550 | B46: HEUSDEN | C46: ST. FRANCISKUSZIEKENHUIS | D46: PASTOOR PAQUAYLAAN 129 | E46: Limburg
A47: 3600 | B47: GENK | C47: ZIEKENHUIS OOST - LIMBURG | D47: SCHIEPSE BOS 6 | E47: Limburg
A48: 3680 | B48: MAASEIK | C48: ZIEKENHUIS MAAS EN KEMPEN | D48: MGR. KONINGSSTRAAT 10 | E48: Limburg
A49: 3700 | B49: TONGEREN | C49: ALGEMEEN ZIEKENHUIS VESALIUS | D49: HAZELEREIK 51 | E49: Limburg
A50: 3900 | B50: OVERPELT | C50: MARIAZIEKENHUIS NOORD-LIMBURG | D50: MAESENSVELD 1 | E50: Limburg
A51: 3000 | B51: LEUVEN | C51: UNIVERSITAIRE ZIEKENHUIZEN K.U.L. | D51: HERESTRAAT 49 | E51: Vlaams-Brabant
A52: 1800 | B52: VILVOORDE | C52: ALGEMEEN ZIEKENHUIS JAN PORTAELS | D52: GENDARMERIESTRAAT 65 | E52: Vlaams-Brabant
A53: 3300 | B53: TIENEN | C53: REGIONAAL ZIEKENHUIS HEILIG HART Vzw | D53: KLINIEKSTRAAT 45 | E53: Vlaams-Brabant
A54: 3290 | B54: DIEST | C54: ALGEMEEN ZIEKENHUIS DIEST | D54: MICHEL THEYSSTRAAT 18 | E54: Vlaams-Brabant
A55: 1030 | B55: BRUXELLES--3 | C55: CENTRE HOSPITALIER UNIVERSITAIRE BRUGMANN | D55: RUE DU FOYER SCHAERBEEKOIS 36 | E55: Brussel-Bruxelles
A56: 1070 | B56: BRUXELLES--7 | C56: CLINIQUES UNIVERSITAIRES DE BRUXELLES HOPITAL ERASME | D56: ROUTE DE LENNIK 808 | E56: Brussel-Bruxelles
A57: 1000 | B57: BRUXELLES--1 | C57: CENTRE HOSPITALIER UNIV. ST.-PIERRE | D57: RUE HAUTE 322 | E57: Brussel-Bruxelles
A58: 1200 | B58: BRUXELLES-20 | C58: CLINIQUES UNIVERSITAIRES ST.-LUC | D58: AVENUE HIPPOCRATE 10 | E58: Brussel-Bruxelles
A59: 1180 | B59: BRUSSEL-18 | C59: EUROPAZIEKENHUIZEN - CLINIQUES DE L'EUROPE | D59: DE FRELAAN 206 | E59: Brussel-Bruxelles
A60: 1090 | B60: BRUSSEL--9 | C60: UNIVERSITAIR ZIEKENHUIS BRUSSEL | D60: LAARBEEKLAAN 101 | E60: Brussel-Bruxelles
A61: 1340 | B61: OTTIGNIES | C61: CLINIQUE SAINT PIERRE | D61: AVENUE REINE FABIOLA 9 | E61: Brabant Wallon
A62: 1400 | B62: NIVELLES | C62: CENTRE HOSPITALIER TUBIZE - NIVELLES | D62: RUE SAMIETTE 1 | E62: Brabant Wallon
A63: 1420 | B63: BRAINE-L'ALLEUD | C63: C.H. INTERREGIONAL EDITH CAVELL | D63: RUE WAYEZ 35 | E63: Brabant Wallon
A64: 1480 | B64: TUBIZE | C64: CENTRE HOSPITALIER TUBIZE - NIVELLES | D64: AVENUE DE SCANDIANO 8 | E64: Brabant Wallon
A65: 7000 | B65: MONS | C65: C.H. UNIVERSITAIRE AMBROISE PARE | D65: BOULEVARD KENNEDY 2 | E65: Hainaut
A66: 7000 | B66: MONS | C66: C.H.R. CLIN.ST. JOSEPH - HOPITAL DE WARQUIGNIES | D66: AV. B. DE CONSTANTINOPLE 5 | E66: Hainaut
A67: 6041 | B67: GOSSELIES | C67: CLINIQUE NOTRE-DAME DE GRACE | D67: CHAUSSEE DE NIVELLES 212 | E67: Hainaut
A68: 7100 | B68: LA LOUVIERE | C68: CENTRE HOSPITALIER UNIVERSITAIRE TIVOLI | D68: AVENUE MAX BUSET 34 | E68: Hainaut
A69: 7100 | B69: HAINE-SAINT-PAUL | C69: CENTRE HOSPITALIER DE JOLIMONT - LOBBES | D69: RUE FERRER 159 | E69: Hainaut
A70: 7331 | B70: BAUDOUR | C70: RHMS - CLINIQUE LOUIS CATY | D70: RUE LOUIS CATY 136 | E70: Hainaut
A71: 7300 | B71: BOUSSU | C71: C.H.R. CLINIQUE ST. JOSEPH - HÔPITAL DE WARQUIGNIES | D71: RUE DES CHAUFOURS 27 | E71: Hainaut
A72: 7301 | B72: HORNU | C72: CENTRE HOSPITALIER HORNU - FRAMERIES | D72: ROUTE DE MONS 63 | E72: Hainaut
A73: 7500 | B73: TOURNAI | C73: CENTRE HOSPITALIER DE WALLONIE PICARDE - Chwapi | D73: AVENUE DELMEE 9 | E73: Hainaut
A74: 7500 | B74: TOURNAI | C74: CENTRE HOSPITALIER DE WALLONIE PICARDE - Chwapi | D74: BOULEVARD DU ROI ALBERT 1 | E74: Hainaut
A75: 7500 | B75: TOURNAI | C75: CENTRE HOSPITALIER DE WALLONIE PICARDE - Chwapi | D75: CHAUSSEE ST.-AMAND 80 | E75: Hainaut
A76: 7700 | B76: MOUSCRON | C76: CENTRE HOSPITALIER DE MOUSCRON | D76: RUE DU COUVENT 39 | E76: Hainaut
A77: 7800 | B77: ATH | C77: RHMS - HOPITAL DE LA MADELEINE | D77: RUE MARIA THOMEE 1 | E77: Hainaut
A78: 6000 | B78: CHARLEROI | C78: GRAND HOPITAL DE CHARLEROI | D78: GRAND'RUE 3 | E78: Hainaut
A79: 6000 | B79: CHARLEROI | C79: C.H.U. DE CHARLEROI | D79: BOULEVARD PAUL JANSON 92 | E79: Hainaut
A80: 7060 | B80: SOIGNIES | C80: CENTRE HOSPITALIER DE LA HAUTE SENNE | D80: CHAUSSEE DE BRAINE 47 | E80: Hainaut
A81: 6460 | B81: CHIMAY | C81: CENTRE DE SANTE DES FAGNES | D81: BOULEVARD LOUISE 18 | E81: Hainaut
A82: 6110 | B82: MONTIGNY-LE-TILLEUL | C82: C. H. UNIVERSITAIRE ANDRE VESALE | D82: RUE DE GOZEE 706 | E82: Hainaut
A83: 5000 | B83: NAMUR | C83: CENTRE HOSPITALIER REGIONAL | D83: AVENUE ALBERT 1IER 185 | E83: Namur
A84: 5060 | B84: AUVELAIS | C84: CENTRE HOSPITALIER REGIONAL DU VAL DE SAMBRE | D84: RUE CHERE VOIE 75 | E84: Namur
A85: 5500 | B85: DINANT | C85: CENTRE HOSPITALIER DE DINANT | D85: RUE ST.-JACQUES 501 | E85: Namur
A86: 5530 | B86: MONT-GODINNE | C86: CLINIQUES UNIVERSITAIRES (U.C.L.) | D86: AVENUE DR. G.THERASSE 1 | E86: Namen
A87: 4000 | B87: LIEGE | C87: CENTRE HOSPITALIER REGIONAL DE LA CITADELLE | D87: BOULEV. DU 12E DE LIGNE 1 | E87: Liège
A88: 4032 | B88: CHENEE | C88: CENTRE HOSPITALIER UNIVERSITAIRE DE LIEGE | D88: RUE DE GAILLARMONT 600 | E88: Liège
A89: 4100 | B89: SERAING | C89: CENTRE HOSPITALIER DU BOIS DE L'ABBAYE ET DE HESBAYE | D89: RUE LAPLACE 40 | E89: Liège
A90: 4420 | B90: MONTEGNEE | C90: CLINIQUES SAINT-JOSEPH | D90: RUE ST.-NICOLAS 447 | E90: Liège
A91: 4300 | B91: WAREMME | C91: CENTRE HOSPITALIER DU BOIS DE L'ABBAYE ET DE HESBAYE | D91: AVENUE DE LA RESISTANCE 2 | E91: Liège
A92: 4300 | B92: WAREMME | C92: CLINIQUES SAINT-JOSEPH | D92: RUE DE SELYS LONGCHAMPS 4 | E92: Liège
A93: 4500 | B93: HUY | C93: CENTRE HOSPITALIER REGIONAL DE HUY | D93: RUE TROIS PONTS 2 | E93: Liège
A94: 4700 | B94: EUPEN | C94: ST.-NIKOLAUS HOSPITAL | D94: HUFENGASSE 4-8 | E94: Lüttich
A95: 4780 | B95: SANKT-VITH | C95: KLINIK ST.-JOSEF | D95: KLOSTERSTRASSE 9 | E95: Lüttich
A96: 4800 | B96: VERVIERS | C96: CENTRE HOSPITALIER PELTZER - LA TOURELLE | D96: RUE DU PARC 29 | E96: Liège
A97: 6600 | B97: BASTOGNE | C97: INTERCOM. HOSP. FAMENNE ARDENNE CONDROZ (I.F.A.C.) | D97: RUE DE HOUFFALIZE 1 | E97: Luxembourg
A98: 6700 | B98: ARLON | C98: CLINIQUES DU SUD-LUXEMBOURG | D98: RUE DES DEPORTES 137 | E98: Luxembourg
A99: 6800 | B99: LIBRAMONT | C99: CENTRE HOSPITALIER DE L'ARDENNE | D99: AVENUE DE HOUFFALIZE 35 | E99: Luxembourg
A100: 6900 | B100: MARCHE-EN-FAMENNE | C100: INTERCOM. HOSP. FAMENNE ARDENNE CONDROZ (I.F.A.C.) | D100: RUE DU VIVIER 21 | E100: Luxembourg

Sheet Addresses Emergency services
A1: Terug naar invulluik
A2: Spoedgevallendiensten
A3: POST-NUMMER | B3: GEMEENTE | C3: DIENST | D3: ADRES | E3: PROVINCIE
A4: 2170 | B4: MERKSEM | C4: ZNA Campus JAN PALFIJN | D4: Lange Bremstraat 70, 2170 Merksem | E4: ANTWERPEN
A5: 2060 | B5: ANTWERPEN | C5: ZNA Campus STUIVENBERG | D5: Lange Beeldekensstraat 267, 2060 Antwerpen | E5: ANTWERPEN
A6: 2020 | B6: ANTWERPEN | C6: ZNA Campus MIDDELHEIM | D6: Lindendreef 1, 2020 Antwerpen | E6: ANTWERPEN
A7: 2140 | B7: BORGERHOUT | C7: ZNA Campus ERASMUS | D7: Lt. Lippenslaan 55, 2140 Borgerhout | E7: ANTWERPEN
A8: 2100 | B8: DUERNE | C8: MONICA | D8: Florent Pauwelsstraat 1, 2100 Deurne | E8: ANTWERPEN
A9: 2018 | B9: ANTWERPEN | C9: AZ ST.VINCENTIUS | D9: St.Vincentiusstraat 20, 2018 Antwerpen | E9: ANTWERPEN
A10: 2820 | B10: BONHEIDEN | C10: IMELDA ZKH | D10: Imeldalaan 9, 2820 Bonheiden | E10: ANTWERPEN
A11: 2880 | B11: BORNEM | C11: ST. JOZEF | D11: Kasteelstraat 23, 2880 Bornem | E11: ANTWERPEN
A12: 2930 | B12: BRASSCHAAT | C12: KLINA | D12: Augusteinslei 100, 2930 Brasschaat | E12: ANTWERPEN
A13: 2570 | B13: DUFFEL | C13: ST. MAARTEN DUFFEL | D13: Rooienberg 25, 2570 Duffel | E13: ANTWERPEN
A14: 2650 | B14: EDEGEM | C14: UNIVERSITAIR ZH A'PEN | D14: Wilrijkstraat 10, 2650 Edegem | E14: ANTWERPEN
A15: 2440 | B15: GEEL | C15: ST. DIMPNA GEEL | D15: JB Stessenstraat 2, 2440 Geel | E15: ANTWERPEN
A16: 2200 | B16: HERENTALS | C16: ST. ELISABETH | D16: Nederrij 133, 2200 Herentals | E16: ANTWERPEN
A17: 2500 | B17: LIER | C17: HEILIG HART | D17: Mechelsestraat 24, 2500 Lier | E17: ANTWERPEN
A18: 2390 | B18: MALLE | C18: ST. JOZEF | D18: Oude Liersebaan 4, 2390 Malle | E18: ANTWERPEN
A19: 2800 | B19: MECHELEN | C19: ST.-MAARTEN MECHELEN | D19: Leopoldstraat 2, 2800 Mechelen | E19: ANTWERPEN
A20: 2400 | B20: MOL | C20: HEILIG HART | D20: Gasthuisstraat 1, 2400 Mol | E20: ANTWERPEN
A21: 2840 | B21: RUMST | C21: HEILIGE FAMILIE | D21: S Heerenbaan 172, 2840 Rumst | E21: ANTWERPEN
A22: 2300 | B22: TURNHOUT | C22: ST. ELISABETH | D22: Rubensstraat 160, 2300 Turnhout | E22: ANTWERPEN
A23: 2300 | B23: TURNHOUT | C23: ST. JOZEF | D23: Steenweg op Merksplas 44, 2300 Turnhout | E23: ANTWERPEN
A24: 2610 | B24: WILRIJK | C24: ST. AUGUSTINUS | D24: Oosterveldlaan 24, 2610 Wilrijk | E24: ANTWERPEN
A25: 1000 | B25: BRUSSEL--1 | C25: KLINIEK ST.-JAN - CLINIQUE ST. JEAN | D25: KRUIDTUINLAAN 32 | E25: Brussel
A26: 1000 | B26: BRUXELLES--1 | C26: CENTRE HOSPITALIER UNIV. ST.PIERRE | D26: RUE HAUTE 322 | E26: Brussel
A27: 1020 | B27: BRUXELLES--2 | C27: CENTRE HOSPITALIER UNIVERSITAIRE BRUGMANN | D27: PLACE A. VAN GEHUCHTEN 4 | E27: Brussel
A28: 1020 | B28: BRUXELLES--2 | C28: HOPITAL UNIV. DES ENFANTS REINE FABIOLA | D28: AVENUE J.J. CROCQ 15 | E28: Brussel
A29: 1040 | B29: BRUXELLES--4 | C29: HOPITAUX IRIS SUD - IRIS ZIEKENHUIZEN ZUID | D29: RUE BARON LAMBERT 38 | E29: Brussel
A30: 1070 | B30: BRUXELLES--7 | C30: CLINIQUES UNIV. DE BRUXELLES - HOPITAL ERASME | D30: ROUTE DE LENNIK 808 | E30: Brussel
A31: 1070 | B31: BRUXELLES--7 | C31: CLINIQUE STE. ANNE - ST. REMI | D31: BOULEVARD J. GRAINDOR 66 | E31: Brussel
A32: 1090 | B32: BRUSSEL--9 | C32: UNIVERSITAIR ZIEKENHUIS BRUSSEL | D32: LAARBEEKLAAN 101 | E32: Brussel
A33: 1180 | B33: BRUSSEL-18 | C33: EUROPAZIEKENHUIZEN - CLINIQUES DE L'EUROPE | D33: DE FRELAAN 206 | E33: Brussel
A34: 1180 | B34: BRUXELLES-18 | C34: C.H. INTERREGIONAL EDITH CAVELL (CHIREC) | D34: RUE EDITH CAVELL 32 | E34: Brussel
A35: 1200 | B35: BRUXELLES-20 | C35: CLINIQUES UNIVERSITAIRES ST.LUC | D35: AVENUE HIPPOCRATE 10 | E35: Brussel
A36: 1500 | B36: HALLE | C36: REGIONAAL ZIEKENHUIS ST.-MARIA | D36: ZIEKENHUISLAAN 100 | E36: Vlaams Brabant
A37: 1800 | B37: VILVOORDE | C37: ALGEMEEN ZIEKENHUIS JAN PORTAELS | D37: GENDARMERIESTRAAT 65 | E37: Vlaams Brabant
A38: 3000 | B38: LEUVEN | C38: REGIONAAL ZIEKENHUIS H.-HART | D38: NAAMSESTRAAT 105 | E38: Vlaams Brabant
A39: 3000 | B39: LEUVEN | C39: UNIVERSITAIRE ZIEKENHUIZEN K.U.L. | D39: HERESTRAAT 49 | E39: Vlaams Brabant
A40: 3290 | B40: DIEST | C40: ALGEMEEN ZIEKENHUIS DIEST | D40: MICHEL THEYSSTRAAT 18 | E40: Vlaams Brabant
A41: 3300 | B41: TIENEN | C41: REGIONAAL ZIEKENHUIS HEILIG HART TIENEN | D41: KLINIEKSTRAAT 45 | E41: Vlaams Brabant
A42: 3500 | B42: HASSELT | C42: ALGEMEEN ZIEKENHUIS SALVATOR - ST. URSULA | D42: SALVATORSTRAAT 20 | E42: Limburg
A43: 3500 | B43: HASSELT | C43: VIRGA JESSE ZIEKENHUIS | D43: STADSOMVAART 11 | E43: Limburg
A44: 3550 | B44: HEUSDEN | C44: ST. FRANCISKUSZIEKENHUIS | D44: PASTOOR PAQUAYLAAN 129 | E44: Limburg
A45: 3600 | B45: GENK | C45: ZIEKENHUIS OOST - LIMBURG | D45: SCHIEPSE BOS 6 | E45: Limburg
A46: 3680 | B46: MAASEIK | C46: ZIEKENHUIS MAAS EN KEMPEN | D46: MGR. KONINGSSTRAAT 10 | E46: Limburg
A47: 3700 | B47: TONGEREN | C47: ALGEMEEN ZIEKENHUIS VESALIUS | D47: HAZELEREIK 51 | E47: Limburg
A48: 3800 | B48: SINT-TRUIDEN | C48: REGIONAAL ZIEKENHUIS ST.-TRUDO | D48: DIESTERSTEENWEG 100 | E48: Limburg
A49: 3900 | B49: OVERPELT | C49: MARIAZIEKENHUIS NOORD LIMBURG | D49: MAESENSVELD 1 | E49: Limburg
A50: 8000 | B50: BRUGGE | C50: A.Z. ST.-JAN BRUGGE-OOSTENDE | D50: RUDDERSHOVE 10 | E50: West-Vlaanderen
A51: 8300 | B51: KNOKKE-HEIST | C51: GEZONDHEIDSZORG OOSTKUST | D51: GRAAF JANSDIJK 162 | E51: West-Vlaanderen
A52: 8310 | B52: BRUGGE | C52: ALGEMEEN ZIEKENHUIS ST.LUCAS | D52: ST.-LUCASLAAN 29 | E52: West-Vlaanderen
A53: 8400 | B53: OOSTENDE | C53: ALGEMEEN ZIEKENHUIS DAMIAAN | D53: GOUWELOZESTRAAT 100 | E53: West-Vlaanderen
A54: 8500 | B54: KORTRIJK | C54: ALGEMEEN ZIEKENHUIS GROENINGE | D54: REEPKAAI 4 | E54: West-Vlaanderen
A55: 8630 | B55: VEURNE | C55: ALGEMEEN ZIEKENHUIS ST. AUGUSTINUS | D55: IEPERSE STEENWEG 100 | E55: West-Vlaanderen
A56: 8700 | B56: TIELT | C56: ST.-ANDRIESZIEKENHUIS | D56: KROMMEWALSTRAAT 11 | E56: West-Vlaanderen
A57: 8790 | B57: WAREGEM | C57: O.L.V. VAN LOURDES ZIEKENHUIS WAREGEM | D57: VIJFSEWEG 150 | E57: West-Vlaanderen
A58: 8800 | B58: ROESELARE | C58: STEDELIJK ZIEKENHUIS | D58: BRUGSESTEENWEG 90 | E58: West-Vlaanderen
A59: 8800 | B59: ROESELARE | C59: H.- HARTZIEKENHUIS ROESELARE - MENEN VZW | D59: WILGENSTRAAT 2 | E59: West-Vlaanderen
A60: 8820 | B60: TORHOUT | C60: ST.-REMBERTZIEKENHUIS | D60: ST.-REMBERTLAAN 21 | E60: West-Vlaanderen
A61: 8870 | B61: IZEGEM | C61: ST.-JOZEFSKLINIEK V.Z.W. | D61: ROESELAARSESTRAAT 47 | E61: West-Vlaanderen
A62: 8900 | B62: IEPER | C62: JAN YPERMAN ZIEKENHUIS | D62: BRIEKESTRAAT 12 | E62: West-Vlaanderen
A63: 9000 | B63: GENT | C63: ALGEMEEN ZIEKENHUIS MARIA MIDDELARES | D63: KORTRIJKSESTEENWEG 1026 | E63: Oost-Vlaanderen
A64: 9000 | B64: GENT | C64: ALGEMEEN ZIEKENHUIS ST. LUCAS | D64: GROENEBRIEL 1 | E64: Oost-Vlaanderen
A65: 9000 | B65: GENT | C65: UNIVERSITAIR ZIEKENHUIS GENT | D65: DE PINTELAAN 185 | E65: Oost-Vlaanderen
A66: 9000 | B66: GENT | C66: ALGEMEEN ZIEKENHUIS JAN PALFIJN | D66: H. DUNANTLAAN 5 | E66: Oost-Vlaanderen
A67: 9100 | B67: SINT-NIKLAAS | C67: ALGEMEEN ZIEKENHUIS NIKOLAAS | D67: MOERLANDSTRAAT 1 | E67: Oost-Vlaanderen
A68: 9160 | B68: LOKEREN | C68: ALGEMEEN ZIEKENHUIS LOKEREN | D68: LEPELSTRAAT 2 | E68: Oost-Vlaanderen
A69: 9200 | B69: DENDERMONDE | C69: ALGEMEEN ZIEKENHUIS ST. BLASIUS | D69: KROONVELDLAAN 50 | E69: Oost-Vlaanderen
A70: 9300 | B70: AALST | C70: ONZE LIEVE VROUW ZIEKENHUIS | D70: MOORSELBAAN 164 | E70: Oost-Vlaanderen
A71: 9300 | B71: AALST | C71: ALGEMEEN STEDELIJK ZIEKENHUIS | D71: MERESTRAAT 80 | E71: Oost-Vlaanderen
A72: 9600 | B72: RONSE | C72: A.Z. ZUSTERS VAN BARMHARTIGHEID | D72: GLORIEUXLAAN 55 | E72: Oost-Vlaanderen
A73: 9620 | B73: ZOTTEGEM | C73: ALGEMEEN ZIEKENHUIS ST. ELISABETH | D73: GODVEERDEGEMSTRAAT 69 | E73: Oost-Vlaanderen
A74: 9700 | B74: OUDENAARDE | C74: ALGEMEEN ZIEKENHUIS OUDENAARDE | D74: MINDERBROEDERSSTRAAT 3 | E74: Oost-Vlaanderen
A75: 9800 | B75: DEINZE | C75: ST. VINCENTIUSZIEKENHUIS | D75: SCHUTTERIJSTRAAT 34 | E75: Oost-Vlaanderen
A76: 9900 | B76: EEKLO | C76: ALGEMEEN ZIEKENHUIS ALMA | D76: MOEIE 18 | E76: Oost-Vlaanderen
A77: 1340 | B77: OTTIGNIES | C77: CLINIQUE SAINT PIERRE | D77: AVENUE REINE FABIOLA 9 | E77: Brabant Wallon
A78: 1400 | B78: NIVELLES | C78: CENTRE HOSPITALIER TUBIZE - NIVELLES | D78: RUE SAMIETTE 1 | E78: Brabant Wallon
A79: 4000 | B79: LIEGE | C79: CENTRE HOSPITALIER REGIONAL DE LA CITADELLE | D79: BOULEV. DU 12E DE LIGNE 1 | E79: Luik
A80: 4000 | B80: LIEGE-1 | C80: CLINIQUES SAINT-JOSEPH | D80: RUE DE HESBAYE 75 | E80: Luik
A81: 4000 | B81: LIEGE-1 (SART-TILMAN) | C81: CENTRE HOSPITALIER UNIVERSITAIRE DE LIEGE | D81: DOMAINE UNIV. BAT. B35 | E81: Luik
A82: 4000 | B82: ROCOURT | C82: C.H. ST. VINCENT & ST. ELISABETH | D82: RUE FRANCOIS LEFEBVRE 207 | E82: Luik
A83: 4040 | B83: HERSTAL | C83: CLINIQUE ANDRE RENARD | D83: RUE A. RENARD 1 | E83: Luik
A84: 4100 | B84: SERAING | C84: C.H. DU BOIS DE L'ABBAYE ET DE HESBAYE | D84: RUE LAPLACE 40 | E84: Luik
A85: 4500 | B85: HUY | C85: CENTRE HOSPITALIER REGIONAL DE HUY | D85: RUE TROIS PONTS 2 | E85: Luik
A86: 4700 | B86: EUPEN | C86: ST.-NIKOLAUS HOSPITAL EUPEN | D86: HUFENGASSE 4-8 | E86: Luik
A87: 4780 | B87: SANKT-VITH | C87: KLINIK ST.-JOSEF | D87: KLOSTERSTRASSE 9 | E87: Luik
A88: 4800 | B88: VERVIERS | C88: CENTRE HOSPITALIER PELTZER - LA TOURELLE | D88: RUE DU PARC 29 | E88: Luik
A89: 4960 | B89: MALMEDY | C89: CLINIQUE REINE ASTRID | D89: RUE DEVANT LES RELIGIEUSES | E89: Luik
A90: 5000 | B90: NAMUR | C90: CENTRE HOSPITALIER REGIONAL DE NAMUR | D90: AVENUE ALBERT Ier 185 | E90: Namen
A91: 5000 | B91: NAMUR | C91: CLINIQUE ET MATERNITE STE.-ELISABETH | D91: PLACE LOUISE GODIN 15 | E91: Namen
A92: 5004 | B92: BOUGE | C92: CLINIQUE ST.-LUC | D92: RUE SAINT LUC 8 | E92: Namen
A93: 5060 | B93: AUVELAIS | C93: C.H. REGIONAL DU VAL DE SAMBRE | D93: RUE CHERE VOIE 75 | E93: Namen
A94: 5500 | B94: DINANT | C94: CENTRE HOSPITALIER DE DINANT | D94: RUE ST.-JACQUES 501 | E94: Namen
A95: 5530 | B95: MONT-GODINNE | C95: CLINIQUES UNIVERSITAIRES U.C.L. DE MONT-GODINNE | D95: AVENUE DR. G. THERASSE 1 | E95: Namen
A96: 6000 | B96: CHARLEROI | C96: GRAND HOPITAL DE CHARLEROI | D96: GRAND'RUE 3 | E96: Henegouwen
A97: 6000 | B97: CHARLEROI | C97: CENTRE HOSPITALIER UNIV. DE CHARLEROI | D97: BOULEVARD PAUL JANSON 92 | E97: Henegouwen
A98: 6041 | B98: GOSSELIES | C98: CLINIQUE NOTRE-DAME DE GRACE | D98: CHAUSSEE DE NIVELLES 212 | E98: Henegouwen
A99: 6060 | B99: GILLY | C99: GRAND HOPITAL DE CHARLEROI | D99: RUE DE LA DUCHERE 6 | E99: Henegouwen
A100: 6110 | B100: MONTIGNY-LE-TILLEUL | C100: CENTRE HOSPITALIER UNIVERSITAIRE A. VESALE | D100: RUE DE GOZEE 706 | E100: Henegouwen
A101: 6460 | B101: CHIMAY | C101: CENTRE DE SANTE DES FAGNES | D101: BOULEVARD LOUISE 18 | E101: Henegouwen
A102: 6700 | B102: ARLON | C102: CLINIQUES DU SUD-Luxembourg | D102: RUE DES DEPORTES 137 | E102: Luxemburg
A103: 6800 | B103: LIBRAMONT | C103: CENTRE HOSPITALIER DE L'ARDENNE | D103: AVENUE DE HOUFFALIZE 35 | E103: Luxemburg
A104: 6900 | B104: MARCHE-EN-FAMENNE | C104: INTERCOM. HOSP. FAMENNE ARDENNE CONDROZ | D104: RUE DU VIVIER 21 | E104: Luxemburg
A105: 7000 | B105: MONS | C105: CENTRE HOSPITALIER UNIVERSITAIRE A. PARE | D105: BOULEVARD KENNEDY 2 | E105: Henegouwen
A106: 7000 | B106: MONS | C106: C.H.R. CLIN. ST.-JOSEPH - HÔPITAL DE WARQUIGNIES | D106: AV. B. DE CONSTANTINOPLE 5 | E106: Henegouwen
A107: 7060 | B107: SOIGNIES | C107: CENTRE HOSPITALIER REGIONAL DE LA HAUTE SENNE | D107: CHAUSSEE DE BRAINE 49 | E107: Henegouwen
A108: 7100 | B108: HAINE-SAINT-PAUL | C108: CENTRE HOSPITALIER JOLIMONT - LOBBES | D108: RUE FERRER 159 | E108: Henegouwen
A109: 7100 | B109: LA-LOUVIERE | C109: CENTRE HOSPITALIER UNIVERSITAIRE TIVOLI | D109: AVENUE MAX BUSET 34 | E109: Henegouwen
A110: 7301 | B110: HORNU | C110: CENTRE HOSPITALIER HORNU - FRAMERIES | D110: ROUTE DE MONS 63 | E110: Henegouwen
A111: 7331 | B111: BAUDOUR | C111: RHMS - CLINIQUE LOUIS CATY | D111: RUE LOUIS CATY 136 | E111: Henegouwen
A112: 7500 | B112: TOURNAI | C112: CENTRE HOSPITALIER DE WALLONIE PICARDE - Chwapi | D112: AVENUE DELMEE 9 | E112: Henegouwen
A113: 7500 | B113: TOURNAI | C113: CENTRE HOSPITALIER DE WALLONIE PICARDE - Chwapi | D113: BOULEVARD LALAING 39 | E113: Henegouwen
A114: 7500 | B114: TOURNAI | C114: CENTRE HOSPITALIER DE WALLONIE PICARDE - Chwapi | D114: CHAUSSEE ST.-AMAND 80 | E114: Henegouwen
A115: 7700 | B115: MOUSCRON | C115: CENTRE HOSPITALIER DE MOUSCRON | D115: RUE DU COUVENT 39 | E115: Henegouwen
A116: 7800 | B116: ATH | C116: RHMS - HOPITAL DE LA MADELEINE | D116: RUE MARIA THOMEE 1 | E116: Henegouwen

Sheet Toilets
A1: Back to section

Sheet SECTION for the Organiser
B2: Further processing
B4: You have completed all the necessary steps.
B6: This document must be saved and e-mailed to the disaster officer of the municipality where the event is to take place.
B8: E-mail the saved file to :
B9: Disaster officer’s e-mail address :
B12: Surname and first name
B13: Phone number
B17: TRACK RECORD | C17: 37 | D17: Organiser’s reputation with safety services | E17: To be completed by the disaster officer
C18: 38 | D18: Event age | E18: To be completed by the disaster officer
B19: MEDICAL LITERATURE | C19: 40 | D19: Problems to be expected according to medical literature (+ specify which literature) | E19: To be completed by the disaster officer
B21: MULTIDISCIPLINARY COORDINATION | C21: 52 | D21: Previous negative experience with this type of event | E21: To be completed by the disaster officer
C22: 54 | D22: Specific legislation concerning this type of event | E22: To be completed by the disaster officer
B24: PREPAREDNESS | C24: 67 | D24: Does the communication model comply with DGH requirements | E24: To be completed by the disaster officer
C25: 68 | D25: Has the 100 switchboard been notified? | E25: To be completed by the disaster officer
C26: 69 | D26: Is the Medical Intervention Plan compliant with the Royal Decree of 16/02/06 | E26: To be completed by the disaster officer
B28: The questions below will be answered by the FPS.
B29: HC100 | C29: 70 | D29: Has the application form with relevant information been submitted to the HC100 (DOC 100) | E29: =IF(SECTION5!F13<>0,"neen","ja") -> neen
C30: 71 | D30: Have the site maps been submitted to the HC100 | E30: To be completed by FPS
B32: OPERATION ORDER | C32: 72 | D32: Should an operation order be drawn up for the emergency medical service | E32: =IF(SECTION5!F13<>0,"ja","NEEN") -> ja

Sheet Care provided
A1: This tab must be completed after the event.
A2: ='SECTION 1 - APPLICATION'!$G$5 -> VERSION 25 | H2: ='SECTION 1 - APPLICATION'!$G$4 -> 00/00/0000
A3: Event address | C3: ='SECTION 1 - APPLICATION'!$G$7 -> 0 | E3: in | F3: ='SECTION 1 - APPLICATION'!$J$7 -> 0 | G3: ='SECTION 1 - APPLICATION'!$G$3 -> 0
A4: Type of event | C4: ='SECTION 1 - APPLICATION'!$G$6 -> ALL OTHER EVENTS | F4: Duration of the event in hours | I4: ='SECTION 1 - APPLICATION'!$K$8 -> FALSE
A6: VISITORS | F6: Remark : the model was based on the following estimate
A7: Number of visitors attending the event | G7: ='SECTION 1 - APPLICATION'!I14 -> 0
A8: Average number of hours spent at the event | G8: ='SECTION3 + SCORE'!E53*'SECTION3 + SCORE'!E51/100 -> 0 | H8: ='SECTION3 + SCORE'!E53 -> 0 | I8: % of total event duration
A9: Maximum simultaneous attendance | G9: ='SECTION 1 - APPLICATION'!I20*SUM('SECTION 1 - APPLICATION'!I14:I18)/100 -> 0 | H9: ='SECTION 1 - APPLICATION'!I20 -> 100 | I9: % of attendance
A11: MEDICAL WORKLOAD
A12: Number of people with a potentially life-threatening condition (T1) | G12: ='part 1 letter'!D25 -> 0
A13: Number of people with an urgent condition (T2) | G13: ='part 1 letter'!D26 -> 0
A14: Number of people requiring basic care (T3) | G14: ='part 1 letter'!D27 -> 0
A15: Number of people present at the event who were transported to the hospital by ambulance | G15: No estimate given
A16: Number of people present at the event who were transported to the hospital by another vehicle/other ambulance | G16: No estimate given
A18: VARIABLES
A19: Average temperature at the event (estimate) | E19: Please select
A20: Alcohol consumption | E20: Please select
A21: Drug use | E21: Please select
A22: Predominant age group | E22: Please select
A24: FURTHER COMMENTS (FREE COMMENTS)
A25: Please share any comments here.

Sheet SECTION Disasters
B2: Further processing
B4: Check whether all information has been filled in correctly and click on “Next”
B20: ='[1]LUIK 4 - RISICO''S VGZ'!$D$51 ->  | C20: No Medical facilities/resources are required
B21: ='SECTION3 + SCORE'!$F$125 -> ? | C21: A small-scale aid station is required. The presence of a nurse, ambulance or MUG team is not necessary here
A24: ='SECTION3 + SCORE'!E121 -> Completion check - section 1 | B24: ='SECTION3 + SCORE'!F121 -> 1
A25: ='SECTION3 + SCORE'!E122 -> Completion check - section 2 | B25: ='SECTION3 + SCORE'!F122 -> 1
A26: ='SECTION3 + SCORE'!E123 -> Completion check - section 4 | B26: ='SECTION3 + SCORE'!F123 -> 
A27: ='SECTION3 + SCORE'!E124 -> Completion check - section 3 | B27: ='SECTION3 + SCORE'!F124 -> 1

Sheet SECTION6
B2: Further processing
B3: You have completed all the necessary steps.
B4: You can print the required letters by clicking on the buttons bellow.
B6: Letter 1 will provide a brief summary of the event, showing that no medical facilities and resources are required. | C6: Letter 2 shows the points of attention. The aim is to bring these problems to the organiser’s attention.
B9: These letters must then be sent to the organiser, so that they can see which arrangements are to be made. The letters must also be sent to the mayor.
B10: After the event, you are kindly requested to complete the “Care provided” section or to delegate this to the person responsible for medical facilities (as specified in section 1) and to return it to us, with the subject line “No medical facilities/resources”.
B11: =FIGURES!C36 -> icm.antwerpen@health.fgov.be
A15: ='SECTION Disasters'!B20 ->  | B15: No Medical facilities/resources are required
A16: ='SECTION Disasters'!B21 -> ? | B16: A small-scale aid station is required. The presence of a nurse, ambulance or MUG team is not necessary here
A19: ='SECTION Disasters'!B24 -> 1 | B19: Completion check - section 1
A20: ='SECTION Disasters'!B25 -> 1 | B20: Completion check - section 2
A21: ='SECTION Disasters'!B26 ->  | B21: Completion check - section 4
A22: ='SECTION Disasters'!B27 -> 1 | B22: Completion check - section 3

Sheet SECTION7
B2: Further processing
B3: You have completed all the necessary steps.
B4: You can print the required letters by clicking on the buttons bellow.
B6: Letter 1 will provide a brief summary of the event, showing that no medical facilities and resources are required. | C6: Letter 2 shows the points of attention. The aim is to bring these problems to the organiser’s attention.
B8: These letters must then be sent to the organiser, so that they can see which arrangements are to be made. The letters must also be sent to the mayor.
B9: After the event, you are kindly requested to complete the “Care provided” section or to delegate this to the person responsible for medical facilities (as specified in section 1) and to return it to us, with the subject line “Limited aid station”.
B10: =FIGURES!C36 -> icm.antwerpen@health.fgov.be
A16: =SECTION6!A15 ->  | B16: =SECTION6!B15 -> No Medical facilities/resources are required
A17: =SECTION6!A16 -> ? | B17: =SECTION6!B16 -> A small-scale aid station is required. The presence of a nurse, ambulance or MUG team is not necessary here
A20: =SECTION6!A19 -> 1 | B20: =SECTION6!B19 -> Completion check - section 1
A21: =SECTION6!A20 -> 1 | B21: =SECTION6!B20 -> Completion check - section 2
A22: =SECTION6!A21 ->  | B22: =SECTION6!B21 -> Completion check - section 4
A23: =SECTION6!A22 -> 1 | B23: =SECTION6!B22 -> Completion check - section 3

Sheet SECTION8
B3: Further processing
B5: Please do not forget to save this file and e-mail it to :
B6: =FIGURES!C36 -> icm.antwerpen@health.fgov.be
B7: with the subject line : “FPS advice”
B9: After the event, you are kindly requested to complete the “Care provided” section or to delegate this to the person responsible for medical facilities (as specified in section 1) and to return it to us, with the subject line “Care provided”.

Sheet SECTION5
A1: Schema voorwaarden knoppen en afdrukken brieven
G2: aangepaste cellen na rondsturen
B3: Controles | E3: resultaat | G3: luik | H3: waarde | I3: formule
B4: 1 | C4: Luik1 = ingevuld ==> I40 = 0 ==> opgepast als de naam van de versie veranderd ==> formule aanpassen | E4: =IF(F4=0,"ok","FOUT") -> FOUT | F4: ='SECTION 1 - APPLICATION'!I69 -> 1 | G4: 1 | H4: waardeluik 1 | I4: =ALS(OF(K21=0;K8=0;G3="";G22="Maak uw keuze";I14=0;G5="VERSIE 16";G6="Maak uw keuze");1;0)
B5: 2 | C5: Als er geen medische inzet is ==> Luik2!E10 = NEEN | E5: ='SECTION 2 - RISK ASSESSMENT'!E10 -> NO | F5: =IF(E5="NEEN",0,1) -> 1 | G5: 2 | H5: waardemed | I5: ALS(EN($D$4<>"Maak uw keuze";$D$5<>"Maak uw keuze";$D$6<>"Maak uw keuze";$D$7<>"Maak uw keuze";$D$8<>"Maak uw keuze");0;1)
B6: 3 | C6: Luik 2 = ingevuld ==> D23 = 0 | E6: =IF(F6=0,"ok","FOUT") -> FOUT | F6: ='SECTION 2 - RISK ASSESSMENT'!$C$32 -> 1 | G6: 2 | H6: waardeluik2
B7: 4 | C7: Luik 3 = ingevuld ==> niet nodig moet toch door Gks nagekeken wel nodig om te beslissen of ze brief mogen afprinten (nagaan of vermoedelijke inzet wel degelijk 0 is) | E7: =IF(F7=0,"ok","FOUT") -> FOUT | F7: ='SECTION3 + SCORE'!F124 -> 1 | G7: 3 | H7: waardeluik3 | I7: ALS(EN($E$41<>"Maak uw keuze";$E$42<>"Maak uw keuze";$E$43<>"Maak uw keuze";$E$44<>"Maak uw keuze";$E$45<>"Maak uw keuze";$E$46<>"Maak uw keuze";$E$47<>"Maak uw keuze";$E$52<>"Maak uw keuze";$E$53<>"Maak uw keuze";$E$54<>"Maak uw keuze");0;1) + appart Luik5 F13 = NEEN
B8: 5 | C8: Luik 4 = ingevuld ==> D27 = 0 | E8: =IF(F8=0,"ok","FOUT") ->  | F8: ='[1]LUIK 4 - RISICO''S VGZ'!D50 ->  | G8: 4 | H8: waardeluik4 | I8: ALS(EN($D$7<>"Maak uw keuze";$D$8<>"Maak uw keuze";$D$9<>"Maak uw keuze";$D$10<>"Maak uw keuze";$D$11<>"Maak uw keuze";$D$12<>"Maak uw keuze";$D$13<>"Maak uw keuze";$D$14<>"Maak uw keuze";$D$15<>"Maak uw keuze";$D$16<>"Maak uw keuze";$D$17<>"Maak uw keuze";$D$18<>"Maak uw keuze";$D$19<>"Maak uw keuze";$D$20<>"Maak uw keuze";$D$21<>"Maak uw keuze";$D$22<>"Maak uw keuze");0;1) + appart luik4 D29 = NEEN
C9: Vermoedelijke inzet | G9: Als K8 van luik 1 en Luik 3 volledig is ingevuld kan men zeggen dat deze uitkomst juist is anders zijn de nodige gegevens voor het berekenen van deze velden niet ingevuld en weet men het resultaat nog niet
C10: ='WORKING DOC'!A43 -> Minimum number of nurses (other than MUG team(s)) | F10: ='WORKING DOC'!B43 -> 0
C11: ='WORKING DOC'!A44 -> Minimum number of doctors (other than MUG team(s)) | F11: ='WORKING DOC'!B44 -> 0
C12: ='WORKING DOC'!A28 -> Minimum number of ambulances | F12: ='WORKING DOC'!B28 -> 0
B13: 6 | E13: =IF(F13=0,"ok","FOUT") -> FOUT | F13: =IF('SECTION 1 - APPLICATION'!K8=0,"?",IF(waardeluik3.3,"?",SUM(F10:F12))) -> ? | G13: 5 | H13: waardeinzet
C14: BLS of andere inzet | D14: BLS | F14: ='WORKING DOC'!B30 -> 
D15: andere hulpverleners | F15: ='WORKING DOC'!B31 -> 0
B16: 7 | D16: totaal | E16: =IF(F16<0.5,"NEEN","JA") ->  | F16: =SUM(F14:F15) -> 
C19: KNOPPEN
C20: STAP | D20: MOGELIJKHEDEN | E20: CONTROLE | F20: benoeming waarde
C21: Van luik 1 ==> luik 2 | D21: alleen controle op invullen luik 1 | E21: 1 (F4) | F21: waardeluik1.1
C22: Van luik 2 ==> luik 4 | D22: - controle op invullen luik 1 - controle op invullen luik 2 | E22: 1 (F4) 3 (F6) | F22: waardeluik2.1 waardeluik2.2
C23: Van luik 4 ==> luik 3 | D23: - nood medische antenne = NEEN (0) ==> printen (geen advies FOD) - nood medische antenne = JA (1) ==> luik 3 + controle op invullen luik 1 + contorle op invullen luik 2 + contorle op invullen luik 4 | E23: 2 (F5) 1 (F4) 3 (F6) 5 (F8) | F23: waardemed4 waardeluik4.1 waardeluik4.2 waardeluik4.4
C24: luik 3 ==> einde | D24: - vermoedelijke inzet = 0 ==> printen (geen advies FOD) - vermoedelijke inzet <> 0 ==> mailen (advies van FOD) + controle op invullen luik 1 + contorle op invullen luik 2 + contorle op invullen luik 4 + contorle op invullen luik 3 | E24: 6 (F13) 1 (F4) 3 (F6) 5 (F8) 4 (F7) | F24: waardeinzet3 waardeluik3.1 waardeluik3.2 waardeluik3.4 waardeluik3.3
C25: afprinten luik 6 - 7 - 8 | D25: - vermoedelijke inzet = 0 ==> printen (geen advies FOD) - vermoedelijke inzet <> 0 ==> mailen (advies van FOD) + controle op invullen luik 1 + contorle op invullen luik 2 + contorle op invullen luik 4 + contorle op invullen luik 3 | E25: 6 (F13) 1 (F4) 3 (F6) 5 (F8) 4 (F7) | F25: waardeinzet6 - 7 - 8 waardeluik6.1 - 7.1 - 8.2 waardeluik6.2 - 7.2 - 8.2 waardeluik6.4 - 7.4 - 8.4 waardeluik6.3 - 7.3 - 8.3
C32: BRIEVEN
C35: Beveiligde versie : organisator
B37: TE DOEN
B38: 1. | C38: Luik 1 | D38: rij 69 onzichtbaar maken | E38: opmaak ==> rij ==> verbergen
D39: kolom P tot T onzichtbaar maken
B40: 2. | C40: Luik 2 | D40: rij 31- 35 onzichtbaar maken
B41: 3. | C41: Luik 4 | D41: Kolom J onzichtbaar maken | E41: opmaak ==> kolom ==> verbergen
D42: rij 48 tot 52 onzichtbaar maken
B43: 4. | C43: Luik 3 | D43: Kolom I tot q onzichtbaar maken
D44: rij 121 tot 126 onzichtbaar maken
B45: 5. | C45: Luik rampen | D45: rij 20 - 27 onzichtbaar maken
B46: 6. | C46: deel 2 brief geen advies | D46: zien dat de keuze "alle velden" op staat
D47: kolom F onzichtbaar maken
B48: 7. | C48: deel 2 brief geen advies | D48: zien dat de keuze "alle velden" op staat
D49: kolom F onzichtbaar maken
B50: 8. | C50: Luik 6 | D50: rij 15 - 22 onzichtbaar maken
B51: 9. | C51: Luik 7 | D51: rij 16 - 23 onzichtbaar maken
B52: 10. | C52: alle tabbladen beveiligen met ons paswoord behalve de brieven geen advies en tabblad "organisator" | E52: Extra ==> beveiliging ==> blad beveiligen
B53: 11. | C53: de helblauwe tabbladen : deel 1 brief en deel 2 brief mogen niet beveiligd worden met paswoord en tabblad "organisator" (moet beveiligd met paswoord rampen).
B54: 12. | C54: Allen de rode tabbladen en het tabblad "Verzorgingen" zichtbaar laten, de rest verbergen. Voor de versie 'rampen' mogen ook de zwarte tabbladen zichtbaar blijven. | E54: opmaak ==> blad ==> verbergen
B55: 13. | C55: de database beveiligen met paswoord voor rampenambtenaar | E55: Extra ==> beveiliging ==> werkmap beveiligen
C60: Opmerkingen
C62: De volgende cellen werken met verwijzingen maar zullen slechts 1 x werken !!! Indien de formule is verwijderd kan men onderstaande terug plaatsen
C64: Luik 4 cel D16 tot D19 | D64: ALS('LUIK 1 - AANVRAAG'!G$20="neen";"Niet van toepassing";"Maak uw keuze") | G64: camping = misschien te linken aan luik 4 logies
C66: Luik 3 cel E21 tot E25 | D66: ALS($E$20="neen";"Niet van toepassing";"Maak uw keuze") | G66: omwonende
C68: Vragen
A70: Eventueel een kleurcode toepasen als een veld is ingevuld zoals bij de melding van agressie ???
C73: Formules in cellen die gewist kunnen worden
A75: Luik 3 | C75: cel E6 | D75: ='LUIK 2 - RISICOVRAAG'!D4
C76: cel E7 | D76: ='LUIK 2 - RISICOVRAAG'!D5
C77: cel E11 | D77: =IF(E10=0;"";IF(E10<>"";"niet van toepassing";""))
C78: cel E18 | D78: =IF('LUIK 1 - AANVRAAG'!I18=0;"NEEN";"JA")
C79: cel E19 | D79: =IF($E$18="neen";"Niet van toepassing";"Maak uw keuze")
C80: cel E20 | D80: =IF($E$18="neen";"Niet van toepassing";"Maak uw keuze")
C81: cel E21 | D81: =IF($E$18="neen";"Niet van toepassing";"Maak uw keuze")
C82: cel E22 | D82: =IF($E$18="neen";"Niet van toepassing";"Maak uw keuze")
C83: cel E23 | D83: =IF($E$18="neen";"Niet van toepassing";"Maak uw keuze")
C84: cel E73 | D84: ='LUIK 2 - RISICOVRAAG'!D8
C85: cel E74 | D85: ='LUIK 2 - RISICOVRAAG'!D7
C86: cel E90 | D86: =ALS(LUIK5!F13<>0;"neen";"ja")
C87: cel E93 | D87: =ALS(LUIK5!F13<>0;"ja";"NEEN")
A89: Luik 4 | C89: cel D19 | D89: =IF('LUIK 1 - AANVRAAG'!G$22="neen";"Niet van toepassing";"Maak uw keuze")
C90: cel D20 | D90: =IF('LUIK 1 - AANVRAAG'!G$22="neen";"Niet van toepassing";"Maak uw keuze")
C91: cel D21 | D91: =IF('LUIK 1 - AANVRAAG'!G$22="neen";"Niet van toepassing";"Maak uw keuze")
C92: cel D22 | D92: =IF('LUIK 1 - AANVRAAG'!G$22="neen";"Niet van toepassing";"Maak uw keuze")
C95: keuzelijst aanmaken
B97: 1 | C97: gegevens ingeven ==> in vak waar de cel staat (C68) de naam ingeven
B98: 2 | C98: in de cel waar men de keuzelijst wil maken : Data ==> valideren ==> toestaan : lijst ==> bron = naam van de lijst
C102: Appart luik 6 maken voor ieder mogelijk geval ?
C103: 1 geen medische inzet ==> niets mailen naar FOD : NEEN?Brief gemeente : JA , Brief 100 : NEEN
C104: 2 wel medische inzet maar VPK … = 0 ==> mailen FOD ?brief gemeente ? Brief 100 ? Verzorgingen
C105: 3 geen automatisch advies ==> mailen FOD ?brief gemeente ? Brief 100 ? Verzorgingen
C107: vanaf OF amb en/of VP => mailen FOD, anders brief gemeente
C108: Brief 100 : alleen via FOD => verbergen voor invuller

Sheet part 1 letter no advice
A1: FPS Public Health, Safety of the Food Chain and the Environment
A2: =FIGURES!C41 -> ICM - Antwerp Field Service - Advice for Increased-risk Events (PRIMA)
A3: =FIGURES!C36 -> icm.antwerpen@health.fgov.be
F4: Please select
A5: 1. GENERAL EVENT INFORMATION | F5: 1
A6: ='SECTION 1 - APPLICATION'!$G$5 -> VERSION 25 | F6: 1
A7: Municipality | C7: ='SECTION 1 - APPLICATION'!$G$3 -> 0 | F7: 1
A8: ='WORKING DOC'!A11 -> Event date | D8: ='WORKING DOC'!B11 -> 00/00/0000 | F8: 1
A9: ='WORKING DOC'!A12 -> Total attendance after correction | D9: =IF(OR('[1]LUIK 4 - RISICO''S VGZ'!D52=0,'SECTION3 + SCORE'!F126=0),'WORKING DOC'!B12,"?") ->  | F9: 1
A10: ='WORKING DOC'!A13 -> Total event duration in hours | D10: =IF(OR('[1]LUIK 4 - RISICO''S VGZ'!D52=0,'SECTION3 + SCORE'!F126=0),'WORKING DOC'!B13,"?") ->  | F10: 1
A11: ='WORKING DOC'!A14 -> Maximum number of simultaneous visitors | D11: =IF(OR('[1]LUIK 4 - RISICO''S VGZ'!$D$52=0,'SECTION3 + SCORE'!F126=0),'WORKING DOC'!$B14,"?") ->  | F11: 1
A12: ='WORKING DOC'!A15 -> Maximum time spent by said visitors at the event in hours | D12: =IF(OR('[1]LUIK 4 - RISICO''S VGZ'!$D$52=0,'SECTION3 + SCORE'!F126=0),'WORKING DOC'!$B15,"?") ->  | F12: 1
F13: 1
A14: 2. TEMPORARY MEDICAL CENTRE | F14: 1 | G14: Using a random sample, check that section 2 has been completed and that medical resources/facilities = NO or, if medical resources/facilities = YES, check that section 3 has been completed : If these conditions are not met ==>? (Letter to become invalid if these conditions are not met)
F15: 1
A16: 2.1. Is a temporary medical centre needed | F16: 1
F17: 1
A18: ='WORKING DOC'!A17 -> Is a temporary medical centre needed during this event | D18: =IF(OR('[1]LUIK 4 - RISICO''S VGZ'!$D$50<>0,'SECTION3 + SCORE'!F124<>0),"?",SECTION5!E16) ->  | F18: 1
A19: ='WORKING DOC'!A18 -> Are additional public health measures needed | D19: =IF(OR('[1]LUIK 4 - RISICO''S VGZ'!$D$52=0,'SECTION3 + SCORE'!F126=0),'WORKING DOC'!$B18,"?") ->  | F19: 1
A20: ='WORKING DOC'!A19 -> Are additional measures for a campsite needed | D20: =IF(OR('[1]LUIK 4 - RISICO''S VGZ'!$D$52=0,'SECTION3 + SCORE'!F126=0),'WORKING DOC'!$B19,"?") ->  | F20: 1
F21: 1
A22: 2.2 Expected workload and injuries | F22: 1
F23: 1
A24: Workload | F24: 1
F25: 1
A26: ='WORKING DOC'!A21 -> Number of life-threatening conditions (after handover) | D26: =IF(OR('[1]LUIK 4 - RISICO''S VGZ'!$D$52=0,'SECTION3 + SCORE'!F126=0),'WORKING DOC'!$B21,"?") ->  | F26: 1
A27: ='WORKING DOC'!A22 -> Number of urgent conditions (request doctor and/or ambulance transport to hospital) | D27: =IF(OR('[1]LUIK 4 - RISICO''S VGZ'!$D$52=0,'SECTION3 + SCORE'!F126=0),'WORKING DOC'!$B22,"?") ->  | F27: 1
A28: ='WORKING DOC'!A23 -> Number of requests for (basic) medical care | D28: =IF(OR('[1]LUIK 4 - RISICO''S VGZ'!$D$52=0,'SECTION3 + SCORE'!F126=0),'WORKING DOC'!$B23,"?") ->  | F28: 1
A29: ='WORKING DOC'!A24 -> Total number of people receiving care | D29: =IF(OR('[1]LUIK 4 - RISICO''S VGZ'!$D$52=0,'SECTION3 + SCORE'!F126=0),'WORKING DOC'!$B24,"?") ->  | F29: 1
A30: ='WORKING DOC'!A25 -> Number of simultaneous cases and, therefore, required number of beds/spots in aid station(s) | D30: =IF(OR('[1]LUIK 4 - RISICO''S VGZ'!$D$52=0,'SECTION3 + SCORE'!$F$126=0),'WORKING DOC'!$B25,"?") ->  | F30: 1
F31: 1
A32: 2.3. Medical resources | F32: 1
F33: 1
A34: Other aid workers | F34: 1
F35: 1
A36: ='WORKING DOC'!A30 -> Minimum number of BLS teams | D36: =IF(AND('SECTION3 + SCORE'!E10="",'SECTION3 + SCORE'!I11=""),"oppervlakte in luik 3 ?",IF(OR('[1]LUIK 4 - RISICO''S VGZ'!$D$52=0,'SECTION3 + SCORE'!F116=0),IF('SECTION 2 - RISK ASSESSMENT'!E10="NEEN",0,'WORKING DOC'!$B30),"?")) -> oppervlakte in luik 3 ? | F36: 1
A37: ='WORKING DOC'!A31 -> Minimum number of other aid workers (excluding the BLS teams and the ambulance aid workers) | D37: =IF(OR('[1]LUIK 4 - RISICO''S VGZ'!$D$52=0,'SECTION3 + SCORE'!F126=0),'WORKING DOC'!$B31,"?") ->  | F37: 1
F38: 1
A39: ='WORKING DOC'!A36 -> Can the roles of BLS team member and aid station worker be combined | D39: NO | F39: 1
F40: 1
A41: Aid stations | F41: 1
F42: 1
A43: ='WORKING DOC'!A38 -> Minimum area for the aid station | D43: =IF(OR('[1]LUIK 4 - RISICO''S VGZ'!$D$52=0,'SECTION3 + SCORE'!F126=0),'WORKING DOC'!$B38,"?") ->  | F43: 1
A44: ='WORKING DOC'!A40 -> Should multiple aid stations be setp up | D44: NO | F44: 1
F45: 1
A46: 2.4. Communication model | F46: =IF(D$18="NEEN",0,1) -> 
F47: =IF(D$18="NEEN",0,1) -> 
A48: MODEL | B48: TYPE | C48: CALL GROUPS | F48: =IF(D$18="NEEN",0,1) -> 
A49: Mobile | B49: Basic | C49: Exchange mobile numbers of responsible persons! | F49: =IF(D$18="NEEN",0,IF(INTERPRETATION!$J$91=0,1,0)) -> 
A50: Model 1 | B50: Minimum | C50: Call group for multidisciplinary coordination and consultation | F50: =IF(D$18="NEEN",0,IF(INTERPRETATION!$J$91=1,1,0)) -> 
A51: Model 1 | B51: Minimum | C51: Operational medical call group | F51: =IF(D$18="NEEN",0,IF(INTERPRETATION!$J$91=1,1,0)) -> 
F52: =IF(D$18="NEEN",0,IF(INTERPRETATION!$J$91=1,1,0)) -> 
A53: 3. ADMINISTRATIVE DETAILS | F53: 1
F54: 1
A55: 3.1. Organiser | F55: 1
F56: 1
A57: Name and first name | C57: =IF('SECTION 1 - APPLICATION'!G25="","niet ingevuld",'SECTION 1 - APPLICATION'!G25) -> niet ingevuld | F57: 1
A58: Organisation | C58: =IF('SECTION 1 - APPLICATION'!G24="","niet ingevuld",'SECTION 1 - APPLICATION'!G24) -> niet ingevuld | F58: 1
A59: Outside event | C59: =IF('SECTION 1 - APPLICATION'!G30="","niet ingevuld",'SECTION 1 - APPLICATION'!G30) -> niet ingevuld | F59: 1
A60: During event | C60: =IF('SECTION 1 - APPLICATION'!G31="","niet ingevuld",'SECTION 1 - APPLICATION'!G31) -> niet ingevuld | F60: 1
F61: 1
A62: 3.2. Person responsible for medical facilities | F62: 1
F63: 1
A64: Name and first name | C64: =IF(D36<0,"Niet van toepassing",IF('SECTION 1 - APPLICATION'!G34="","niet ingevuld",'SECTION 1 - APPLICATION'!G34)) -> niet ingevuld | F64: 1
A65: Organisation | C65: =IF(D36<0,"Niet van toepassing",IF('SECTION 1 - APPLICATION'!G39="","niet ingevuld",'SECTION 1 - APPLICATION'!G39)) -> niet ingevuld | F65: 1
A66: Outside event | C66: =IF(D36<0,"Niet van toepassing",IF('SECTION 1 - APPLICATION'!G40="","niet ingevuld",'SECTION 1 - APPLICATION'!G40)) -> niet ingevuld | F66: 1
A67: During event | C67: =IF(D36<0,"Niet van toepassing",IF('SECTION 1 - APPLICATION'!G41="","niet ingevuld",'SECTION 1 - APPLICATION'!G41)) -> niet ingevuld | F67: 1
F68: 1
A69: 3.3. Insurance | F69: 1
F70: 1
A71: Insurance company | C71: =IF('SECTION 1 - APPLICATION'!G53="","niet ingevuld",'SECTION 1 - APPLICATION'!G53) -> niet ingevuld | F71: 1
A72: Policy number | C72: =IF('SECTION 1 - APPLICATION'!G55="","niet ingevuld",'SECTION 1 - APPLICATION'!G55) -> niet ingevuld | F72: 1
F74: ?

Sheet part 2 letter no advice
C1: FPS Public Health, Safety of the Food Chain and the Environment
C2: =FIGURES!C41 -> ICM - Antwerp Field Service - Advice for Increased-risk Events (PRIMA)
C3: =FIGURES!C36 -> icm.antwerpen@health.fgov.be
A5: 3. MISCELLANEOUS MEASURES
A7: 3.1. Measures for local residents
A9: =INTERPRETATION!D37 -> Should measures be taken for local residents | E9: =IF(OR('[1]LUIK 4 - RISICO''S VGZ'!$D$52=0,'SECTION3 + SCORE'!F126=0),INTERPRETATION!$G37,"?") -> 
F10: choice
A11: Residents inside isolation perimeter | C11: Look up the total number of local residents living near the event site Inform these residents of the event. Check whether a liaison officer should be appointed to answer questions | F11: =IF(OR('[1]LUIK 4 - RISICO''S VGZ'!$D$52=0,'SECTION3 + SCORE'!F126=0),RESULTS!$H43,"?") -> 
A12: Retirement home/hospital inside perimeter | C12: Check that the institute in question has been notified of the event and that there is an alternative access point. IF NOT : allocate additional resources in or near the institute in question for the entire duration it will have to run autonomously | F12: =IF(OR('[1]LUIK 4 - RISICO''S VGZ'!$D$52=0,'SECTION3 + SCORE'!F126=0),RESULTS!$H44,"?") -> 
A13: On-call GP needed inside perimeter | C13: Notify GPs in the vicinity of the event, informing them of the time that the perimeter will be closed | F13: =IF(OR('[1]LUIK 4 - RISICO''S VGZ'!$D$52=0,'SECTION3 + SCORE'!F126=0),RESULTS!$H45,"?") -> 
C14: Share the phone number of the Operational Control Centre (GP consultations + parking) | F14: =IF(OR('[1]LUIK 4 - RISICO''S VGZ'!$D$52=0,'SECTION3 + SCORE'!F126=0),RESULTS!$H46,"?") -> 
A15: On-call nurse needed inside perimeter | C15: Notify on-call nurses in the vicinity of the event, informing them of the time that the perimeter will be closed | F15: =IF(OR('[1]LUIK 4 - RISICO''S VGZ'!$D$52=0,'SECTION3 + SCORE'!F126=0),RESULTS!$H47,"?") -> 
C16: Share the phone number of the Operational Control Centre (Nurse consultations + parking) | F16: =IF(OR('[1]LUIK 4 - RISICO''S VGZ'!$D$52=0,'SECTION3 + SCORE'!F126=0),RESULTS!$H48,"?") -> 
A17: meal delivery needed inside perimeter | C17: Contact the PCSW to check whether the service(s) responsible for meal delivery are aware of the event and, if necessary, know where they will pass the perimeter | F17: =IF(OR('[1]LUIK 4 - RISICO''S VGZ'!$D$52=0,'SECTION3 + SCORE'!F126=0),RESULTS!$H49,"?") -> 
A18: on-call pharmacist needed inside perimeter | C18: Ask whether it is possible for the on-call pharmacist to arrange for a replacement IF NOT POSSIBLE: ensure free access to the pharmacy | F18: =IF(OR('[1]LUIK 4 - RISICO''S VGZ'!$D$52=0,'SECTION3 + SCORE'!F126=0),RESULTS!$H50,"?") -> 
A19: Number of municipalities concerned | C19: Are all municipalities involved in the planning process | F19: =IF(OR('[1]LUIK 4 - RISICO''S VGZ'!$D$52=0,'SECTION3 + SCORE'!F126=0),RESULTS!$H51,"?") -> 
A20: NOT APPLICABLE | F20: =IF(OR(F11=1,F12=1,F13=1,F14=1,F15=1,F16=1,F17=1,F18=1,F19=1),0,"?") -> 
F21: 1
A22: 3.2. Measures for multidisciplinary consultation | F22: 1
F23: 1
A24: =INTERPRETATION!D74 -> Is multidisciplinary adjustment necessary | B24: =INTERPRETATION!E74 -> 0 | D24: =INTERPRETATION!F74 -> 0 | E24: =IF(OR('[1]LUIK 4 - RISICO''S VGZ'!$D$52=0,'SECTION3 + SCORE'!F126=0),INTERPRETATION!G74,"?") ->  | F24: 1
F25: 1
A26: Presence of utilities | C26: Check with the fire brigade whether the capacity of the utilities is sufficient for the requirements of this event. Also check that they will not hinder/cause any problems for the traffic flow of medical services | F26: =IF('SECTION3 + SCORE'!I66=0,"?","1") -> ?
A27: Means of communication | C27: Check that the emergency services are familiar with the communication equipment used, if specific equipment is used. | F27: =IF(OR('[1]LUIK 4 - RISICO''S VGZ'!$D$52=0,'SECTION3 + SCORE'!F126=0),'SECTION3 + SCORE'!I67,"?") -> 
A28: Presence of large animals | C28: The event must be adapted to the presence of large animals. | F28: =IF(OR('[1]LUIK 4 - RISICO''S VGZ'!$D$52=0,'SECTION3 + SCORE'!F126=0),'SECTION3 + SCORE'!I68,"?") -> 
A29: International reputation (> 9 % foreigners expected) | C29: The presence of foreign visitors may lead to language problems. | F29: =IF(OR('[1]LUIK 4 - RISICO''S VGZ'!$D$52=0,'SECTION3 + SCORE'!F$126=0),'SECTION3 + SCORE'!I69,"?") -> 
A30: Presence of wheelchair users | C30: If the event is visited by multiple wheelchair users, access to the event and the corresponding facilities must be adapted accordingly. | F30: =IF('SECTION3 + SCORE'!I46=1,1,0) -> 0
A31: Presence of children | C31: Has thought been given to the fact that children may get lost. Is there a fixed place where lost/missing children can wait to be picked up. The event’s organisers may recommend that children’s parents or guardians write their mobile number/contact details on the child’s arm or on a wristband. | F31: =IF('SECTION3 + SCORE'!E42="< 10 jaar met begeleiding van de ouders",1,IF('SECTION3 + SCORE'!E42="alle leeftijden",1,0)) -> 0
A32: Presence of children under the age of 10 without parental supervision | C32: It is strongly recommended to designate a specific area where parents and guardians can pick up lost/missing children. Make sure that a proper monitoring system is in place | F32: =IF('SECTION3 + SCORE'!E42="< 10 jaar zonder begeleiding van de ouders",1,0) -> 0
A33: Presence of drugs | C33: Ascertain which drugs were used. | F33: =IF('SECTION3 + SCORE'!E44="Overvloedig gebruik",1,0) -> 0
A34: Presence of fireworks | C34: Fireworks can cause burns | F34: =IF(OR('[1]LUIK 4 - RISICO''S VGZ'!$D$52=0,'SECTION3 + SCORE'!F$126=0),'SECTION3 + SCORE'!I70,"?") -> 
A35: Presence of weapons | C35: Weapons can cause gunshot and/or stab wounds | F35: =IF(OR('[1]LUIK 4 - RISICO''S VGZ'!$D$52=0,'SECTION3 + SCORE'!F$126=0),'SECTION3 + SCORE'!I71,"?") -> 
A36: Sold out | C36: At sold-out events, visitors have less room to move on site. At the same time, people will attempt to access the site unlawfully. This increases the workload of emergency services, as they will also have to respond to problems outside the event proper, at the edge of the perimeter | F36: =IF(OR('[1]LUIK 4 - RISICO''S VGZ'!$D$52=0,'SECTION3 + SCORE'!F$126=0),'SECTION3 + SCORE'!I72,"?") -> 
A37: Simultaneous increased-risk events nearby | C37: Organise a multi-disciplinary coordination meeting or ensure that the Operational Control Centres of the various events can contact each other | F37: =IF(OR('[1]LUIK 4 - RISICO''S VGZ'!$D$52=0,'SECTION3 + SCORE'!F$126=0),'SECTION3 + SCORE'!I73,"?") -> 
A38: Specific risks in the area | C38: Check whether these specific risks may affect the event. | F38: =IF(OR('[1]LUIK 4 - RISICO''S VGZ'!$D$52=0,'SECTION3 + SCORE'!F$126=0),'SECTION3 + SCORE'!I74,"?") -> 
A39: Problem according to police | C39: A multidisciplinary coordination meeting should be scheduled with the police | F39: =IF(OR('[1]LUIK 4 - RISICO''S VGZ'!$D$52=0,'SECTION3 + SCORE'!F126=0),'SECTION3 + SCORE'!I75,"?") -> 
A40: Problem according to the fire department | C40: A multidisciplinary coordination meeting should be scheduled with the police | F40: =IF(OR('[1]LUIK 4 - RISICO''S VGZ'!$D$52=0,'SECTION3 + SCORE'!F126=0),'SECTION3 + SCORE'!I76,"?") -> 
A41: Previous negative experience with this type of event | C41: What solution was suggested and/or offered in these cases Are there sufficient guarantees to avoid these problems this time | F41: =IF(OR('[1]LUIK 4 - RISICO''S VGZ'!$D$52=0,'SECTION3 + SCORE'!F126=0),'SECTION3 + SCORE'!I77,"?") -> 
A42: Organiser’s reputation | C42: If the organiser’s reputation is unknown, it is recommended to have various parties visit the site prior to the event and, if necessary, during the event | F42: =IF(OR('[1]LUIK 4 - RISICO''S VGZ'!$D$52=0,'SECTION3 + SCORE'!F126=0),'SECTION3 + SCORE'!I60,"?") -> 
A43: Event has own security in addition to police | C43: Check whether other emergency services are sufficiently aware of the resources/facilities allocated. | F43: =IF(OR('[1]LUIK 4 - RISICO''S VGZ'!$D$52=0,'SECTION3 + SCORE'!F126=0),'SECTION3 + SCORE'!I78,"?") -> 
A44: Specific legislation concerning this type of event | C44: Check whether all legal requirements have been met There is currently specific legislation in place for car rallies, football matches and motocross events, in addition to the provision of the Royal Decree of 16/02/06 | F44: =IF(OR('[1]LUIK 4 - RISICO''S VGZ'!$D$52=0,'SECTION3 + SCORE'!F126=0),'SECTION3 + SCORE'!I79,"?") -> 
A45: NOT APPLICABLE | F45: =IF(OR(F26=1,F27=1,F28=1,F29=1,F30=1,F34=1,F35=1,F36=1,F37=1,F38=1,F39=1,F40=1,F41=1,F42=1,F43=1,F44=1),0,"?") -> 
F46: =F47 -> 1
A47: Specific multidisciplinary points of attention | F47: =IF(AND(F49=0,F50=0,F51=0,F52=0,F53=0,F54=0,F55=0,F57=0),0,1) -> 1
F48: =F47 -> 1
A49: Are tents open to the public | C49: If tents are open to the public, the fire department must advise whether all evacuation requirements have been met | F49: ='SECTION3 + SCORE'!I81 -> 0
A50: Number of tents with a surface area greater than 50 m2 | C50: ='SECTION3 + SCORE'!$J$82 -> Please select | F50: ='SECTION3 + SCORE'!I82 -> 0
A51: Main utilities used | C51: ='SECTION3 + SCORE'!E83 -> Please select | F51: ='SECTION3 + SCORE'!I83 -> 0
A52: Are VIPs expected | C52: * VIPs form an increased risk for the police and for other emergency services. Have emergency services coordination to assess the impact of the policing plan on the plans of other emergency services * Does the presence of a particular VIP require that additional measures be taken by the teams on site. | F52: ='SECTION3 + SCORE'!I84 -> 0
A53: Are there NADAR or HERAS fences | C53: In long stretches of fencing, are there enough places for emergency services to cross the fences | F53: ='SECTION3 + SCORE'!I85 -> 0
A54: Is the event easily accessible by public transport | C54: * If public transport reaches all the way up to the event : is there a separate road for public transport * If people get off public transport near the event : is there a separate road for pedestrians. Has care been taken to ensure that this road does not cross the road used by emergency services. * If there is no public transport in the vicinity of the event : is this taken into account in the mobility plan | F54: ='SECTION3 + SCORE'!I86 -> 1
A55: Are there enough car parks nearby | C55: ='SECTION3 + SCORE'!E85 -> Please select | F55: 1
A56: Are the car parks supervised in any way (alerting emergency services in the event of an emergency) | C56: Problems can also occur on car parks. Can parking attendants (if any) contact the Operational Control Centre to call in assistance if necessary. | F56: 1
A57: Does the event have its own shuttle service | C57: Is the shuttle service clearly recognisable are the stops of the shuttle service clearly marked on the map Is there are specific route for the shuttle service | F57: ='SECTION3 + SCORE'!I89 -> 0
F58: 1
A59: 3.3. Measures concerning the MIP | F59: 1
F60: 1
A61: =INTERPRETATION!D79 -> Are any additional disaster preparedness measures needed | B61: =INTERPRETATION!E79 -> 0 | D61: =INTERPRETATION!F79 -> 0 | E61: =IF(OR('[1]LUIK 4 - RISICO''S VGZ'!$D$52=0,'SECTION3 + SCORE'!F126=0),INTERPRETATION!G79,"?") ->  | F61: 1
F62: 1
A63: QUESTION | F63: =IF(OR(F64=1,F65=1,F66=1,F67=1,F68=1,F69=1),0,"?") -> 
A64: Are there adequate maps of the site | F64: =IF(OR('[1]LUIK 4 - RISICO''S VGZ'!$D$52=0,'SECTION3 + SCORE'!F126=0),'SECTION3 + SCORE'!I94,"?") -> 
A65: Are there adequate maps of the entire isolation area | F65: =IF(OR('[1]LUIK 4 - RISICO''S VGZ'!$D$52=0,'SECTION3 + SCORE'!F126=0),'SECTION3 + SCORE'!I95,"?") -> 
A66: Is there a clear communication model that can be used in the event of a collective problem | F66: =IF(OR('[1]LUIK 4 - RISICO''S VGZ'!$D$52=0,'SECTION3 + SCORE'!F126=0),'SECTION3 + SCORE'!I96,"?") -> 
A67: Does the communication model comply with DGH requirements | F67: =IF(OR('[1]LUIK 4 - RISICO''S VGZ'!$D$52=0,'SECTION3 + SCORE'!F126=0),'SECTION3 + SCORE'!I97,"?") -> 
A68: Is there a direct link to the 100 switchboard | F68: =IF(OR('[1]LUIK 4 - RISICO''S VGZ'!$D$52=0,'SECTION3 + SCORE'!F126=0),'SECTION3 + SCORE'!I98,"?") -> 
A69: Is the Medical Intervention Plan compliant with the Royal Decree of 16/02/06 | F69: =IF(OR('[1]LUIK 4 - RISICO''S VGZ'!$D$52=0,'SECTION3 + SCORE'!F126=0),'SECTION3 + SCORE'!I99,"?") -> 
A70: NOT APPLICABLE | F70: =IF(OR(F64=1,F65=1,F66=1,F67=1,F68=1,F69=1),0,"?") -> 
F71: 1
A72: 3.4. Other public health measures | F72: 1
F73: 1
A74: =INTERPRETATION!D85 ->  | B74: =INTERPRETATION!E85 -> 0 | D74: =INTERPRETATION!F85 -> 0 | E74: =IF(OR('[1]LUIK 4 - RISICO''S VGZ'!$D$52=0,'SECTION3 + SCORE'!F126=0),INTERPRETATION!G85,"?") ->  | F74: 1
A75: =INTERPRETATION!D86 ->  | B75: =INTERPRETATION!E86 -> 0 | D75: =INTERPRETATION!F86 -> 0 | E75: =IF(OR('[1]LUIK 4 - RISICO''S VGZ'!$D$52=0,'SECTION3 + SCORE'!F126=0),INTERPRETATION!G86,"?") ->  | F75: 1
F76: 1
A77: POINTS OF ATTENTION FOR EVENT | C77: Sufficient attention should be paid to the prevention of sunburn. This must be done prior to the event. Make sure that visitors bring sunscreen, sunglasses and a hat to the event. | F77: =IF(OR('[1]LUIK 4 - RISICO''S VGZ'!$D$52=0,'SECTION3 + SCORE'!F126=0),RESULTS!$H82,"?") -> 
C78: If security problems are expected, this should be brought to the attention of the police. | F78: =IF(OR('[1]LUIK 4 - RISICO''S VGZ'!$D$52=0,'SECTION3 + SCORE'!F126=0),RESULTS!$H83,"?") -> 
C79: During hot weather, medical resources/facilities may be in high demand and visitors may even go into a coma, especially as a result of dehydration. Therefore, organisers must provide free drinking water when outdoor temperatures exceed 27°C | F79: =IF(OR('[1]LUIK 4 - RISICO''S VGZ'!$D$52=0,'SECTION3 + SCORE'!F126=0),RESULTS!$H84,"?") -> 
C80: Consult the relevant tables to find out how many toilets should be arranged. Do not forget to subtract the number of fixed toilets from the total number of required toilets! | F80: =IF(OR('[1]LUIK 4 - RISICO''S VGZ'!$D$52=0,'SECTION3 + SCORE'!F126=0),RESULTS!$H85,"?") -> 
C81: If portable toilets are not regularly cleaned and emptied, they will not or hardly be used. Instead, visitors will opt to use the surrounding area as a toilet. It is important that the task of cleaning the toilets is assigned to a specific team and that a clear responsible person is nominated in case of questions from the Operational Control Centre | F81: =IF(OR('[1]LUIK 4 - RISICO''S VGZ'!$D$52=0,'SECTION3 + SCORE'!F126=0),RESULTS!$H86,"?") -> 
C82: Good waste management during the event helps avoid clean-up issues after the event. Check whether the people attending the event can find the bins (mark bins with a clear logo) | F82: =IF(OR('[1]LUIK 4 - RISICO''S VGZ'!$D$52=0,'SECTION3 + SCORE'!F126=0),RESULTS!$H87,"?") -> 
C83: Check whether it is possible to separate waste (Plastic, Metal & Drink cartons, general waste, etc.) | F83: =IF(OR('[1]LUIK 4 - RISICO''S VGZ'!$D$52=0,'SECTION3 + SCORE'!F126=0),RESULTS!$H88,"?") -> 
C84: Check whether waste is collected during the event (also at weekends) If no waste is collected during the weekend, arrangements should be made to store waste in a location where it will not inconvenience anyone | F84: =IF(OR('[1]LUIK 4 - RISICO''S VGZ'!$D$52=0,'SECTION3 + SCORE'!F126=0),RESULTS!$H89,"?") -> 
C85: Do food stalls have access to a properly functioning cold chain. In the absence of a sound cold chain, visitors may suffer food poisoning. Arrangements made with regard to the cold chain must also be discussed with the fire department ! | F85: =IF(OR('[1]LUIK 4 - RISICO''S VGZ'!$D$52=0,'SECTION3 + SCORE'!F126=0),RESULTS!$H90,"?") -> 
C86: Stalls using fire must meet all requirements set by the fire department. Naturally, a minimum requirement is that a fire extinguisher be present. | F86: =IF(OR('[1]LUIK 4 - RISICO''S VGZ'!$D$52=0,'SECTION3 + SCORE'!F126=0),RESULTS!$H91,"?") -> 
C87: It is advisable to recommend that visitors with a chronic condition carry a medical card with them, along with their medication. If desired, such visitors can hand over their medical card to the medical staff on site. | F87: =IF(OR('[1]LUIK 4 - RISICO''S VGZ'!$D$52=0,'SECTION3 + SCORE'!F126=0),RESULTS!$H92,"?") -> 
C88: It is recommended to distribute flyers with information about prevention and the availability (or unavailability) of medical staff on site during ticket sales. | F88: =IF(OR('[1]LUIK 4 - RISICO''S VGZ'!$D$52=0,'SECTION3 + SCORE'!F126=0),RESULTS!$H93,"?") -> 
A89: POINTS OF ATTENTION FOR CAMPSITE | C89: Drinking water supply system with sufficient flow rate | F89: =IF(OR('[1]LUIK 4 - RISICO''S VGZ'!$D$52=0,'SECTION3 + SCORE'!F126=0),RESULTS!$H94,"?") -> 
C90: Consult the relevant tables to find out how many toilets should be arranged. Do not forget to subtract the number of fixed toilets from the total number of required toilets! | F90: =IF(OR('[1]LUIK 4 - RISICO''S VGZ'!$D$52=0,'SECTION3 + SCORE'!F126=0),RESULTS!$H95,"?") -> 
C91: The must be ample shower facilities!! | F91: =IF(OR('[1]LUIK 4 - RISICO''S VGZ'!$D$52=0,'SECTION3 + SCORE'!F126=0),RESULTS!$H96,"?") -> 
C92: It is advisable to set up a system with medical services that allows for the storage and labelling of chronic medication, especially when said medication is to be kept cool | F92: =IF(OR('[1]LUIK 4 - RISICO''S VGZ'!$D$52=0,'SECTION3 + SCORE'!F126=0),RESULTS!$H97,"?") -> 
A93: NOT APPLICABLE | F93: =IF(OR(F77=1,F78=1,F79=1,F80=1,F81=1,F82=1,F83=1,F84=1,F85=1,F86=1,F87=1,F88=1,F89=1,F90=1,F91=1,F92=1),0,"?") -> 
F94: =F95 -> 1
A95: 3.5. Other administrative details | F95: =(IF(AND(F97=0,F98=0,F99=0,F100=0,F101=0),0,1)) -> 1
F96: =F95 -> 1
A97: Insurance | B97: The insurance details are missing. Organisers requesting advice from the health inspectorate must at all times arrange for insurance, as their event will necessarily be a major one. | F97: =IF('SECTION 1 - APPLICATION'!G53="",1,0) -> 1
A98: Organiser | B98: The organiser’s name is missing. We recommend refraining from giving advice if the organiser is unknown. | F98: =IF('SECTION 1 - APPLICATION'!G25="",1,0) -> 1
B99: The organiser’s phone number is missing. We recommend refraining from giving advice if the organiser cannot be contacted. | F99: =IF(AND('SECTION 1 - APPLICATION'!G30="",'SECTION 1 - APPLICATION'!G31=""),1,0) -> 1
A100: Person responsible for medical facilities | B100: The name of the person responsible for medical facilities is missing. We recommend refraining from giving advice if the organiser is unknown. | F100: =IF('SECTION 1 - APPLICATION'!G34="",1,0) -> 1
B101: The phone number of the person responsible for medical facilities is missing. We recommend refraining from giving advice if the organiser cannot be contacted. | F101: =IF(AND('SECTION 1 - APPLICATION'!G38="",'SECTION 1 - APPLICATION'!G39=""),1,0) -> 0
F102: 1
A103: 4. OVERVIEW OF VARIABLES | F103: 1
F104: 1
A105: 4.1. Isolation risk | F105: 1
F106: 1
A107: DISTANCES | B107: Nearest 100 ambulance | D107: ='SECTION3 + SCORE'!E6 -> 0 | F107: 1
B108: Nearest MUG | D108: ='SECTION3 + SCORE'!E7 -> 0 | F108: 1
B109: Nearest emergency department | D109: ='SECTION3 + SCORE'!$E$18 -> 0 | F109: 1
A110: ACCESSABILITY | B110: Access routes to the event | D110: ='SECTION3 + SCORE'!$E$8 -> Please select | F110: 1
A111: PERIMETERS | B111: Number of perimeters to pass | D111: ='SECTION3 + SCORE'!E9 -> 0 | F111: 1
A112: SITE VARIABLES | B112: Surface area of the site in km2 | D112: ='SECTION3 + SCORE'!E10 -> 0 | F112: 1
B113: Subsurface of the site | D113: ='SECTION3 + SCORE'!$E$13 -> Please select | F113: 1
B114: Structure where event takes place | D114: ='SECTION3 + SCORE'!$E$14 -> Please select | F114: 1
B115: Please keep in mind that temporary structures must be inspected by the fire department. | F115: =IF(D114="Tijdelijke structuur",1,0) -> 0
B116: Presence of stairs | D116: ='SECTION3 + SCORE'!$E$15 -> Please select | F116: 1
B117: Presence of seats | D117: ='SECTION3 + SCORE'!$E$16 -> Please select | F117: 1
B118: Location | D118: ='SECTION3 + SCORE'!$E$17 -> Please select | F118: 1
A119: NOT APPLICABLE | F119: =IF(OR(F107=1,F108=1,F109=1,F110=1,F111=1,F112=1,F113=1,F114=1,F116=1,F117=1,F118=1),0,"?") -> 0
F120: 1
A121: 4.2. Population risk | F121: 1
F122: 1
A123: AGE | B123: Predominant age group | D123: ='SECTION3 + SCORE'!$E$42 -> Please select | F123: 1
A124: ALCOHOL CONSUMPTION | B124: Is alcohol consumption expected | D124: ='SECTION3 + SCORE'!$E$43 -> Please select | F124: 1
A125: DRUG USE | B125: Is drug use expected | D125: ='SECTION3 + SCORE'!$E$44 -> Please select | F125: 1
A126: HEALTH | B126: Audience type | D126: ='SECTION3 + SCORE'!$E$45 -> Please select | F126: 1
B127: Known pathologies among at least 10% of the audience | D127: ='SECTION3 + SCORE'!$E$46 -> Please select | F127: 1
B128: Catering | D128: ='SECTION3 + SCORE'!$E$47 -> Please select | F128: 1
A129: ACCOMMODATION | B129: For visitors | D129: ='SECTION3 + SCORE'!$E$48 -> Please select | F129: 1
B130: For organisers | D130: ='SECTION3 + SCORE'!$E$49 -> Please select | F130: 1
A131: EVENT | B131: Type of event | D131: ='SECTION3 + SCORE'!$E$50 -> ALL OTHER EVENTS | F131: 1
B132: Exact duration of the event | D132: ='SECTION3 + SCORE'!$E$51 -> FALSE | F132: 1
B133: Time of event | D133: ='SECTION3 + SCORE'!$E$54 -> Please select | F133: 1
A134: TEMPERATURE | B134: Expected temperature | D134: ='SECTION3 + SCORE'!$E$55 -> Please select | F134: 1

Sheet part 1 letter
B1: =FIGURES!C41 -> ICM - Antwerp Field Service - Advice for Increased-risk Events (PRIMA)
C2: =FIGURES!C36 -> icm.antwerpen@health.fgov.be
A4: 1. GENERAL EVENT INFORMATION
A5: ='SECTION 1 - APPLICATION'!$G$5 -> VERSION 25
A6: Municipality | C6: ='SECTION 1 - APPLICATION'!$G$3 -> 0
A7: ='WORKING DOC'!A11 -> Event date | D7: ='WORKING DOC'!B11 -> 00/00/0000
A8: ='WORKING DOC'!A12 -> Total attendance after correction | D8: ='WORKING DOC'!B12 -> 0
A9: ='WORKING DOC'!A13 -> Total event duration in hours | D9: ='WORKING DOC'!B13 -> FALSE
A10: ='WORKING DOC'!A14 -> Maximum number of simultaneous visitors | D10: ='WORKING DOC'!B14 -> 0
A11: ='WORKING DOC'!A15 -> Maximum time spent by said visitors at the event in hours | D11: ='WORKING DOC'!B15 -> 0
A13: 2. TEMPORARY MEDICAL CENTRE
A15: 2.1. Is a temporary medical centre needed
A17: ='WORKING DOC'!A17 -> Is a temporary medical centre needed during this event | D17: =IF(AND(D56=0,D57=0,D58=0,D62=0,D64=0,D65=0),"NEEN",'WORKING DOC'!H3) -> 
A18: ='WORKING DOC'!A18 -> Are additional public health measures needed | D18: ='WORKING DOC'!B18 -> 
A19: ='WORKING DOC'!A19 -> Are additional measures for a campsite needed | D19: ='WORKING DOC'!B19 -> 
A21: 2.2 Expected workload and injuries/pathologies
A23: Workload
A25: ='WORKING DOC'!A21 -> Number of life-threatening conditions (after handover) | D25: ='WORKING DOC'!B21 -> 0
A26: ='WORKING DOC'!A22 -> Number of urgent conditions (request doctor and/or ambulance transport to hospital) | D26: ='WORKING DOC'!B22 -> 0
A27: ='WORKING DOC'!A23 -> Number of requests for (basic) medical care | D27: ='WORKING DOC'!B23 -> 0
A28: ='WORKING DOC'!A24 -> Total number of people receiving care | D28: ='WORKING DOC'!B24 -> 0
A29: ='WORKING DOC'!A25 -> Number of simultaneous cases and, therefore, required number of beds/spots in aid station(s) | D29: ='WORKING DOC'!B25 -> 0
F30: choice
A31: If a heat wave is expected during the event, the RED figures apply. The expected workload and injuries/pathologies must be known at least 2 days before the start of the event | F31: =IF(OR(E25>0,E26>0,E27>0,E28>0,E29>0,E56>0,E57>0,E58>0,E62>0,E64>0,E65>0),1,0) -> 0
F32: 1
A33: Conditions/injuries | F33: 1
F34: 1 | I34: = to be completed
A35: Illness due to alcohol abuse | F35: =IF('SECTION3 + SCORE'!I43>0,1,0) -> 0
A36: Drug intoxication | F36: =IF('SECTION3 + SCORE'!$I$44>0,1,0) -> 0 | I36: = automatically
A37: Trauma due to falls | F37: 0
A38: Trauma due to brawls | F38: 0
A39: Crushing trauma (audience) | F39: 0
A40: Cuts | F40: 0
A41: Hypothermia | F41: =IF('SECTION3 + SCORE'!L55=1,1,IF('SECTION3 + SCORE'!M55=1,1,IF('SECTION3 + SCORE'!N55=1,1,0))) -> 0
A42: Drowning | F42: 0
A43: Sunburn | F43: =IF('SECTION3 + SCORE'!O55=1,1,IF('SECTION3 + SCORE'!P55=1,1,0)) -> 0
A44: CO poisoning | F44: 0
A45: Insect bites | F45: 0
A46: Exhaustion | F46: 0
A47: Burns | F47: ='SECTION3 + SCORE'!I70 -> 0
A48: Gunshot wounds | F48: ='SECTION3 + SCORE'!I71 -> 0
A49: blank | F49: 0
A50: Not applicable | F50: =IF(OR(F35=1,F36=1,F37=1,F38=1,F40=1,F41=1,F42=1,F43=1,F44=1,F45=1,F46=1,F49=1),0,1) -> 1
F51: 1
A52: 2.3. Location of edical resources | F52: 1
F53: 1
A54: Doctors and nurses | F54: 1
F55: 1
A56: ='WORKING DOC'!A42 -> Minimum number of MUG teams | D56: ='WORKING DOC'!B42 -> 0 | F56: 1 | H56: =IF('SECTION3 + SCORE'!I55=33,'part 1 letter'!D56,"?") -> ?
A57: ='WORKING DOC'!A43 -> Minimum number of nurses (other than MUG team(s)) | D57: ='WORKING DOC'!B43 -> 0 | F57: 1
A58: ='WORKING DOC'!A44 -> Minimum number of doctors (other than MUG team(s)) | D58: ='WORKING DOC'!B44 -> 0 | F58: 1
F59: 1
A60: Other aid workers | F60: 1
F61: 1
A62: ='WORKING DOC'!A28 -> Minimum number of ambulances | D62: ='WORKING DOC'!B28 -> 0 | F62: 1
A63: ='WORKING DOC'!A29 -> Note : ambulances are always manned by 2 ambulance aid workers | C63: ='WORKING DOC'!B29 -> 0 | F63: =IF(D62=0,0,1) -> 0
A64: ='WORKING DOC'!A30 -> Minimum number of BLS teams | D64: ='WORKING DOC'!B30 ->  | F64: 1
A65: ='WORKING DOC'!A31 -> Minimum number of other aid workers (excluding the BLS teams and the ambulance aid workers) | D65: ='WORKING DOC'!B31 -> 0 | F65: 1
A66: ='WORKING DOC'!A32 -> Note : if this number is equal to 0, the ambulance aid worker is responsible for transport, if necessary, as well as general medical assistance. | C66: ='WORKING DOC'!B32 -> 0 | F66: =IF(D65=0,0,1) -> 0
F67: 1
A68: ='WORKING DOC'!A34 -> Can the roles of ambulance aid worker and BLS team member be combined | D68: =IF(D64=0,"niet van toepassing","Maak uw keuze") ->  | F68: =IF(D68="ja",1,IF(D68="neen",1,0)) -> 
A69: ='WORKING DOC'!A35 -> Can the roles of ambulance aid worker and aid station worker be combined | D69: =IF(D64=0,"niet van toepassing","Maak uw keuze") ->  | F69: =IF(D69="ja",1,IF(D69="neen",1,0)) -> 
A70: ='WORKING DOC'!A36 -> Can the roles of BLS team member and aid station worker be combined | D70: =IF(D64=0,"niet van toepassing","Maak uw keuze") ->  | F70: =IF(D70="ja",1,IF(D70="neen",1,0)) -> 
F71: 1
A72: A representative of Medical, Sanitary & Psychosocial emergency services must be present in the Operational Control Centre to help coordinate medical assistance and follow up on cases handed over to hospitals. This person must at least be a qualified MUG nurse. | F72: 1
F73: =F72 -> 1
A74: Aid stations | F74: 1
F75: 1
A76: ='WORKING DOC'!A38 -> Minimum area for the aid station | D76: ='WORKING DOC'!B38 -> 12 | F76: 1
F77: 1
A78: ='WORKING DOC'!A40 -> Should multiple aid stations be setp up | D78: Please select | F78: 1
F79: 1
A80: *** Specify the number and location *** | F80: =IF(D78="JA",1,0) -> 0
F81: =F80 -> 0
A82: 2.4. Communication model | F82: 1
F83: 1
A84: MODEL | B84: TYPE | C84: CALL GROUPS | F84: 1
A85: Mobile | B85: Basic | C85: Exchange mobile numbers of responsible persons! | F85: =IF(INTERPRETATION!$J$91=0,1,0) -> 
A86: Model 1 | B86: Minimum | C86: Call group for multidisciplinary coordination and consultation | F86: =IF(INTERPRETATION!$J$91=1,1,0) -> 
A87: Model 1 | B87: Minimum | C87: Operational medical call group | F87: =IF(INTERPRETATION!$J$91=1,1,0) -> 
A88: Model 2 | B88: Medium | C88: Call group for multidisciplinary coordination and consultation | F88: =IF(INTERPRETATION!$J$91=2,1,0) -> 
A89: Model 2 | B89: Medium | C89: Call group for medical operations | F89: =IF(INTERPRETATION!$J$91=2,"1","0") -> 
A90: Model 2 | B90: Medium | C90: Call group for medical logistics | F90: =IF(INTERPRETATION!$J$91=2,"1","0") -> 
A91: Model 3 | B91: Maximum | C91: Call group for multidisciplinary coordination and consultation | F91: =IF(INTERPRETATION!$J$91=3,1,0) -> 
A92: Model 3 | B92: Maximum | C92: Call group for medical operations | F92: =IF(INTERPRETATION!$J$91=3,1,0) -> 
A93: Model 3 | B93: Maximum | C93: Call group for medical logistics | F93: =IF(INTERPRETATION!$J$91=3,1,0) -> 
A94: Model 3 | B94: Maximum | C94: Call group for medical coordination | F94: =IF(INTERPRETATION!$J$91=3,1,0) -> 
A95: Model 3 | B95: Maximum | C95: Call group for medical regulation | F95: =IF(INTERPRETATION!$J$91=3,1,0) -> 
A96: Model 3 | B96: Maximum | C96: Medical call group (backup) | F96: =IF(INTERPRETATION!$J$91=3,1,0) -> 
A97: NOT APPLICABLE | C97: =#REF! ->  | D97: =#REF! ->  | F97: =IF(OR(F85=1,F86=1,F87=1,F88=1,F89=1,F90=1,F91=1,F92=1,F93=1,F94=1,F95=1,F96=1),0,1) -> 
F98: 1
A99: 2.5. Relationship with the HC 100 | F99: 1
F100: 1
A101: ='WORKING DOC'!A46 -> Has the application form with relevant information been submitted to the HC100 (DOC 100) | D101: ='WORKING DOC'!B46 -> NEEN | F101: 1
A102: ='WORKING DOC'!A47 -> Have the site maps been submitted to the HC100 | D102: ='WORKING DOC'!B47 -> JA | F102: 1
F103: 1
A104: ='WORKING DOC'!A49 -> Date on which the HC100 should be notified if the answer to one of these questions is “NO” | D104: ='part 2 letter'!C45 ->  | F104: 1
F105: 1
A106: Note : if these documents are not submitted in time, this will automatically trigger a negative advice and the event may not be able to go ahead. | F106: 1
F107: 1
A108: After the event, the organisation responsible for preventive aid should evaluate and grade their performance by completing the “Care provided” document and returning it to : icm.antwerpen@health.fgov.be | F108: 1
F109: 1
A110: 3. ADMINISTRATIVE DETAILS | F110: 1
F111: 1
A112: 3.1. Organiser | F112: 1
F113: 1
A114: Name and first name | C114: =IF('SECTION 1 - APPLICATION'!G25="","niet ingevuld",'SECTION 1 - APPLICATION'!G25) -> niet ingevuld | F114: 1
A115: Organisation | C115: =IF('SECTION 1 - APPLICATION'!G24="","niet ingevuld",'SECTION 1 - APPLICATION'!G24) -> niet ingevuld | F115: 1
A116: Outside event | C116: =IF('SECTION 1 - APPLICATION'!G30="","niet ingevuld",'SECTION 1 - APPLICATION'!G30) -> niet ingevuld | F116: 1
A117: During event | C117: =IF('SECTION 1 - APPLICATION'!G31="","niet ingevuld",'SECTION 1 - APPLICATION'!G31) -> niet ingevuld | F117: 1
F118: 1
A119: 3.2. Person responsible for medical facilities | F119: 1
F120: 1
A121: Name and first name | C121: =IF('SECTION 1 - APPLICATION'!G34="","niet ingevuld",'SECTION 1 - APPLICATION'!G34) -> niet ingevuld | F121: 1
A122: Organisation | C122: =IF('SECTION 1 - APPLICATION'!G39="","niet ingevuld",'SECTION 1 - APPLICATION'!G39) -> niet ingevuld | F122: 1
A123: Outside event | C123: =IF('SECTION 1 - APPLICATION'!G40="","niet ingevuld",'SECTION 1 - APPLICATION'!G40) -> niet ingevuld | F123: 1
A124: During event | C124: =IF('SECTION 1 - APPLICATION'!G41="","niet ingevuld",'SECTION 1 - APPLICATION'!G41) -> niet ingevuld | F124: 1
F125: 1
A126: 3.3. Insurance | F126: 1
F127: 1
A128: Insurance company | C128: =IF('SECTION 1 - APPLICATION'!G53="","niet ingevuld",'SECTION 1 - APPLICATION'!G53) -> niet ingevuld | F128: 1
A129: Policy number | C129: =IF('SECTION 1 - APPLICATION'!G55="","niet ingevuld",'SECTION 1 - APPLICATION'!G55) -> niet ingevuld | F129: 1
F130: =IF(OR(F134=1,F135=1,F136=1,F137=1,F138=1),1,0) -> 0
A131: 3.4 Other persons responsible | F131: =IF(OR(F135=1,F136=1,F137=1,F138=1,F134=1),1,0) -> 0
F132: =IF(OR(F136=1,F137=1,F138=1,F134=1,F135=1),1,0) -> 0
A133: Surname and first name | C133: role | D133: Mobile | F133: =IF(OR(F137=1,F138=1,F134=1,F135=1,F136=1),1,0) -> 0
A134: ='SECTION 1 - APPLICATION'!B46 -> 0 | C134: ='SECTION 1 - APPLICATION'!E46 -> 0 | D134: ='SECTION 1 - APPLICATION'!H46 -> 0 | F134: =IF(OR(A134="",A134=0),0,1) -> 0
A135: ='SECTION 1 - APPLICATION'!B47 -> 0 | C135: ='SECTION 1 - APPLICATION'!E47 -> 0 | D135: ='SECTION 1 - APPLICATION'!H47 -> 0 | F135: =IF(OR(A135="",A135=0),0,1) -> 0
A136: ='SECTION 1 - APPLICATION'!B48 -> 0 | C136: ='SECTION 1 - APPLICATION'!E48 -> 0 | D136: ='SECTION 1 - APPLICATION'!H48 -> 0 | F136: =IF(OR(A136="",A136=0),0,1) -> 0
A137: ='SECTION 1 - APPLICATION'!B49 -> 0 | C137: ='SECTION 1 - APPLICATION'!E49 -> 0 | D137: ='SECTION 1 - APPLICATION'!H49 -> 0 | F137: =IF(OR(A137="",A137=0),0,1) -> 0
A138: ='SECTION 1 - APPLICATION'!B50 -> 0 | C138: ='SECTION 1 - APPLICATION'!E50 -> 0 | D138: ='SECTION 1 - APPLICATION'!H50 -> 0 | F138: =IF(OR(A138="",A138=0),0,1) -> 0
A141: =FIGURES!C37 -> Dr. W. Haenen
A142: =FIGURES!C42 -> Secretary of the Provincial Medical Committee of Antwerp
A143: =FIGURES!C43 -> Federal Health Inspector for the Province of Antwerp
A144: =FIGURES!C44 -> Chairman of the Urgent Medical Assistance Committee of Antwerp

Sheet part 2 letter
C1: =FIGURES!C41 -> ICM - Antwerp Field Service - Advice for Increased-risk Events (PRIMA)
C2: =FIGURES!C36 -> icm.antwerpen@health.fgov.be
A4: 4. MISCELLANEOUS MEASURES
A6: 4.1. Measures for local residents
A8: =INTERPRETATION!D37 -> Should measures be taken for local residents | E8: =INTERPRETATION!$G37 -> NEEN
F9: choice
A10: Residents inside isolation perimeter | C10: Look up the total number of local residents living near the event site Inform these residents of the event. Check whether a liaison officer should be appointed to answer questions | F10: =RESULTS!$H43 -> 0
A11: Retirement home/hospital inside perimeter | C11: Check that the institute in question has been notified of the event and that there is an alternative access point. IF NOT : allocate additional resources in or near the institute in question for the entire duration it will have to run autonomously | F11: =RESULTS!$H44 -> 0
A12: On-call GP needed inside perimeter | C12: Notify GPs in the vicinity of the event, informing them of the time that the perimeter will be closed | F12: =RESULTS!$H45 -> 0
C13: Share the phone number of the Operational Control Centre (GP consultations + parking) | F13: =RESULTS!$H46 -> 0
A14: On-call nurse needed inside perimeter | C14: Notify on-call nurses in the vicinity of the event, informing them of the time that the perimeter will be closed | F14: =RESULTS!$H47 -> 0
C15: Share the phone number of the Operational Control Centre (Nurse consultations + parking) | F15: =RESULTS!$H48 -> 0
A16: meal delivery needed inside perimeter | C16: Contact the PCSW to check whether the service(s) responsible for meal delivery are aware of the event and, if necessary, know where they will pass the perimeter | F16: =RESULTS!$H49 -> 0
A17: on-call pharmacist needed inside perimeter | C17: Ask whether it is possible for the on-call pharmacist to arrange for a replacement IF NOT POSSIBLE: ensure free access to the pharmacy | F17: =RESULTS!$H50 -> 0
A18: Number of municipalities concerned | C18: Are all municipalities involved in the planning process | F18: =RESULTS!$H51 -> 0
A19: NOT APPLICABLE | F19: =IF(OR(F10=1,F11=1,F12=1,F13=1,F14=1,F15=1,F16=1,F17=1,F18=1),0,1) -> 1
F20: 1
A21: 4.2. Measures for multidisciplinary consultation | F21: 1
F22: 1
A23: =INTERPRETATION!D74 -> Is multidisciplinary adjustment necessary | B23: =INTERPRETATION!E74 -> 0 | D23: =INTERPRETATION!F74 -> 0 | E23: =INTERPRETATION!G74 -> JA | F23: 1
F24: 1
A25: Presence of utilities | C25: Check with the fire brigade whether the capacity of the utilities is sufficient for the requirements of this event. Also check that they will not hinder/cause any problems for the traffic flow of medical services | F25: =IF('SECTION3 + SCORE'!I66=0,0,"1") -> 0
A26: Means of communication | C26: Check that the emergency services are familiar with the communication equipment used, if specific equipment is used. | F26: ='SECTION3 + SCORE'!$I$67 -> 0
A27: Presence of dangerous animals | C27: The event must be adapted to the presence of large animals. | F27: ='SECTION3 + SCORE'!I68 -> 0
A28: International reputation (> 9 % foreigners expected) | C28: The presence of foreign visitors may lead to language problems. Have the required measures been taken to remedy such issues | F28: ='SECTION3 + SCORE'!I69 -> 0
A29: Presence of wheelchair users | C29: If the event is visited by multiple wheelchair users, access to the event and the corresponding facilities must be adapted accordingly. | F29: =IF('SECTION3 + SCORE'!I46=1,1,0) -> 0
A30: Presence of children | C30: Has thought been given to the fact that children may get lost. Is there a fixed place where lost/missing children can wait to be picked up. The event’s organisers may recommend that children’s parents or guardians write their mobile number/contact details on the child’s arm or on a wristband. | F30: =IF('SECTION3 + SCORE'!E42="< 10 jaar met begeleiding van de ouders",1,IF('SECTION3 + SCORE'!E42="alle leeftijden",1,0)) -> 0
A31: Presence of children under the age of 10 without parental supervision | C31: It is strongly recommended to designate a specific area where parents and guardians can pick up lost/missing children. Make sure that a proper monitoring system is in place | F31: =IF('SECTION3 + SCORE'!E42="< 10 jaar zonder begeleiding van de ouders",1,0) -> 0
A32: Presence of drugs | C32: Ascertain which drugs were used. | F32: =IF('SECTION3 + SCORE'!E44="Overvloedig gebruik",1,0) -> 0
A33: Presence of fireworks | C33: Fireworks can cause burns | F33: ='SECTION3 + SCORE'!I70 -> 0
A34: Presence of weapons | C34: Weapons can cause gunshot and/or stab wounds | F34: ='SECTION3 + SCORE'!I71 -> 0
A35: Sold out | C35: At sold-out events, visitors have less room to move on site. At the same time, people will attempt to access the site unlawfully. This increases the workload of emergency services, as they will also have to respond to problems outside the event proper, at the edge of the perimeter | F35: ='SECTION3 + SCORE'!I72 -> 0
A36: Simultaneous increased-risk events nearby | C36: Organise a multi-disciplinary coordination meeting or ensure that the Operational Control Centres of the various events can contact each other | F36: ='SECTION3 + SCORE'!I73 -> 0
A37: Specific risks in the area | C37: Check whether these specific risks may affect the event. | F37: ='SECTION3 + SCORE'!I74 -> 0
A38: Problem according to police | C38: A multidisciplinary coordination meeting should be scheduled with the police | F38: ='SECTION3 + SCORE'!I75 -> 0
A39: Problem according to the fire department | C39: A multidisciplinary coordination meeting should be scheduled with the police | F39: ='SECTION3 + SCORE'!I76 -> 0
A40: Previous negative experience with this type of event | C40: What solution was suggested and/or offered in these cases Are there sufficient guarantees to avoid these problems this time | F40: ='SECTION3 + SCORE'!I77 -> 0
A41: Organiser’s reputation | C41: If the organiser’s reputation is unknown, it is recommended to have various parties visit the site prior to the event and, if necessary, during the event | F41: ='SECTION3 + SCORE'!I60 -> 0
A42: Event has own security in addition to police | C42: Check whether other emergency services are sufficiently aware of the resources/facilities allocated. | F42: ='SECTION3 + SCORE'!I78 -> 0
A43: Specific legislation concerning this type of event | C43: Check whether all legal requirements have been met There is currently specific legislation in place for car rallies, football matches and motocross events, in addition to the provision of the Royal Decree of 16/02/06 | F43: ='SECTION3 + SCORE'!I79 -> 0
A44: Should an operation order be drawn up for the emergency medical service | C44: An operation order must be submitted to the health inspectorate at least 10 days prior to the event. If this deadline is not met, this may automatically trigger a negative advice and the event may not be able to go ahead. | F44: ='SECTION3 + SCORE'!I104 -> 1
A45: Submission deadline : | C45: =INTERPRETATION!K16 ->  | F45: ='SECTION3 + SCORE'!I104 -> 1
A46: NOT APPLICABLE | F46: =IF(OR(F25=1,F26=1,F27=1,F28=1,F29=1,F33=1,F34=1,F35=1,F36=1,F37=1,F38=1,F39=1,F40=1,F41=1,F42=1,F43=1,F44=1,F45=1),0,1) -> 0
F47: =F48 -> 1
A48: Specific multidisciplinary points of attention | F48: =IF(AND(F50=0,F51=0,F52=0,F53=0,F54=0,F55=0,F56=0,F58=0),0,1) -> 1
F49: =F48 -> 1 | H49: 5
A50: Are tents open to the public | C50: If tents are open to the public, the fire department must advise whether all evacuation requirements have been met | F50: ='SECTION3 + SCORE'!I81 -> 0
A51: Number of tents with a surface area greater than 50 m2 | C51: ='SECTION3 + SCORE'!J82 -> Please select | F51: ='SECTION3 + SCORE'!I82 -> 0
A52: Main utilities used | C52: ='SECTION3 + SCORE'!E83 -> Please select | F52: ='SECTION3 + SCORE'!I83 -> 0
A53: Are VIPs expected | C53: * VIPs form an increased risk for the police and for other emergency services. Have emergency services coordination to assess the impact of the policing plan on the plans of other emergency services * Does the presence of a particular VIP require that additional measures be taken by the teams on site. | F53: ='SECTION3 + SCORE'!I84 -> 0
A54: Are there NADAR or HERAS fences | C54: In long stretches of fencing, are there enough places for emergency services to cross the fences | F54: ='SECTION3 + SCORE'!I85 -> 0
A55: Is the event easily accessible by public transport | C55: * If public transport reaches all the way up to the event : is there a separate road for public transport * If people get off public transport near the event : is there a separate road for pedestrians. Has care been taken to ensure that this road does not cross the road used by emergency services. * If there is no public transport in the vicinity of the event : is this taken into account in the mobility plan | F55: ='SECTION3 + SCORE'!I86 -> 1
A56: Are there enough car parks nearby | C56: ='SECTION3 + SCORE'!E87 -> Please select | F56: 1
A57: Are the car parks supervised in any way (alerting emergency services in the event of an emergency) | C57: Problems can also occur on car parks. Can parking attendants (if any) contact the Operational Control Centre to call in assistance if necessary. | F57: 1
A58: Does the event have its own shuttle service | C58: Is the shuttle service clearly recognisable are the stops of the shuttle service clearly marked on the map Is there are specific route for the shuttle service | F58: ='SECTION3 + SCORE'!I89 -> 0
F59: 1
A60: 4.3. Measures concerning the MIP | F60: 1
F61: 1
A62: =INTERPRETATION!D79 -> Are any additional disaster preparedness measures needed | B62: =INTERPRETATION!E79 -> 0 | D62: =INTERPRETATION!F79 -> 0 | E62: =INTERPRETATION!G79 -> NEEN | F62: 1
F63: 1
A64: QUESTION | F64: =IF(OR(F65=1,F66=1,F67=1,F68=1,F69=1,F70=1),0,1) -> 1
A65: Have adequate maps of the site been made available to the emergency services | F65: ='SECTION3 + SCORE'!I94 -> 0
A66: Have adequate maps of the total isolation area been made available to the emergency services | F66: ='SECTION3 + SCORE'!I95 -> 0
A67: Is there a clear communication model that can be used in the event of a collective problem Is the communication model used during the event scalable to this system | F67: ='SECTION3 + SCORE'!I96 -> 0
A68: Does the communication model comply with DGH requirements (ASTRID communication with various call groups) | F68: ='SECTION3 + SCORE'!I97 -> 0
A69: Was the 100 switchboard notified of the event | F69: ='SECTION3 + SCORE'!I98 -> 0
A70: Is the Medical Intervention Plan compliant with the Royal Decree of 16/02/06 | F70: ='SECTION3 + SCORE'!I99 -> 0
A71: NOT APPLICABLE | F71: =IF(OR(F65=1,F66=1,F67=1,F68=1,F69=1,F70=1),0,1) -> 1
F72: 1
A73: 4.4. Other public health measures | F73: 1
F74: 1
A75: =INTERPRETATION!D85 ->  | B75: =INTERPRETATION!E85 -> 0 | D75: =INTERPRETATION!F85 -> 0 | E75: =INTERPRETATION!G85 ->  | F75: 1
A76: =INTERPRETATION!D86 ->  | B76: =INTERPRETATION!E86 -> 0 | D76: =INTERPRETATION!F86 -> 0 | E76: =INTERPRETATION!G86 ->  | F76: 1
F77: 1
A78: POINTS OF ATTENTION FOR EVENT | B78: Sufficient attention should be paid to the prevention of sunburn. This must be done prior to the event. Make sure that visitors bring sunscreen, sunglasses and a hat to the event. | F78: =RESULTS!$H82 -> 
B79: If security problems are expected, this should be brought to the attention of the police. | F79: =RESULTS!$H83 -> 
B80: During hot weather, medical resources/facilities may be in high demand and visitors may even go into a coma, especially as a result of dehydration. Therefore, organisers must provide free drinking water when outdoor temperatures exceed 27°C | F80: =RESULTS!$H84 -> 
B81: Consult the relevant tables to find out how many toilets should be arranged. Do not forget to subtract the number of fixed toilets from the total number of required toilets! | F81: =RESULTS!$H85 -> 
B82: If portable toilets are not regularly cleaned and emptied, they will not or hardly be used. Instead, visitors will opt to use the surrounding area as a toilet. It is important that the task of cleaning the toilets is assigned to a specific team and that a clear responsible person is nominated in case of questions from the Operational Control Centre | F82: =RESULTS!$H86 -> 
B83: Good waste management during the event helps avoid clean-up issues after the event. Check whether the people attending the event can find the bins (mark bins with a clear logo) | F83: =RESULTS!$H87 -> 
B84: Check whether it is possible to separate waste (Plastic, Metal & Drink cartons, general waste, etc.) | F84: =RESULTS!$H88 -> 
B85: Check whether waste is collected during the event (also at weekends) If no waste is collected during the weekend, arrangements should be made to store waste in a location where it will not inconvenience anyone | F85: =RESULTS!$H89 -> 
B86: Do food stalls have access to a properly functioning cold chain. In the absence of a sound cold chain, visitors may suffer food poisoning. Arrangements made with regard to the cold chain must also be discussed with the fire department ! | F86: =RESULTS!$H90 -> 
B87: Stalls using fire must meet all requirements set by the fire department. Naturally, a minimum requirement is that a fire extinguisher be present. | F87: =RESULTS!$H91 -> 
B88: It is advisable to recommend that visitors with a chronic condition carry a medical card with them, along with their medication. If desired, such visitors can hand over their medical card to the medical staff on site. | F88: =RESULTS!$H92 -> 
B89: It is recommended to distribute flyers with information about prevention and the availability (or unavailability) of medical staff on site during ticket sales. | F89: =RESULTS!$H93 -> 
A90: POINTS OF ATTENTION FOR CAMPSITE | B90: The drinking water supply system must have a sufficient flow rate ! | F90: =RESULTS!$H94 -> 
B91: Consult the relevant tables to find out how many toilets should be arranged. Do not forget to subtract the number of fixed toilets from the total number of required toilets! | F91: =RESULTS!$H95 -> 
B92: The must be ample shower facilities!! | F92: =RESULTS!$H96 -> 
B93: It is advisable to set up a system with medical services that allows for the storage and labelling of chronic medication, especially when said medication is to be kept cool | F93: =RESULTS!$H97 -> 
A94: NOT APPLICABLE | F94: =IF(OR(F78=1,F79=1,F80=1,F81=1,F82=1,F83=1,F84=1,F85=1,F86=1,F87=1,F88=1,F89=1,F90=1,F91=1,F92=1,F93=1),0,1) -> 
F95: 1
A96: 4.5. Other administrative details | F96: =(IF(AND(F98=0,F99=0,F100=0,F101=0,F102=0),0,1)) -> 1
F97: =F96 -> 1
A98: Insurance | B98: The insurance details are missing. Organisers requesting advice from the health inspectorate must at all times arrange for insurance, as their event will necessarily be a major one. | F98: =IF('SECTION 1 - APPLICATION'!G53="",1,0) -> 1
A99: Organiser | B99: The organiser’s name is missing. We recommend refraining from giving advice if the organiser is unknown. | F99: =IF('SECTION 1 - APPLICATION'!G25="",1,0) -> 1
B100: The organiser’s phone number is missing. We recommend refraining from giving advice if the organiser cannot be contacted. | F100: =IF(AND('SECTION 1 - APPLICATION'!G30="",'SECTION 1 - APPLICATION'!G31=""),1,0) -> 1
A101: Person responsible for medical facilities | B101: The name of the person responsible for medical facilities is missing. We recommend refraining from giving advice if the organiser is unknown. | F101: =IF('SECTION 1 - APPLICATION'!G34="",1,0) -> 1
B102: The phone number of the person responsible for medical facilities is missing. We recommend refraining from giving advice if the organiser cannot be contacted. | F102: =IF(AND('SECTION 1 - APPLICATION'!G40="",'SECTION 1 - APPLICATION'!G41=""),1,0) -> 1
F103: =F96 -> 1
A104: 5. OVERVIEW OF VARIABLES | F104: 1
F105: 1
A106: 5.1. Isolation risk | F106: 1
F107: 1
A108: DISTANCES | B108: Nearest 100 ambulance | D108: ='SECTION3 + SCORE'!E6 -> 0 | F108: 1
B109: Nearest MUG | D109: ='SECTION3 + SCORE'!E7 -> 0 | F109: 1
B110: Nearest emergency department | D110: ='SECTION3 + SCORE'!$E$18 -> 0 | F110: 1
A111: ACCESSABILITY | B111: Access routes to the event | D111: ='SECTION3 + SCORE'!$E$8 -> Please select | F111: 1
A112: PERIMETERS | B112: Number of perimeters to pass | D112: ='SECTION3 + SCORE'!E9 -> 0 | F112: 1
A113: SITE VARIABLES | B113: Surface area of the site in km2 | D113: ='SECTION3 + SCORE'!E10 -> 0 | F113: 1
B114: Subsurface of the site | D114: ='SECTION3 + SCORE'!$E$13 -> Please select | F114: 1
B115: Structure where event takes place | D115: ='SECTION3 + SCORE'!$E$14 -> Please select | F115: 1
B116: Please keep in mind that temporary structures must be inspected by the fire department. | F116: =IF(D115="Tijdelijke structuur",1,0) -> 0
B117: Presence of stairs | D117: ='SECTION3 + SCORE'!$E$15 -> Please select | F117: 1
B118: Presence of seats | D118: ='SECTION3 + SCORE'!$E$16 -> Please select | F118: 1
B119: Location | D119: ='SECTION3 + SCORE'!$E$17 -> Please select | F119: 1
A120: NOT APPLICABLE | F120: =IF(OR(F108=1,F109=1,F110=1,F111=1,F112=1,F113=1,F114=1,F115=1,F117=1,F118=1,F119=1),0,1) -> 0
F121: 1
A122: 5.2. Factors influencing/affecting the health status | F122: 1
F123: 1
A124: AGE | B124: Predominant age group | D124: ='SECTION3 + SCORE'!$E$42 -> Please select | F124: 1
A125: ALCOHOL CONSUMPTION | B125: Is alcohol consumption expected | D125: ='SECTION3 + SCORE'!$E$43 -> Please select | F125: 1
A126: DRUG USE | B126: Is drug use expected | D126: ='SECTION3 + SCORE'!$E$44 -> Please select | F126: 1
A127: HEALTH | B127: Audience type | D127: ='SECTION3 + SCORE'!$E$45 -> Please select | F127: 1
B128: Known pathologies among at least 10% of the audience | D128: ='SECTION3 + SCORE'!$E$46 -> Please select | F128: 1
B129: Catering | D129: ='SECTION3 + SCORE'!$E$47 -> Please select | F129: 1
A130: ACCOMMODATION | B130: For visitors | D130: ='SECTION3 + SCORE'!$E$48 -> Please select | F130: 1
B131: For organisers | D131: ='SECTION3 + SCORE'!$E$49 -> Please select | F131: 1
A132: EVENT | B132: Type of event | D132: ='SECTION3 + SCORE'!$E$50 -> ALL OTHER EVENTS | F132: 1
B133: Exact duration of the event | D133: ='SECTION3 + SCORE'!$E$51 -> FALSE | F133: 1
B134: Time of event | D134: ='SECTION3 + SCORE'!$E$54 -> Please select | F134: 1
A135: TEMPERATURE | B135: Expected temperature | D135: ='SECTION3 + SCORE'!$E$55 -> Please select | F135: 1
A137: =FIGURES!C37 -> Dr. W. Haenen
A138: =FIGURES!C42 -> Secretary of the Provincial Medical Committee of Antwerp
A139: =FIGURES!C43 -> Federal Health Inspector for the Province of Antwerp
A140: =FIGURES!C44 -> Chairman of the Urgent Medical Assistance Committee of Antwerp

Sheet part 3 letter list
C1: =FIGURES!C41 -> ICM - Antwerp Field Service - Advice for Increased-risk Events (PRIMA)
C2: =FIGURES!C36 -> icm.antwerpen@health.fgov.be
A4: Re: increased-risk event | C4: ='SECTION 1 - APPLICATION'!G5 -> VERSION 25
A5: date : | B5: ='SECTION 1 - APPLICATION'!G4 -> 00/00/0000
A6: 6. LIST OF NAMES OF THE AID WORKERS PRESENT AT THE EVENT.
A7: Doctors
A8: surname | B8: first name | C8: private address | G8: Mobile phone number | H8: RIZIV number
C9: street | D9: no | E9: postcode | F9: municipality
A22: Nurses
A23: surname | B23: first name | C23: private address | G23: Mobile phone number
C24: street | D24: no | E24: postcode | F24: municipality
A44: Ambulance aid workers
A45: surname | B45: first name | C45: private address | G45: Mobile phone number | H45: Badge number
C46: street | D46: no | E46: postcode | F46: municipality
A60: Other aid workers
A61: surname | B61: first name | C61: private address | G61: Mobile phone number
C62: street | D62: no | E62: postcode | F62: municipality

Sheet mayor
B1: =FIGURES!C52 -> Directorate-General for Basic Health Care and Crisis Management
B2: =FIGURES!C53 -> Health Inspectorate for the Province of Antwerp
B3: =FIGURES!C54 -> Provincial Committee for Urgent Medical
B4: =FIGURES!C55 -> Assistance - Antwerp
A5: OUR REF : | B5: Risk analysis
A6: DATE : | B6: =TODAY() -> 2020-05-27
A7: CONTACT : | B7: =FIGURES!C37 -> Dr. W. Haenen
B8: =FIGURES!C38 -> Jo De Decker
A9: Tel. No. | B9: =FIGURES!C45 -> 02 524 78 53
A10: Mobile no. | B10: =FIGURES!C46 -> 0477 426 026
A11: Fax. No. | B11: =FIGURES!C47 -> 02 524 78 58
A12: E-mail : | B12: =FIGURES!C36 -> icm.antwerpen@health.fgov.be
A13: RE : INCREASED-RISK EVENT WITHIN YOUR JURISDICTION :
B14: ='SECTION 1 - APPLICATION'!$G$3 -> 0
A15: ='SECTION 1 - APPLICATION'!$G$5 -> VERSION 25
A16: on date : | B16: ='WORKING DOC'!$B$11 -> 00/00/0000
A18: Dear mayor,
A20: Medical experts have performed a risk analysis for this event. A detailed breakdown of this risk analysis, indicating the minimum resources to be deployed, has been enclosed; please find the summary below.
A22: Question 1: will medical facilities be required
B24: ='WORKING DOC'!G3 -> Should a temporary medical centre be set up at the event | C24: ='WORKING DOC'!H3 -> NO
B25: ='WORKING DOC'!G4 -> Should remote measures be taken | C25: ='WORKING DOC'!H4 -> 
B26: ='WORKING DOC'!G5 -> Should specific measures be taken for campsites | C26: ='WORKING DOC'!H5 -> 
A28: Question 2 : if so, which medical facilities :
B30: =RESULTS!J11 -> Minimum number of ambulances | C30: ='WORKING DOC'!B28 -> 0
B31: =RESULTS!J12 -> Minimum number of MUG teams | C31: =RESULTS!K12 -> 
B32: =RESULTS!J13 -> Minimum number of BLS teams on site | C32: =RESULTS!K13 -> 
B33: =RESULTS!J14 -> Minimum number of aid workers at emergency stations | C33: =RESULTS!K14 -> 0
B34: =RESULTS!J15 -> Minimum number of nurses other than the MUG nurse | C34: =RESULTS!K15 -> 
B35: =RESULTS!J16 -> Minimum number of doctors other than the MUG doctor | C35: =RESULTS!K16 -> 
A37: Question 3 : Are other measures necessary (see attachment for details)?
B39: ='WORKING DOC'!G7 -> Should measures be taken for local residents | C39: ='WORKING DOC'!H7 -> NEEN
B40: ='WORKING DOC'!G8 -> Multi-disciplinary actions must be taken | C40: ='WORKING DOC'!H8 -> JA
B41: ='WORKING DOC'!G9 -> Is the medical emergency planning sufficiently detailed | C41: ='WORKING DOC'!H9 -> NEEN
A43: May I ask you to ensure that the following documents are completed and returned to us:
A44: - list of professionals (see section : part 3 letter list); - the form for the 100 switchboard (see section : 100); - the script or operation order of the medical facilities/resources.
A46: May I also ask you to make sure that the event report is completed in and sent (see section : care provided) and that this question is part of this advice.
A48: Yours sincerely,
A50: =FIGURES!C37 -> Dr. W. Haenen
A51: =FIGURES!C42 -> Secretary of the Provincial Medical Committee of Antwerp
A52: =FIGURES!C43 -> Federal Health Inspector for the Province of Antwerp
A53: =FIGURES!C44 -> Chairman of the Urgent Medical Assistance Committee of Antwerp
A55: =FIGURES!C39 -> Pelikaanstraat 4 - 2nd floor - 2018 Antwerpen - www.health.fgov.be

Sheet 100
C1: =FIGURES!C41 -> ICM - Antwerp Field Service - Advice for Increased-risk Events (PRIMA)
C2: =FIGURES!C36 -> icm.antwerpen@health.fgov.be
A4: These cells must be completed by the person responsible for medical facilities, after issuing an advisory report
A5: MANDATORY INFORMATION
A7: The following information must always be reported to the Antwerp health inspectorate. The health inspectorate will forward this information to the competent HC100, as well as the hospitals and ambulance departments that may have to respond to the event.
A10: General information
A12: Event name | B12: ='SECTION 1 - APPLICATION'!$G$5 -> VERSION 25
A13: Event date | B13: ='WORKING DOC'!$B$11 -> 00/00/0000
A14: Event address | B14: ='SECTION 1 - APPLICATION'!$G$7 -> 0
A15: Postcode and city : | B15: ='SECTION 1 - APPLICATION'!$J$7 -> 0 | C15: ='SECTION 1 - APPLICATION'!$G$3 -> 0
A17: Event area information
A19: Number of perimeters present | B19: ='SECTION3 + SCORE'!E9 -> 0
A20: Streets within the perimeter
A21: Access roads
A22: RV point
A23: Maps attached (optional) | B23: YES / NO
A25: Information on medical facilities
A27: Start time - medical facilities
A28: End time - medical facilities
A29: The medical facilities can be reached at the following number during these hours
A30: Number of ambulances as per the guidelines of the 100 switchboard
A31: Number of ambulances that do not meet “100” standards
A32: Number of MUG teams
A34: Communication plan
A36: Which communication model | C36: =IF(INTERPRETATION!G91="schema 1","Minimaal",IF(INTERPRETATION!G91="schema 2","Middelmatig","Maximaal")) -> 
A37: Which means of communication
A38: If using ASTRID radios: which call groups will be used
A40: Number of attachments :
A42: You can add any comments or remarks in an attachment. Please specify the number of attachments enclosed correctly
A49: =FIGURES!C58 -> Federal Health Inspectorate of Antwerp
A50: =FIGURES!C59 -> PRIMA notification to the 100 emergency centre
A51: =FIGURES!C60 -> and emergency services that may be called on during the event
A53: =FIGURES!C39 -> Pelikaanstraat 4 - 2nd floor - 2018 Antwerpen - www.health.fgov.be

Sheet FIGURES
A2: CUT-OFF POINTS | B2: AMBULANCE | C2: no ambulance needed | D2: to | E2: 8 | F2: minutes | H2: PREVALENCE IN NORMAL POPULATION
A3: ISOLATION | C3: need for evaluation based on other results | D3: to | E3: 15 | F3: minutes | H3: =INTERPRETATION!E55 -> Average duration of care in minutes | I3: 12
C4: ambulance definitely needed | D4: from | E4: =E3 -> 15 | F4: minutes | H4: =INTERPRETATION!E56 -> Surface area per patient in m² (including administration and storage, excluding coordination) | I4: 12
B5: MUG | C5: No MUG needed | D5: to | E5: 10 | F5: minutes | H5: =INTERPRETATION!D62 -> Number of life-threatening conditions (after handover) | I5: 0.019
C6: Evaluate in the context of other results | D6: to | E6: 20 | F6: minutes | H6: =INTERPRETATION!D63 -> Number of urgent conditions (request doctor and/or ambulance transport to hospital) | I6: 0.19
C7: MUG needed | D7: from | E7: =E6 -> 20 | F7: minutes | H7: =INTERPRETATION!D64 -> Number of requests for (basic) medical care | I7: 2
A9: CUT-OFF POINTS | B9: AMBULANCE | C9: 1 ambulance from | D9: 5000 | H9: NOTE : SHOULD ADDITIONAL MEASURES BE TAKEN FOR AMATEUR ATHLETES AT MAJOR SPORTING EVENTS (MOET EEN APARTE VOORZIENING GETROFFEN WORDEN VOOR AMATEURSPORTERS BIJ MASSA-SPORTMANIFESTATIES) (Nguyen et al. Prehosp Dis Med 2008; 23:519-25)
A10: POPULATION | C10: 2 ambulances from | D10: 10000
C11: 3 ambulances from | D11: 20000
C12: 4 ambulances from | D12: 40000 | H12: HEALTH SERVICES AT MARATHONS AND TRIATHLONS
C13: 5 ambulances from | D13: 60000 | H13: =H3 -> Average duration of care in minutes | I13: 12
C14: 6 ambulances from | D14: 80000 | H14: =H4 -> Surface area per patient in m² (including administration and storage, excluding coordination) | I14: 12
C15: 7 ambulances from | D15: 100000 | H15: =H5 -> Number of life-threatening conditions (after handover) | I15: 1
C16: 8 ambulances from | D16: 120000 | H16: =H6 -> Number of urgent conditions (request doctor and/or ambulance transport to hospital) | I16: 40
B17: MUG | C17: No MUG until | D17: 50000 | H17: =H7 -> Number of requests for (basic) medical care | I17: 200
C18: 2 MUG teams from | D18: 120000
C20: Increased attendance at SOLD-OUT events
C21: SOLD OUT | D21: 1.05
C23: take stage into account
C24: from | D24: 3000
A27: PRIMA indication
A29: Maximum number of participants | D29: 500
A30: surface area of objects
A35: Please use the following details :
A36: e-mail address | C36: icm.antwerpen@health.fgov.be
A37: contact person 1 - GI | C37: Dr. W. Haenen
A38: contact person 2 | C38: Jo De Decker
A39: address : | C39: Pelikaanstraat 4 - 2nd floor - 2018 Antwerpen - www.health.fgov.be
A41: header 1 | C41: ICM - Antwerp Field Service - Advice for Increased-risk Events (PRIMA)
A42: title HI | C42: Secretary of the Provincial Medical Committee of Antwerp
C43: Federal Health Inspector for the Province of Antwerp
C44: Chairman of the Urgent Medical Assistance Committee of Antwerp
A45: tel | C45: 02 524 78 53
A46: Mobile phone | C46: 0477 426 026
A47: fax | C47: 02 524 78 58
A52: letter to the mayor | C52: Directorate-General for Basic Health Care and Crisis Management
C53: Health Inspectorate for the Province of Antwerp
C54: Provincial Committee for Urgent Medical
C55: Assistance - Antwerp
A58: letter to 100 | C58: Federal Health Inspectorate of Antwerp
C59: PRIMA notification to the 100 emergency centre
C60: and emergency services that may be called on during the event
C61: DOCUMENT NAME : PRIMA - HC1

Sheet SECTION 3
A1: SECTION 3 : ACTUAL RISK ANALYSIS ACCORDING TO SELECTED QUESTIONS QUESTION WITHOUT SCORE
A3: R1 : RISCO-AS 1 : ISOLATION RISK
B5: CLASS | C5: NO | D5: QUESTION | E5: ANSWER OPTIONS
B6: ISOLATION FOR EMERGENCY SERVICES ARRIVING ON THE SCENE | C6: 1 | D6: Distance to ambulance | E6: <8 min | F6: 8-15 min | G6: >15 min
C7: 2 | D7: Distance to MUG | E7: <10 min | F7: 10-15 min | G7: >15 min
B8: EVENT ACCESSIBILITY | C8: 3 | D8: accessibility | E8: Separate approach route for emergency services | F8: no separate approach route for emergency services and several major approach routes | G8: No separate approach route for emergency services and restricted access for emergency services and visitors
C9: 4 | D9: Public transport | E9: regular public transport in the area | F9: Regular public transport at a distance and/or own shuttle service | G9: No public transport in the area OR public transport no longer runs at the start/end of the event
B10: EVENT perimeter | C10: 5 | D10: Perimeter | E10: No | F10: 1 perimeter | G10: Multiple perimeters : enter amount
C11: 6 | D11: Site maps | E11: Present | F11: Do not exist | I11: Exact surface area (km²)
B12: SITE VARIABLES | C12: 7 | D12: Surface area | E12: 2.5 ha - 1 km² | F12: >1 km² (give an estimate of the surface area in km²) | I12: ='SECTION3 + SCORE'!$J$10 -> 0
C13: 8 | D13: Subsurface | E13: Hard | F13: Soft and flat | G13: Soft and undulating
C14: 9 | D14: Structure | E14: Fixed structure | F14: Temporary structure | G14: Improper use of structure
C15: 10 | D15: Stairs present | E15: No | F15: Yes
C16: 11 | D16: Seating | E16: Yes | F16: No
C17: 12 | D17: Location | E17: Indoors | F17: Outdoors
B18: ISOLATION FOR DEPARTING VEHICLES | C18: 13 | D18: Distance to the nearest emergency department | E18: <10 min | F18: 10-20 min | G18: >20 min
B19: ISOLATION FOR LOCAL RESIDENTS | C19: 14 | D19: Residents inside isolation perimeter | E19: No | F19: Yes
C20: 15 | D20: Retirement home/hospital inside perimeter | E20: No | F20: Yes
C21: 16 | D21: On-call GP needed inside perimeter | E21: No | F21: Yes
C22: 17 | D22: On-call nurse needed inside perimeter | E22: No | F22: Yes
C23: 18 | D23: meal delivery needed inside perimeter | E23: No | F23: Yes
C24: 19 | D24: on-call pharmacist needed inside perimeter | E24: No | F24: Yes
C25: 20 | D25: Number of municipalities concerned | E25: 1 | F25: More than 1
A27: R2 : RISK AS 2 : POPULATION RISK
B29: CLASS | C29: NO | D29: QUESTION | F29: AMOUNT ENTERED | G29: TOTAL
B30: APPLICABLE POPULATION | C30: 21 | D30: a | E30: expected number of visitors
D31: b | E31: expected number of participants
D32: c | E32: expected size of the organiser’s team present at event
D33: d | E33: expected number of aid workers
D34: e | E34: number of local resident inside isolation perimeter
D35: f | E35: Reduction due to population shift
D36: g | E36: % of population present at the same time
B37: TOTAL POPULATION AT EVENT | D37: h | G37: ((a+b+c+d+e)-f)*(g/100)
A39: R3 : RISK AS 3 : HEALTH RISKS
AN40: =11/6.3 -> 1.746031746
B41: CLASS | C41: NO | D41: QUESTION | E41: ANSWER OPTIONS
B42: AGE | C42: 22 | D42: Predominant age group | E42: All ages | F42: ° 10-20 y/o ° 35-65 y/o | G42: ° < 10 y/o ° 20-35 y/o | H42: ° More than 65 y/o ° < 10 y/o without parental supervision | K42: =AN42 -> 8.333333333 | Q42: 0 | R42: 1 | S42: 2 | U42: 4 | AB42: 11 | AE42: 0 | AF42: 1 | AG42: 2 | AH42: 4 | AN42: =4/$AN$55*100 -> 8.333333333
B43: ALCOHOL CONSUMPTION | C43: 23 | D43: Is alcohol consumption expected | E43: No | F43: Present, no increased risk expected | G43: Present, increased risk expected | H43: Abundant use | K43: =AN43 -> 4.166666667 | L43: 5 | M43: =63*L43/100 -> 3.15 | N43: =M43*$AN$40 -> 5.5 | Q43: 0 | R43: 1 | S43: 2 | AE43: 0 | AF43: 4 | AG43: 6 | AN43: =2/$AN$55*100 -> 4.166666667
B44: DRUG USE | C44: 24 | D44: Is drug use expected | E44: No | F44: Present, no increased risk expected | G44: Present, increased risk expected | H44: Abundant use | K44: =AN44 -> 8.333333333 | L44: 15 | M44: =63*L44/100 -> 9.45 | N44: =M44*$AN$40 -> 16.5 | Q44: 0 | S44: 2 | U44: 4 | AE44: 0 | AF44: 10 | AG44: 17 | AN44: =4/$AN$55*100 -> 8.333333333
B45: HEALTH | C45: 25 | D45: Audience type | E45: No different from standard population | F45: Homogeneous audience | K45: =SUM(AN45:AN48) -> 14.58333333 | L45: 10 | M45: =63*L45/100 -> 6.3 | N45: =M45*$AN$40 -> 11 | Q45: 0 | S45: 2 | AE45: 0 | AF45: 2 | AN45: =2/$AN$55*100 -> 4.166666667
C46: 26 | D46: Known pathologies among at least 10% of the audience | E46: No | F46: ° Disabled people ° Mild injury requiring long-term treatment | G46: ° Severe injury requiring long-term treatment | Q46: 0 | R46: 1 | S46: 2 | AE46: 0 | AF46: 1 | AG46: 2 | AN46: =2/$AN$55*100 -> 4.166666667
C47: 27 | D47: Catering | E47: No | F47: Cold food | G47: Hot food | Q47: 0 | R47: 1 | S47: 2 | AE47: 0 | AF47: 1 | AG47: 2 | AN47: =2/$AN$55*100 -> 4.166666667
C48: 28 | D48: Accommodation | E48: No | F48: Yes | Q48: 0 | R48: 1 | AE48: 0 | AF48: 1 | AN48: =1/$AN$55*100 -> 2.083333333
B49: EVENT TYPE | C49: 29 | D49: Event type | E49: ° Market/fair ° Concert (classical music) ° Theatre ° Show ° Public concert ° Exhibition ° Bazaar ° Flea market ° Trade fair | F49: ° Street party (except carnival) ° Sports events (except marathon, cycling, competitive sports) ° Folkloristic celebration ° Dance sports event ° Christmas market ° ALL OTHER EVENTS | G49: ° Fireworks ° Minor (announced) demonstration ° Musical event (no classical music or rock/house) ° Carnival ° Multi-day marches ° Competitive sports ° Marathon ° Cycling | H49: ° Car/motorsports ° Air Show | I49: ° Rock concert ° Event with Techno/house and related music genres | K49: =SUM(AN49:AN52) -> 52.08333333 | L49: 40 | M49: =25/0.4 -> 62.5 | N49: =M49*$AN$40 -> 109.1269841 | U49: 4 | V49: 5 | Y49: 8 | Z49: 11 | AC49: 12 | AD49: 18 | AF49: 25 | AG49: 16 | AJ49: 34 | AK49: 20 | AN49: =20/$AN$55*100 -> 41.66666667
C50: 30 | D50: Event duration | E50: < 5 hours | F50: 5-12 hours | G50: 12-24 hours | H50: >24 hours | N50: =109-(N43+N44+N45+N53) -> 43 | Q50: 0 | R50: 1 | S50: 2 | T50: 3 | W50: 4 | AE50: 0 | AF50: 2 | AG50: 4 | AH50: 6 | AN50: =3/$AN$55*100 -> 6.25
C51: 31 | D51: Exact event duration in hours | F51: HOUR | AE51: 5 | AF51: 10 | AG51: 17 | AH51: 24 | AI51: 32
C52: 32 | D52: Time of event | E52: Working hours | F52: (Also) outside working hours | Q52: 0 | S52: 2 | AE52: 0 | AF52: 4 | AN52: =2/$AN$55*100 -> 4.166666667
B53: TEMPERATURE AND HUMIDITY | C53: 33 | D53: expected temperature | E53: ° 7 ° C - 17 ° C | F53: ° 4°C-7°C ° 17 ° C - 22 ° C ° Air conditioning units present | G53: ° 0°C-3°C °22°C-27°C | H53: ° < 0°C ° > 27°C | K53: =AN53 -> 12.5 | L53: 30 | M53: =63*L53/100 -> 18.9 | N53: =M53*$AN$40 -> 33 | Q53: 0 | S53: 2 | U53: 4 | W53: 6 | AE53: 0 | AF53: 7 | AG53: 15 | AH53: 33 | AN53: =6/$AN$55*100 -> 12.5
A55: R4 : RISK AS 4 : OBJECTIVATION | AH55: =AH53+AF52+AI51+AH50+AF48+AG47+AG46+AF45+AG44+AG43+AH42 -> 109 | AN55: =U42+S43+U44+S45+S46+S47+R48+AK49+T50+S52+W53 -> 48 | AO55: =SUM(AN42:AN53) -> 100
B57: CLASS | C57: NO | D57: QUESTION | E57: ANSWER OPTIONS
B58: TRACK RECORD | C58: 34 | D58: Event age | E58: > 10 y/o | F58: 4 - 9 y/o | G58: < 4 y/o
C59: 35 | D59: Record available | E59: YES | F59: NO
B61: MEDICAL LITERATURE | C61: 36 | D61: Problems to be expected according to medical literature (+specify which literature) | E61: NO | F61: YES (only when notified)
B63: MULTIDISCIPLINARY COORDINATION | C63: 37 | D63: Presence of utilities | E63: Ample standard facilities | F63: Limited standard facilities | G63: Set up specifically for this event
C64: 38 | D64: Means of communication | E64: Generously equipped (internal and external communication) via fixed structure | F64: Separate communication structure for this event
C65: 39 | D65: Presence of large animals | E65: NO | F65: YES
C66: 40 | D66: International reputation (> 9 % foreigners expected) | E66: NO | F66: YES
C67: 41 | D67: Presence of an Operational Control Centre for the entire duration of the event | E67: YES and staffed | F67: YES and partly staffed | G67: NO
C68: 42 | D68: Problem according to police | E68: NO | F68: YES
C69: 43 | D69: Problem according to the fire department | E69: NO | F69: YES
C70: 44 | D70: Previous negative experience with this type of event | E70: NO or unknown | F70: YES
C71: 45 | D71: Previous negative experience with the organiser | E71: NO or unknown | F71: YES
C72: 46 | D72: Specific legislation concerning this type of event | E72: NO | F72: YES
A74: R5 : RISK AS 5 : PREPAREDNESS
B76: CLASS | C76: NO | D76: QUESTION | E76: ANSWER OPTIONS
B77: PREPAREDNESS | C77: 47 | D77: Are there adequate maps of the site | E77: YES | F77: NO
C78: 48 | D78: Are there adequate maps of the entire isolation area | E78: YES | F78: NO
C79: 49 | D79: Does the plan meet the requirements of the MIP | E79: YES | F79: NO
C80: 50 | D80: Has a Dir-Med been appointed for the event | E80: YES OR NO NEED | F80: NO
C81: 51 | D81: Is there a clear communication model that can be used in the event of a collective problem | E81: YES | F81: NO
C82: 52 | D82: Is there a direct link to the 100 switchboard | E82: YES | F82: NO
C83: 53 | D83: Is the Medical Intervention Plan compliant with the Royal Decree of 16/02/06 | E83: YES | F83: NO

Sheet INTERPRETATION
A1: CALCULATION OF RESOURCES/FACILITIES REQUIRED FOR EVENT (3 PAGES)
A3: R1 : RISK AS 1 : ISOLATION RISK | I3: COLOUR CODES USED IN THIS SHEET
I4: Green | J4: Value, copied from “SECTION 3 + SCORE”
B5: R1-A - NO. OF AMBULANCES NEEDED | I5: Blue (table) | J5: Conversion tables: the corresponding value must be entered and/or the corresponding instruction must be followed
I6: Purple (table) | J6: Table of basic values, corresponding to the standard population
E7: QUESTION AND ANSWER | G7: RESULT | I7: (Bright) yellow | J7: Result of the calculation
E8: Time needed to reach the event under standard conditions (in minutes and decimals) | G8: ='SECTION3 + SCORE'!J6 -> 0
E9: Delay due to poor accessibility (1) | G9: ='SECTION3 + SCORE'!J8 -> 0
E10: Number of perimeters (1 minute delay per perimeter) : fill in the number | G10: ='SECTION3 + SCORE'!J9 -> 0
E11: TOTAL AMBULANCE RESPONSE TIME | G11: =IF(AND(G8=0,G9=0,G10=0),0,G8/(G9/10)+G10) -> 0
E12: Need for an ambulance | G12: =IF(G11<FIGURES!E2,"geen ambulance nodig",IF(G11<FIGURES!E3,"noodzaak te evalueren volgens andere resultaten","ambulance noodzakelijk")) -> geen ambulance nodig
E13: (1) : This number may increase or decrease according to the POPULATION or HEALTH RISK | J13: DATE CONVERTED TO INTEGER
J14: REASON: Calculation used to determine the date on which HC100 is to be notified
B15: R1-B - NO. OF MUG TEAMS NEEDED | J15: Date, converted to number | K15: ='SECTION 1 - APPLICATION'!G4 -> 00/00/0000
J16: Number minus 10 days | K16: =K15-10 -> 
E17: QUESTION AND ANSWER | G17: RESULT
E18: Time needed to reach the event under standard conditions (in minutes and decimals) | G18: ='SECTION3 + SCORE'!J7 -> 0
E19: Delay due to poor accessibility (1) | G19: ='SECTION3 + SCORE'!J8 -> 0
E20: Number of perimeters (1 minute delay per perimeter) : fill in the number | G20: ='SECTION3 + SCORE'!J9 -> 0
E21: TOTAL MUG RESPONSE TIME | G21: =IF(AND(G8=0,G9=0,G10=0),0,G18/(G19/10)+G20) -> 0
E22: Need for a MUG team | G22: =IF(G21<FIGURES!E5,"Geen MUG nodig",IF(G21<FIGURES!E6,"Evalueer in functie van andere resultaten","MUG noodzakelijk")) -> Geen MUG nodig
E23: (1) : This number may increase or decrease according to the POPULATION or HEALTH RISK | K23: 5000 | L23: 1 | M23: 416
J24: =K23-K24 -> 300 | K24: =$K$23*L24 -> 4700 | L24: 0.94 | M24: =$M$23*L24 -> 391.04 | N24: =M23-M24 -> 24.96
B25: R1 - C : NO. OF BLS TEAMS NEEDED | J25: 250 | K25: 4450 | L25: 0.89 | M25: 370.24 | N25: 20.8
J26: 300 | K26: 4150 | L26: 0.83 | M26: 345.28 | N26: 24.96
D27: RESULTS FROM SECTION 3 | J27: 250 | K27: 3900 | L27: 0.78 | M27: 324.48 | N27: 20.8
D28: Surface area of the site in km² (question 7 in section 3) | G28: =IF('SECTION3 + SCORE'!J10>0,'SECTION3 + SCORE'!J10,'SECTION3 + SCORE'!I11) ->  | J28: 300 | K28: 3600 | L28: 0.72 | M28: 299.52 | N28: 24.96
D29: BLS score calculated in section 3 | G29: ='SECTION3 + SCORE'!J17 -> 0 | J29: 250 | K29: 3350 | L29: 0.67 | M29: 278.72 | N29: 20.8
D30: Surface area corresponding to BLS score (copy corresponding surface area from the BLS-1 table | G30: =IF(G29=0,1,IF(G29=1,0.94,IF(G29=2,0.89,IF(G29=3,0.83,IF(G29=4,0.78,IF(G29=5,0.72,IF(G29=6,0.67,IF(G29=7,0.61,0.56)))))))) -> 1
D31: Estimated number of BLS crews required | G31: =IF('SECTION 2 - RISK ASSESSMENT'!E10="NEEN",0,IF(G28>0,G28/G30,'SECTION3 + SCORE'!J11/INTERPRETATION!G30)) -> 
D32: TWEAK BASED ON NUMBER OF STAGES => FINAL NUMBER OF BLS CREWS | G32: =IF('SECTION 1 - APPLICATION'!K21>FIGURES!D24,IF(G31<'SECTION3 + SCORE'!I12,'SECTION3 + SCORE'!I12,INTERPRETATION!G31),G31) ->  | I32: BLS modified, no reverted back to version 22
B34: R1 - D : MEASURES TO BE TAKEN FOR LOCAL RESIDENTS
D36: ASSESSMENT OF THE MEASURES TO BE TAKEN FOR LOCAL RESIDENTS
D37: Should measures be taken for local residents | G37: =IF('SECTION3 + SCORE'!J25=0,"NEEN","JA") -> NEEN | J37: Should measures be taken for local residents | K37: =G37 -> NEEN
A39: R2 : RISK AS 2 : POPULATION RISK
D41: TOTAL POPULATION AT EVENT
D42: Calculated population | G42: ='SECTION3 + SCORE'!G37 -> 0
D43: Calculated number of ambulances | G43: =IF(G42<FIGURES!D9,0,IF(G42<FIGURES!D10,1,IF(G42<FIGURES!D11,2,IF(G42<FIGURES!D12,3,IF(G42<FIGURES!D13,4,IF(G42<FIGURES!D14,5,IF(G42<FIGURES!D15,6,IF(G42<FIGURES!D16,7,8)))))))) -> 0
D44: Calculated number of MUG teams | G44: =IF(G42<FIGURES!D17,0,IF(G42<FIGURES!D18,1,2)) -> 0
A46: R3 : RISK AS 3 : HEALTH RISKS
D48: DATA USED TO CALCULATE THE MEDICAL WORKLOAD DURING THE EVENT
D49: Total population | G49: ='SECTION3 + SCORE'!J37 -> 0
D50: Event duration in hours | G50: ='SECTION3 + SCORE'!J47 -> 0
D51: Illness risk score | G51: ='SECTION3 + SCORE'!J55 -> 6 | J51: SCORE J54 ==> G50 OR INTERPRETATION G50
D52: multiplier (to be filled in according to table HEA-1) | G52: =IF(G51<44,1,IF(G51<66,2,IF(G51<87,3,IF(G51<99,4,6)))) -> 1 | J52: 0-28 => 2 | K52: =28/48*100 -> 58.33333333 | L52: =K52*109/100 -> 63.58333333
J53: 29-39 => 3 | K53: =39/48*100 -> 81.25 | L53: =K53*109/100 -> 88.5625
E54: TABLE HEA-2 : VARIABLES FOR CALCULATING THE WORKLOAD PER 10,000 PEOPLE PER 5 HOURS | J54: 40-48 = > 5 | K54: 100
E55: Average duration of care in minutes | G55: =FIGURES!I3 -> 12
E56: Surface area per patient in m² (including administration and storage, excluding coordination) | G56: =FIGURES!I4 -> 12 | J56: 40 | K56: =109*J56/100 -> 43.6
E57: =D62 -> Number of life-threatening conditions (after handover) | G57: =FIGURES!I5 -> 0.019 | J57: 60 | K57: =109*J57/100 -> 65.4
E58: =D63 -> Number of urgent conditions (request doctor and/or ambulance transport to hospital) | G58: =FIGURES!I6 -> 0.19 | J58: 80 | K58: =109*J58/100 -> 87.2
E59: =D64 -> Number of requests for (basic) medical care | G59: =FIGURES!I7 -> 2 | J59: 90 | K59: =109*J59/100 -> 98.1
D61: ESTIMATED MEDICAL WORKLOAD DURING EVENT
D62: Number of life-threatening conditions (after handover) | G62: =((G49*(G50/5)*(G51/4)*G57)/10000)*G52/5 -> 0
D63: Number of urgent conditions (request doctor and/or ambulance transport to hospital) | G63: =(G49*G50/5*G51/4*G58)/10000*G52/3 -> 0
D64: Number of requests for (basic) medical care | G64: =(G49*G50/5*G51/4*G59)/10000+((G49*G50/5*G51/4*G59)/10000)/8.6/100+((G49*G50/5*G51/4*G59)/10000)/100*0.86-G63-G62 -> 0
D65: TOTAL NUMBER OF PERSONS RECEIVING CARE | G65: =SUM(G62:G64) -> 0 | I65: =G64/2 -> 0
D66: Number of simultaneous cases and, therefore, required number of beds/spots in aid station(s) | G66: =IF((G50=0),0,(G64/2)/((G50/4)*60/G55)) -> 0
D67: Minimum total surface area of aid station(s) | G67: =IF('SECTION 2 - RISK ASSESSMENT'!E10="NEEN",0,INT(G66)+1)*G56 -> 12 | J67: =INT(J66) -> 0
A69: R4 : RISK AS 4 : INFORMATION OBJECTIVATION
D71: ESTIMATED OBJETIVATION
D72: Measures to be taken based on track record | G72: =IF('SECTION3 + SCORE'!J61<2,"eenvoudige registratie", "zoek vergelijkbare registratie") -> eenvoudige registratie
D73: Measures to be taken on the basis of the literature score | G73: =IF('SECTION3 + SCORE'!J65=0, "geen opzoeking nodig", "voer literatuursurvey uit") -> geen opzoeking nodig
D74: Is multidisciplinary adjustment necessary | G74: =IF('SECTION3 + SCORE'!J79=0,"NEEN","JA") -> JA
A76: R5 : RISK AS 5 : PREPAREDNESS
D78: ESTIMATED EVENT EMERGENCY PLAN
D79: Are any additional disaster preparedness measures needed | G79: =IF('SECTION3 + SCORE'!J100=0, "NEEN","JA") -> NEEN
A82: SECTION 4 : FURTHER IMPACT ON PUBLIC HEALTH
D84: ESTIMATED EFFECT ON PUBLIC HEALTH (IMMEDIATE EFFECTS)
D85: ='[1]LUIK 4 - RISICO''S VGZ'!C29 ->  | G85: ='[1]LUIK 4 - RISICO''S VGZ'!D29 -> 
D86: ='[1]LUIK 4 - RISICO''S VGZ'!C30 ->  | G86: ='[1]LUIK 4 - RISICO''S VGZ'!D30 -> 
A89: NOTE : SELECT ONE OF THE AVAILABLE COMMUNICATION DIAGRAMS
D91: Which communication model should be followed | G91: =IF(G65/G50<1,"GSM",IF(G66<2,"schema 1",IF(G62<1,"schema 2","schema 3"))) ->  | J91: =IF(G91="GSM",0,IF(G91="schema 1",1,IF(G91="schema 2",2,3))) -> 
D93: Mobile | E93: Basic | F93: The people in charge on site must have each other’s mobile phone number | G93: 0
D95: Model 1 | E95: Minimum | F95: Call group for multidisciplinary coordination and consultation | G95: 1
F96: Call group for medical operations
D98: Model 2 | E98: Medium | F98: Call group for multidisciplinary coordination and consultation | G98: 2
F99: Call group for medical operations
F100: Call group for medical logistics
D102: Model 3 | E102: Maximum | F102: Call group for multidisciplinary coordination and consultation | G102: 3
F103: Call group for medical operations (MIP : KTA/Dis B)
F104: Call group for medical logistics (MIP : KTA/Dis C)
F105: Call group for medical coordination (MIP : Dir-Med A)
F106: Call group for medical regulation (MIP : KTA/Dis A)
F107: Medical call group (backup)
A109: NOTE : SHOULD ADDITIONAL MEASURES BE TAKEN FOR AMATEUR ATHLETES AT MAJOR SPORTING EVENTS (MOET EEN APARTE VOORZIENING GETROFFEN WORDEN VOOR AMATEURSPORTERS BIJ MASSA-SPORTMANIFESTATIES) (Nguyen et al. Prehosp Dis Med 2008; 23:519-25)
D111: STANDARDS FOR THE USE OF MEDICAL RESOURCES IN MEDICAL LITERATURE
D112: Total population at risk | G112: ='SECTION 1 - APPLICATION'!I15 -> 0
D113: Event duration | G113: ='SECTION 1 - APPLICATION'!K8 -> FALSE

Sheet RESULTS
A1: EVENT | B1: ='SECTION 1 - APPLICATION'!G6 -> ALL OTHER EVENTS | E1: DATE | F1: ='SECTION 1 - APPLICATION'!G4 -> 00/00/0000
A2: ADDRESS | B2: ='SECTION 1 - APPLICATION'!G7 -> 0 | E2: DURATION | F2: ='SECTION3 + SCORE'!J47 -> 0 | G2: TIME
A3: PERSON RESPONSIBLE | B3: ='SECTION 1 - APPLICATION'!G25 -> 0 | E3: TEL | F3: ='SECTION 1 - APPLICATION'!G31 -> 0
A5: PART 1 | B5: QUANTITATIVE INFORMATION
A6: ISOLATION | B6: Is an ambulance needed according to this criterion | D6: =INTERPRETATION!G12 -> geen ambulance nodig
B7: Is a MUG team needed according to this criterion | D7: =INTERPRETATION!G22 -> Geen MUG nodig
B8: =INTERPRETATION!D31 -> Estimated number of BLS crews required | E8: =INTERPRETATION!G32 -> 
B9: Distance to the nearest emergency department | E9: ='SECTION3 + SCORE'!I18 -> 0
A10: POPULATION | B10: =INTERPRETATION!D42 -> Calculated population | E10: =INTERPRETATION!G42 -> 0
B11: Event duration | E11: =INTERPRETATION!G50 -> 0 | J11: Minimum number of ambulances | K11: =#REF! -> 
B12: Calculated number of ambulances | E12: =INTERPRETATION!G43 -> 0 | J12: Minimum number of MUG teams | K12: =E22 -> 
B13: Calculated number of MUG’ teams | E13: =INTERPRETATION!G44 -> 0 | J13: Minimum number of BLS teams on site | K13: =E23 -> 
A14: HEALTH | B14: =INTERPRETATION!D62 -> Number of life-threatening conditions (after handover) | E14: =INTERPRETATION!G62 -> 0 | J14: Minimum number of aid workers at emergency stations | K14: =E24 -> 0
B15: =INTERPRETATION!D63 -> Number of urgent conditions (request doctor and/or ambulance transport to hospital) | E15: =INTERPRETATION!G63 -> 0 | J15: Minimum number of nurses other than the MUG nurse | K15: =E25 -> 
B16: =INTERPRETATION!D64 -> Number of requests for (basic) medical care | E16: =INTERPRETATION!G64 -> 0 | J16: Minimum number of doctors other than the MUG doctor | K16: =E26 -> 
B17: =INTERPRETATION!D66 -> Number of simultaneous cases and, therefore, required number of beds/spots in aid station(s) | E17: =INTERPRETATION!G66 -> 0
B18: =INTERPRETATION!D67 -> Minimum total surface area of aid station(s) | E18: =INTERPRETATION!G67 -> 12
A19: COMBINATION | B19: Required MUG teams according to Population and Isolation
B20: Required doctors according to Health | J20: Suggested change : 1 ambulance more near perimeter : this should be limited to N=2 ambulances !!
A21: TRANSLATION | B21: NUMBER OF AMBULANCES | E21: =IF(INTERPRETATION!G43>0,INTERPRETATION!G43,IF(INTERPRETATION!G63>0.5,1,IF(INTERPRETATION!G11>15,1,0))) -> 0 | H21: IF((INTERPRETATION!G11+(2*’SECTION3 + SCORE’!I18)+10)/60*(RESULTS!E14+RESULTS!E15)>RESULTS!F2*0,8;RESULTS!E12+1;IF(INTERPRETATION!G63>1;INTERPRETATION!G43;IF(INTERPRETATION!G63>0,5;1;IF(INTERPRETATION!G11>GRADES!E4;1;0)))) | J21: =IF(E12*5000+5000-E10<1000,IF((INTERPRETATION!G21*2+20)/60*(RESULTS!E14+RESULTS!E15)>RESULTS!E11*0.8,RESULTS!E12+1,RESULTS!E12),1) -> 1
B22: NUMBER OF MUG teams | E22: =IF(INTERPRETATION!G44>0,INTERPRETATION!G44,IF((INTERPRETATION!G62+INTERPRETATION!G63*0.2)/'SECTION3 + SCORE'!J47>0.3,1,IF(INTERPRETATION!G42<10000,"0",IF(INTERPRETATION!G21>FIGURES!E7,1,0)))) ->  | J22: =INTERPRETATION!G44+(26/2)/84/4*E9/2 -> 0
B23: NUMBER OF BLS TEAMS | E23: =E8 -> 
B24: MINIMUM NUMBER OF AID WORKERS | E24: =E17*2 -> 0 | K24: =IF(INTERPRETATION!E63>1,INTERPRETATION!E43,IF((RESULTS!E12*5000+5000-RESULTS!E10)>1000,RESULTS!E12,IF((INTERPRETATION!G11*2+25+10)/60*(RESULTS!E14+RESULTS!E15)>RESULTS!E11*0.8,RESULTS!E12+1,IF(INTERPRETATION!E63>0.5,1,IF(INTERPRETATION!E11>15,1,0))))) -> 0
B25: MINIMUM NUMBER OF NURSES | E25: =(E15/F2*0.8+E16/F2*0.4)/5*2 -> 
B26: MINIMUM NUMBER OF DOCTORS | E26: =(E15/F2*0.8+E16/F2*0.2)/4.5*1.5 ->  | J26: IF(
A28: PART 2 | B28: QUALITATIVE DATA
A29: LOCAL RESIDENTS | B29: CALCULATED SCORE | C29: =INTERPRETATION!G37 -> NEEN | D29: USE “LOCAL RESIDENTS” TABLE IF SCORE > 0 | H29: com3
A30: MULTI-DISCIPLINARY CONSULTATION | B30: CALCULATED SCORE | C30: =INTERPRETATION!G74 -> JA | D30: USE "MULTIDISCIPLINARY" TABLE IF SCORE > 0 | H30: com3
A31: PREPAREDNESS | B31: CALCULATED SCORE | C31: =INTERPRETATION!G79 -> NEEN | D31: USE "PREPAREDNESS” TABLE IF SCORE > 0 | H31: com3
A33: PART 3 | B33: PUBLIC HEALTH
A34: PUBLIC HEALTH | B34: CALCULATED SCORE | C34: ='[1]LUIK 4 - RISICO''S VGZ'!J24 ->  | D34: USE “PUBLIC HEALTH” TABLE IF SCORE > 0 | H34: com3
A41: LOCAL RESIDENTS TABLE
A42: NO | B42: QUESTION | C42: ACTION IF THE SCORE IS “1” | H42: SCORE
A43: 14 | B43: Residents inside isolation perimeter | C43: Look up the total number of local residents living near the event site Ask if local residents were notified | H43: ='SECTION3 + SCORE'!I19 -> 0
A44: 15 | B44: Retirement home/hospital inside perimeter | C44: Check that the institute in question was notified of the event and that there is an alternative access point. IF NOT : allocate additional resources in the institute in question for the entire duration it will have to run autonomously | H44: ='SECTION3 + SCORE'!I20 -> 0
A45: 16 | B45: On-call GP needed inside perimeter | C45: Notify local general practitioners | H45: ='SECTION3 + SCORE'!I21 -> 0
C46: Share the phone number of the Operational Control Centre (GP consultations + parking) | H46: ='SECTION3 + SCORE'!I21 -> 0
A47: 17 | B47: On-call nurse needed inside perimeter | C47: Notify on-call nurses | H47: ='SECTION3 + SCORE'!I22 -> 0
C48: Share the phone number of the Operational Control Centre (GP consultations + parking) | H48: ='SECTION3 + SCORE'!I22 -> 0
A49: 18 | B49: meal delivery needed inside perimeter | C49: Check that this has been arranged with the municipality | H49: ='SECTION3 + SCORE'!I23 -> 0
A50: 19 | B50: on-call pharmacist needed inside perimeter | C50: If possible, ask that the on-call pharmacist arranges a replacement IF NOT POSSIBLE: ensure free access to the pharmacy | H50: ='SECTION3 + SCORE'!I24 -> 0
A51: 20 | B51: Number of municipalities concerned | C51: Are all municipalities involved in the planning process | H51: ='SECTION3 + SCORE'!I25 -> 0
A53: "MULTIDISCIPLINARY COOPERATION” TABLE
A54: NO | B54: QUESTION | C54: ACTION IF THE SCORE IS “1” | H54: SCORE
A55: 37 | B55: Presence of utilities | C55: Is their sufficient capacity | H55: ='SECTION3 + SCORE'!I66 -> 0
A56: 38 | B56: Means of communication | C56: Can the emergency services work with this equipment | H56: ='SECTION3 + SCORE'!I67 -> 0
A57: 39 | B57: Presence of large animals | C57: Are the facilities adapted for these animals Inform the Animal Welfare Department (DG4) | H57: ='SECTION3 + SCORE'!I68 -> 0
A58: 40 | B58: International reputation (> 9 % foreigners expected) | C58: Coping with foreign language problems | H58: ='SECTION3 + SCORE'!I69 -> 0
A59: 41 | B59: Presence of an Operational Control Centre for the entire duration of the event | C59: What must people do if the Operational Control Centre is not or only partially manned (phone numbers) | H59: ='SECTION3 + SCORE'!I74 -> 0
A60: 42 | B60: Problem according to police | C60: Does this problem effect medical assistance | H60: ='SECTION3 + SCORE'!I75 -> 0
A61: 43 | B61: Problem according to the fire department | C61: Does this problem effect medical assistance | H61: ='SECTION3 + SCORE'!I76 -> 0
A62: 44 | B62: Previous negative experience with this type of event | C62: Does this problem effect medical assistance | H62: ='SECTION3 + SCORE'!I77 -> 0
A63: 45 | B63: Previous negative experience with the organiser | C63: Does this problem effect medical assistance | H63: ='SECTION3 + SCORE'!I78 -> 0
A64: 46 | B64: Specific legislation concerning this type of event | C64: Has this legislation been put into practice | H64: ='SECTION3 + SCORE'!I79 -> 0
A67: “PREPAREDNESS” TABLE
A68: NO
A69: 47
A70: 48
A71: 49
A72: 50
A73: 51 | J73: “PREPAREDNESS” TABLE
A74: 52 | J74: QUESTION | K74: SCORE
A75: 53 | J75: Are there adequate maps of the site | K75: ='SECTION3 + SCORE'!I94 -> 0
J76: Are there adequate maps of the entire isolation area | K76: ='SECTION3 + SCORE'!I95 -> 0
J77: Does the plan meet the requirements of the MIP | K77: ='SECTION3 + SCORE'!I96 -> 0
J78: Has a Dir-Med been appointed for the event | K78: ='SECTION3 + SCORE'!#REF! -> 
J79: Is there a clear communication model that can be used in the event of a collective problem | K79: ='SECTION3 + SCORE'!I97 -> 0
A80: “PUBLIC HEALTH” TABLE | J80: Is there a direct link to the 100 switchboard | K80: ='SECTION3 + SCORE'!I98 -> 0
A81: NO | B81: QUESTION | C81: ACTION IF THE SCORE IS “1” | H81: SCORE | J81: Is the Medical Intervention Plan compliant with the Royal Decree of 16/02/06 | K81: ='SECTION3 + SCORE'!I99 -> 0
A82: IMPORTANT POINTS OF ATTENTION AT THE EVENT | B82: 54 | C82: Efforts made to increase awareness of the importance of bringing sunscreen and sunglasses | H82: ='[1]LUIK 4 - RISICO''S VGZ'!J7 -> 
B83: 55 | C83: Negative behaviour shown by people attending the event can be counteracted | H83: ='[1]LUIK 4 - RISICO''S VGZ'!J8 -> 
B84: 56 | C84: Free drinking water at temperatures exceeding 27°C | H84: ='[1]LUIK 4 - RISICO''S VGZ'!J9 -> 
B85: 57 | C85: Ample portable toilets | H85: ='[1]LUIK 4 - RISICO''S VGZ'!J10 -> 
B86: 58 | C86: Measures taken to ensure the cleanliness of portable toilets | H86: ='[1]LUIK 4 - RISICO''S VGZ'!J11 -> 
B87: 59 | C87: Separate logo for waste management | H87: ='[1]LUIK 4 - RISICO''S VGZ'!J12 -> 
B88: 60 | C88: Separate waste collection | H88: ='[1]LUIK 4 - RISICO''S VGZ'!J13 -> 
B89: 61 | C89: Separate waste collection in areas open to the general public | H89: ='[1]LUIK 4 - RISICO''S VGZ'!J14 -> 
B90: 62 | C90: Properly functioning cold chain for food stalls | H90: ='[1]LUIK 4 - RISICO''S VGZ'!J15 -> 
B91: 63 | C91: Fire extinguishers at food stalls working with fire and serving hot food | H91: ='[1]LUIK 4 - RISICO''S VGZ'!J16 -> 
B92: 64 | C92: During ticket sales, people with chronic conditions were asked to carry a medical card with them during the event | H92: ='[1]LUIK 4 - RISICO''S VGZ'!J17 -> 
B93: 65 | C93: During ticket sales, a flyer with information about prevention was distributed, drawn up with the help of the medical section | H93: ='[1]LUIK 4 - RISICO''S VGZ'!J18 -> 
A94: ADDITIONAL POINTS OF ATTENTION REGARDING THE CAMPSITE | B94: 66 | C94: Drinking water supply system with sufficient flow rate | H94: ='[1]LUIK 4 - RISICO''S VGZ'!J19 -> 
B95: 67 | C95: Ample portable toilets | H95: ='[1]LUIK 4 - RISICO''S VGZ'!J20 -> 
B96: 68 | C96: Amble showers | H96: ='[1]LUIK 4 - RISICO''S VGZ'!J21 -> 
B97: 69 | C97: Storage and labeling of chronic medication | H97: ='[1]LUIK 4 - RISICO''S VGZ'!J22 -> 

Sheet WORKING DOC
A1: Can the roles of BLS team member and ambulance aid worker be combined
A3: Minimum number of aid stations | G3: Should a temporary medical centre be set up at the event | H3: ='SECTION 2 - RISK ASSESSMENT'!E10 -> NO
A4: Minimum number of nurses | B4: =RESULTS!E25 ->  | G4: Should remote measures be taken | H4: ='[1]LUIK 4 - RISICO''S VGZ'!D29 -> 
A5: Minimum number of doctors other than MUG doctors | B5: =RESULTS!E26 ->  | G5: Should specific measures be taken for campsites | H5: ='[1]LUIK 4 - RISICO''S VGZ'!D30 -> 
A6: Minimum number of MUG teams | B6: =RESULTS!E22 -> 
G7: Should measures be taken for local residents | H7: =INTERPRETATION!G37 -> NEEN
A8: ='SECTION 1 - APPLICATION'!G5 -> VERSION 25 | B8: ='SECTION 1 - APPLICATION'!G4 -> 00/00/0000 | G8: Multi-disciplinary actions must be taken | H8: =INTERPRETATION!G74 -> JA
G9: Is the medical emergency planning sufficiently detailed | H9: =INTERPRETATION!G79 -> NEEN
A11: Event date | B11: ='SECTION 1 - APPLICATION'!G4 -> 00/00/0000
A12: Total attendance after correction | B12: ='SECTION 1 - APPLICATION'!K21/('SECTION 1 - APPLICATION'!I20/100) -> 0
A13: Total event duration in hours | B13: ='SECTION 1 - APPLICATION'!K8 -> FALSE
A14: Maximum number of simultaneous visitors | B14: ='SECTION 1 - APPLICATION'!K21 -> 0
A15: Maximum time spent by said visitors at the event in hours | B15: ='SECTION3 + SCORE'!J47 -> 0
G16: CHECK OF NEXT SHEETS OK
A17: Is a temporary medical centre needed during this event | B17: ='SECTION 2 - RISK ASSESSMENT'!E10 -> NO
A18: Are additional public health measures needed | B18: ='[1]LUIK 4 - RISICO''S VGZ'!D29 -> 
A19: Are additional measures for a campsite needed | B19: ='[1]LUIK 4 - RISICO''S VGZ'!D30 -> 
A21: Number of life-threatening conditions (after handover) | B21: =RESULTS!E14 -> 0
A22: Number of urgent conditions (request doctor and/or ambulance transport to hospital) | B22: =RESULTS!E15 -> 0
A23: Number of requests for (basic) medical care | B23: =RESULTS!E16 -> 0
A24: Total number of people receiving care | B24: =INTERPRETATION!G65 -> 0
A25: Number of simultaneous cases and, therefore, required number of beds/spots in aid station(s) | B25: =IF(B24>1,INTERPRETATION!G66,IF(B24>0,1,0)) -> 0 | G25: cell B25 changed to ensure that the number of simultaneous treatments is always 1 under care provided
A27: Aid workers
A28: Minimum number of ambulances | B28: =RESULTS!$E$21 -> 0
A29: Note : ambulances are always manned by 2 ambulance aid workers
A30: Minimum number of BLS teams | B30: =RESULTS!E23 -> 
A31: Minimum number of other aid workers (excluding the BLS teams and the ambulance aid workers) | B31: =RESULTS!E24 -> 0
A32: Note : if this number is equal to 0, the ambulance aid worker is responsible for transport, if necessary, as well as general medical assistance.
A34: Can the roles of ambulance aid worker and BLS team member be combined
A35: Can the roles of ambulance aid worker and aid station worker be combined
A36: Can the roles of BLS team member and aid station worker be combined
A38: Minimum area for the aid station | B38: =INTERPRETATION!G67 -> 12
A40: Should multiple aid stations be setp up
A42: Minimum number of MUG teams | B42: =IF(RESULTS!F2=0,0,RESULTS!E22) -> 0
A43: Minimum number of nurses (other than MUG team(s)) | B43: =IF(RESULTS!F2=0,0,RESULTS!E25) -> 0
A44: Minimum number of doctors (other than MUG team(s)) | B44: =IF(RESULTS!F2=0,0,RESULTS!E26) -> 0
A46: ='SECTION3 + SCORE'!D101 -> Has the application form with relevant information been submitted to the HC100 (DOC 100) | B46: =IF('SECTION3 + SCORE'!I101=0,"JA",IF('SECTION3 + SCORE'!I101="niet van toepassing","niet van toepassing","NEEN")) -> NEEN
A47: ='SECTION3 + SCORE'!D102 -> Have the site maps been submitted to the HC100 | B47: =IF('SECTION3 + SCORE'!I102=0,"JA",IF('SECTION3 + SCORE'!I102="niet van toepassing","niet van toepassing","NEEN")) -> JA
A49: Date on which the HC100 should be notified if the answer to one of these questions is “NO”

Sheet LIST
A1: Event type | B1: Accessibility | C1: Age | D1: Alcohol | E1: Drugs | F1: Audience | G1: Basic conditions/injuries | H1: Food | I1: Duration | J1: Temperature | K1: Utilities | L1: Communication | M1: Transport | N1: Utilities
A2: Please select | B2: Please select | C2: Please select | D2: Please select | E2: Please select | F2: Please select | G2: Please select | H2: Please select | I2: Please select = 0 | J2: Please select | K2: Please select | L2: Please select | M2: Please select | N2: Please select
A3: All other demonstrations | B3: Separate approach route for emergency services | C3: All ages | D3: No | E3: No | F3: No different from standard population | G3: No | H3: No | I3: < 5 hours = 0 | J3: < 0°C | K3: Ample standard facilities | L3: Ample internal & external means of communication fixed structure | M3: regular public transport in the area | N3: None
A4: ALL OTHER EVENTS | B4: no separate approach route for emergency services and several major approach routes | C4: 10-20 y/o and/or 36-65 y/o | D4: Present, no increased risk expected | E4: Present, no increased risk expected | F4: Homogeneous audience | G4: Disability or mild condition/injury requiring long-term treatment | H4: Cold food | I4: 5-12 hours = 1 | J4: 0°C-3°C | K4: Limited standard facilities | L4: Separate communication structure for this event or no communication | M4: Regular public transport at a distance and/or own shuttle service | N4: Gas cylinders
A5: Autosport | B5: No separate approach route for emergency services and restricted access for emergency services and visitors | C5: 20-35 y/o | D5: Present, increased risk expected | E5: Present, increased risk expected | G5: Severe condition/injury requiring long-term treatment | H5: Hot food | I5: 12-24 hours = 2 | J5: 4°C-7°C | K5: Set up specifically for this event | M5: No public transport in the area OR public transport no longer runs at the start/end of the event | N5: Connection to an electrical group
A6: Balloon flight | C6: > 65 y/o | D6: Abundant use | E6: Abundant use | I6: > 24 hours = 3 | J6: 7°C-17°C | N6: Connection to electricity grid
A7: Bazaar | C7: <10 y/o with parental supervision | J7: 17°C-22°C | N7: unknown
A8: Trade fair | C8: <10 y/o without parental supervision | J8: 22°C-27°C | N8: other
A9: Fair | J9: >27°C
A10: Competitive sports | J10: Air conditioning units present
A11: Classical music concert
A12: Dance sports event
A13: Erotica expo
A14: Event with Techno/house and related musical genres
A15: Folkloristic celebration
A16: Party
A17: Marriage
A18: Carnival
A19: Christmas market
A20: Minor (announced) demonstration
A21: Marathon
A22: Market
A23: Multi-day marches
A24: Motorsports
A25: Music event (other than classical music or rock/house/techno)
A26: Parades
A27: meat feast
A28: Political event
A29: Rock concert
A30: Show
A31: Sports event (except marathon, cycling, multi-day marches or competition)
A32: Street festival (except carnival)
A33: Exhibition
A34: Theatre
A35: Flight show
A36: Flight show static
A37: Flea market
A38: Public concert
A39: Fireworks
A40: Cycling
A41: Cycling behind derny
A48: A = 4
A49: B = 8
A50: C = 12
A51: D = 16
A52: E = 20

Sheet Registration
A1: FPS number | B1: Event | I1: estimated figures | N1: variables | R1: Estimated workload | V1: Suggested facilities/resources | AB1: Factor | AC1: actual figures | AF1: effective care provided | AI1: transport to hospital | AO1: ASTRID group | AP1: Comments | AQ1: Comments on care provided by disaster officer | AR1: letter 1 = no facilities/resources 2 = limited facilities/resources 3 = FPS advice
B2: Name | C2: Type | D2: Duration | E2: Date | F2: Address | G2: postcode | H2: Municipality | I2: visitors | J2: participants | K2: of people deployed by the organisers | L2: Number of residents within the isolation perimeter | M2: Total number of people at risk | N2: t° C | O2: alcohol use | P2: drug use | Q2: Predominant age group | R2: T1 | S2: T2 | T2: T3 | U2: Simultaneous | V2: MUG | W2: AMB | X2: Doctor | Y2: Nu | Z2: Aidw | AA2: BLS | AB2: Health_zw | AC2: visitors | AD2: Average time spent at event | AE2: Max. simultaneous attendance | AF2: T1 | AG2: T2 | AH2: T3 | AI2: Ambulance | AJ2: Other resource | AK2: Temperature | AL2: Alcohol consumption | AM2: Drug use | AN2: Predominant age group
A4: 1 | B4: ='SECTION 1 - APPLICATION'!G5 -> VERSION 25 | C4: ='SECTION 1 - APPLICATION'!G6 -> ALL OTHER EVENTS | D4: ='SECTION 1 - APPLICATION'!K8 -> FALSE | E4: ='SECTION 1 - APPLICATION'!G4 -> 00/00/0000 | F4: ='SECTION 1 - APPLICATION'!$G$7 -> 0 | G4: ='SECTION 1 - APPLICATION'!$J$7 -> 0 | H4: ='SECTION 1 - APPLICATION'!G3 -> 0 | I4: ='SECTION 1 - APPLICATION'!$I$14 -> 0 | J4: ='SECTION 1 - APPLICATION'!$I$15 -> 0 | K4: ='SECTION 1 - APPLICATION'!$I$16 -> 0 | L4: ='SECTION 1 - APPLICATION'!$I$17 -> 0 | M4: ='SECTION 1 - APPLICATION'!$K$21 -> 0 | N4: ='SECTION3 + SCORE'!E55 -> Please select | O4: ='SECTION3 + SCORE'!E43 -> Please select | P4: ='SECTION3 + SCORE'!E44 -> Please select | Q4: ='SECTION3 + SCORE'!E42 -> Please select | R4: =RESULTS!E14 -> 0 | S4: =RESULTS!E15 -> 0 | T4: =RESULTS!E16 -> 0 | U4: =RESULTS!E17 -> 0 | V4: ='WORKING DOC'!$B$42 -> 0 | W4: ='WORKING DOC'!B28 -> 0 | X4: ='WORKING DOC'!$B$44 -> 0 | Y4: ='WORKING DOC'!$B$43 -> 0 | Z4: =RESULTS!E24 -> 0 | AA4: =RESULTS!E23 ->  | AB4: =INTERPRETATION!G52 -> 1 | AC4: ='Care provided'!E7 -> 0 | AD4: ='Care provided'!E8 -> 0 | AE4: ='Care provided'!E9 -> 0 | AF4: ='Care provided'!E12 -> 0 | AG4: ='Care provided'!E13 -> 0 | AH4: ='Care provided'!E14 -> 0 | AI4: ='Care provided'!E15 -> 0 | AJ4: ='Care provided'!E16 -> 0 | AK4: ='Care provided'!E19 -> Please select | AL4: ='Care provided'!E20 -> Please select | AM4: ='Care provided'!E21 -> Please select | AN4: ='Care provided'!E22 -> Please select | AQ4: ='Care provided'!A25 -> Please share any comments here. | AR4: =IF(AS7=0,1,IF(AS8=0,1,2)) -> 
AS7: ='[1]LUIK 4 - RISICO''S VGZ'!$D$51 ->  | AT7: no medical facilities/resources
AS8: ='SECTION Disasters'!$B$21 -> ? | AT8: A small-scale aid station is required. The presence of a nurse, ambulance or MUG team is not necessary here

Sheet Sheet1
A1: start date | B1: starting time | C1: end day | D1: duration | F1: number of days | G1: number of hours | H1: number of hours per day | I1: number of hours as a number | J1: total
A2: 2010-04-03 | B2: 13:00:00 | C2: 2010-04-03 | D2: 15:00:00 | F2: =C2-A2 -> 0 | G2: =D2-B2 -> 02:00:00 | H2: =F2*24 -> 0 | I2: =G2*24 -> 2 | J2: =SUM(H2:I2) -> 2
A3: 2010-04-03 | B3: 13:00:00 | C3: 2010-04-04 | D3: 15:00:00 | F3: =C3-A3 -> 1 | G3: =D3-B3 -> 02:00:00 | H3: =F3*24 -> 24 | I3: =G3*24 -> 2 | J3: =SUM(H3:I3) -> 26
A4: 2010-04-03 | B4: 13:00:00 | C4: 2010-04-04 | D4: 17:00:00 | F4: 1 | G4: =D4-B4 -> 04:00:00 | H4: 24 | I4: 4 | J4: 28
A5: 2010-04-03 | B5: 16:00:00 | D5: 18:00:00 | F5: -40271 | G5: 02:00:00 | H5: -966504 | I5: 2 | J5: -966502
A6: 2010-04-03 | B6: 17:00:00 | D6: 19:00:00 | F6: -40271 | G6: 02:00:00 | H6: -966504 | I6: 2 | J6: -966502
A7: 2010-04-03 | B7: 18:00:00 | D7: 20:00:00 | F7: -40271 | G7: 02:00:00 | H7: -966504 | I7: 2 | J7: -966502
A8: 2010-04-03 | B8: 19:00:00 | D8: 21:00:00 | F8: -40271 | G8: 02:00:00 | H8: -966504 | I8: 2 | J8: -966502
A9: 2010-04-03 | B9: 20:00:00 | D9: 22:00:00 | F9: -40271 | G9: 02:00:00 | H9: -966504 | I9: 2 | J9: -966502
A10: 2010-04-03 | B10: 21:00:00 | D10: 23:00:00 | F10: -40271 | G10: 02:00:00 | H10: -966504 | I10: 2 | J10: -966502
